Workbook

Sheet MAIN TAB
D2: Alabama Tank Trust Fund Unit Rates
D3: Cost Proposals and Payment Requests
D4: Click a category below for the appropriate documents
J22: 2023-02-01 | K22: *M6 Draft
C24: *M6 DRAFT (2/2023)
C25: 1)Fixed Error on Drilling Sheet
C27: *M5 DRAFT (1/2023)
C28: 1) Drilling Rate Increase
C29: 2) Removed Owner tax number
C31: *M4 DRAFT (07/2022)
C32: 1) 10% Labor Rate Increase
C33: 2) 10% Equipment Rate Increase
C35: M3 (08/2019)
C36: 1)Per Diem rate increases
C38: M3 DRAFT (07/2018)
C39: 1)Per Diem rate increases
C41: M2 DRAFT (03/2018)
C42: 1)Increased Labor Rates
C43: 2)Increased Drilling Mileage Range
C44: 3)High Resolution Imaging Field Time Unit Rate
C45: - Forms to be submitted remain as visible tabs once View Summary is selected (to help with digital copies)
C46: - Return to Entire CP/PR button reveals all tabs (possibly needed after View Summary is selected)

Sheet Fiscal Cover (hidden)
A1: ALABAMA TANK TRUST FUND
A2: Payment Request Review
A4: 1. Payment Request Number | D4: ='PR Part I Info'!B8 -> Enter Information from CP Form | G4: Invoice #
A5: 2. Facility I.D. Number: | D5: ='PR Part I Info'!F12 -> Enter Information from CP Form
A6: 3. Incident Number | D6: ='PR Part I Info'!B12 -> Enter Information from CP Form
A7: 4. Facility Name | D7: ='PR Part I Info'!D17 -> Enter Information from CP Form
A8: 5. Contractor Name: | D8: ='PR Part I Info'!F31 -> Enter Information from CP Form
A9: 6. Activity or activities for which payment is requested
B11: [ ] | C11: Site Stabilization
B12: [ ] | C12: Preliminary Investigation
B13: [ ] | C13: Develop Corrective Action Plan
B14: [ ] | C14: Corrective Action Plan
B15: [ ] | C15: Provision of Alternate Water Supply
B16: [ ] | C16: Other
A18: 7. Cost Proposal Approved Amount | F18: $ | G18: ='CP Part I Total'!E46 -> 0
C19: + Cost Proposal Addendum | F19: $
C20: Total Cost Proposal | F20: $
A22: 8. Payment Request Amount | F22: $ | G22: =('PR Part I Total'!E17)-('PR Part I Total'!D18) -> 0
A23: 9. Status of Review
B24: [ ] | C24: Partially Approved
C25: Reductions made in the amount of | F25: $
B26: [ ] | C26: Less $5,000 UST (if applicable) | F26: $
B27: [ ] | C27: Less $10,000 AST (if applicable) | F27: $
B28: [ ] | C28: Amount of request denied | F28: $
B29: [ ] | C29: APPROVED PAYMENT AMOUNT | F29: $
A31: 10. Payment Request received by P&S | G31: Date
A33: 11. Payment Request reviewed by | G33: Date
A35: Review Comments

Sheet CP Part I Info (hidden)
B2: Alabama Tank Trust Fund
B3: Cost Proposal
B4: Part I
B6: I.1 Cost Proposal Information:
B7: Cost Proposal Number: | F7: Date of Cost Proposal (mm/dd/yy):
A8: =IF(B8="",0,1) -> 0
A9: =IF(B9="",0,1) -> 0
A10: =SUM(A9+A8) -> 0 | B10: UST or AST Incident Number: | F10: Facility I.D. Number:
B13: I.2 Facility Information
B14: Facility Name:
B15: Facility Address:
B18: I.3 Owner Information:
B19: Owner Name:
B20: Owner Address:
B24: I.4 Response Action Contractor Information:
A25: =IF(F25="",0,1) -> 0 | B25: Approved Response Action Contractor Name:
A26: =IF(F26="",0,1) -> 0 | B26: Approved Response Action Contractor Address:
A27: =IF(F27="",0,1) -> 0
A28: =IF(F28="",0,1) -> 0
A29: =SUM(A25:A28) -> 0 | B29: Project Contact:
B30: Project Contact Phone #:
B31: Project Contact E-mail:
B32: Employer Tax Number (IRS):
B37: Cost Proposal Summary
B38: CP Total | C38: Facility I.D. # | E38: CP # | F38: Incident Number | I38: Site Name
B39: =IF('CP Part I Total'!$E$46=0,"",'CP Part I Total'!$E$46) ->  | C39: =IF('CP Part I Info'!$F$11="","",'CP Part I Info'!$F$11) ->  | E39: =IF('CP Part I Info'!$B$8="","",'CP Part I Info'!$B$8) ->  | F39: =IF('CP Part I Info'!$B$11="","",'CP Part I Info'!$B$11) ->  | I39: =IF('CP Part I Info'!$D$14="","",'CP Part I Info'!$D$14) -> 

Sheet CP Part I Page 2 (hidden)
B2: =IF(B3:D3="","",'CP Part I Info'!B7) ->  | E2: =IF(E3="","",'CP Part I Info'!B14) -> 
B3: =IF('CP Part I Info'!B8="","",'CP Part I Info'!B8) ->  | E3: =IF('CP Part I Info'!D14="","",'CP Part I Info'!D14) -> 
B4: I.5 Activity Information:
B5: Indicate below the activities for which the cost proposal is submitted:
C7: Site Stabilization/Initial Abatement | G7: =COUNTIF($B$7:$B$17,"x") -> 0 | H7: =IF(B7="x",1,0) -> 0
C8: Preliminary Investigation | H8: =IF(B8="x",1,0) -> 0
C9: Secondary Investigation / Additional Well Installation | H9: 0
C10: Alabama Risk Based Corrective Action (ARBCA) | H10: 0
C11: Groundwater Sampling | H11: 0 | I11: =IF(B12="x",1,0) -> 0
C12: Free Product Removal/Mobile Enhanced Multiphase Extraction (MEME) | I12: =IF(B12="x",1,0) -> 0
C13: Corrective Action Plan Evaluation | H13: 0
C14: Develop Corrective Action Plan | H14: 0
C15: Corrective Action | H15: 0
C16: Stockpile Sampling / Management / Disposal | H16: 0
C17: Provision of Alternate Water Supply | H17: 0
C18: Pilot Test | H18: 0
C19: Monitoring/Recovery/Injection Well Abandonment | H19: 0
C20: System Decommissioning/Removal | H20: 0
B21: Activities/Other/Brief Summary of Activities: | H21: =SUM(H7+H8+H9+H10+H11+I12+H13+H14+H15+H16+H17+H18+H19+H20) -> 0
B30: Provide proposed completion date for this phase of work activities:
B33: Provide projected date of cleanup completed:
B36: I.6 Subcontractor Information:
B37: Indicate Subcontractors to be used during this phase of work:
B38: Name & Address | G38: Service Provided

Sheet CP Part I Total (hidden)
B2: =IF(B3="","",'CP Part I Info'!B7:E7) ->  | D2: =IF(D3="","",'CP Part I Info'!B14) -> 
B3: =IF('CP Part I Info'!B8="","",'CP Part I Info'!B8) ->  | D3: =IF('CP Part I Info'!D14="","",'CP Part I Info'!D14) -> 
B4: Signatures must be provided in Sections I.7 and I.8 below for this proposal to be processed.
B5: I.7 Certification of Unintentional Release of Motor Fuel & Cost Proposal- Owner Signature:
B6: I certify that an unintentional release has occurred from a motor fuel underground or aboveground tank system at this site and I authorize this Cost Proposal amount for corrective action activities to be conducted at this site.
B9: Owner or Operator Signature:
B11: Typed or Printed Name and Title:
B13: Email address:
B14: Date:
B15: I.8 Cost Proposal- Contractor Signature:
B16: I certify that I have personally examined and am familiar with the information submitted in this and all attached documents and that based on those individuals immediately responsible for obtaining the information, I believe that the submitted information is true, accurate, and complete.
B17: Response Action Contractor Signature:
B19: Typed or Printed Name and Title:
B21: Date:
B24: I.9 Trust Fund Obligation Information:
B25: Estimated Total Cost of all
B26: Anticipated Response Actions
B27: (To be updated overtime):
B28: Total of Previously Approved Cost
B29: Proposals:
B31: Total Proposed Costs to Date | F31: =F28+E46 -> 0
B32: (Approved Costs Plus Costs Proposed in
B33: this Cost Proposal):
B34: Estimate Percent Completion of entire project to date: | G34: =IF(F25<1,,(F31/F25)) -> 0
B37: I.10 Cost Proposal Amount
B38: Proposed Costs under this Cost | E38: =SUM('Form "A" Office'!K124+'Form "B" Field'!K167+'Form "C" Drilling'!J59+'Form "D" Other'!K56) -> 0 | G38: Personnel | I38: ='Cost Summary'!B25 -> 0
B39: Proposal: | D39: =SUM(E40:F45) -> 0 | G39: Field Equipment | I39: =SUM('Form "B" Field'!F111) -> 0
B40: Owners Required Contribution for UST Release($5,000): Applicable for CP#1 Only | G40: Mileage | I40: ='Cost Summary'!H26 -> 0
G41: Per Diem | I41: ='Form "B" Field'!L98 -> 0
G42: Drilling | I42: ='Form "C" Drilling'!J59 -> 0
B43: Owners Required Contribution for AST Release($10,000): Applicable for CP#1 Only | G43: Analytical | I43: ='Cost Summary'!H30 -> 0
G44: Other | I44: ='Cost Summary'!H34 -> 0
B46: Total of This Cost Proposal: | E46: =E38-(D39) -> 0

Sheet Cost Summary (hidden)
B2: Alabama Tank Trust Fund Itemization Form Cost Summary
B5: Title | H5: Total Cost
B7: Plan / Report Time
B8: Project Manager | H8: ='Office Breakout'!M101 -> 0
B9: PE/PG | H9: ='Office Breakout'!N101 -> 0
B10: Staff Engineer Geologist Scientist | H10: ='Office Breakout'!O101 -> 0
B11: Draftsman | H11: ='Office Breakout'!P101 -> 0
B12: Clerical | H12: ='Office Breakout'!Q101 -> 0
E13: Total Plan/Report Time | H13: =SUM(H8:H12)+ IF('Form "A" Office'!H120<>"",'Form "A" Office'!H120,0)+IF('Form "A" Office'!H122<>"",'Form "A" Office'!H122,0) -> 0
B14: Field Time
B15: Project Manager | H15: ='Field Breakout'!M74 -> 0
B16: PE/PG | H16: ='Field Breakout'!N74 -> 0
B17: Staff Engineer/Geologist/Scientist | H17: ='Field Breakout'!O74 -> 0
B18: Technician | H18: ='Field Breakout'!P74+(IF('Form "F" Details'!K39="",0,'Form "F" Details'!K39)) -> 0
E19: Total Field Time | H19: =SUM(H15:H18) -> 0 | K19: ('Form "B" Field'!G81)+IF('Form "B" Field'!G82<>"",'Form "B" Field'!G82,0)+IF('Form "B" Field'!G83<>"",'Form "B" Field'!G83,0)
B20: Travel Time
B21: Project Manager | H21: ='Form "B" Field'!K93 -> 
B22: PE/PG | H22: ='Form "B" Field'!K92 -> 
B23: Staff Engineer/Geologist/Scientist | H23: ='Form "B" Field'!K91 -> 
B24: Technician | H24: ='Form "B" Field'!K90 -> 
B25: =SUM(H13+H19+H25) -> 0 | E25: Total Travel Time | H25: =SUM(H21:H24) -> 0
B26: Mileage | H26: =SUM('Form "B" Field'!K87:'Form "B" Field'!K88) -> 0
B28: Per Diem | H28: =SUM('Form "B" Field'!K95:'Form "B" Field'!K97) -> 0
B30: Analytical | H30: ='Form "B" Field'!I83 -> 0
B32: Drilling | H32: ='Form "C" Drilling'!G23 -> 0
B34: Other | H34: =('Form "D" Other'!K56)+('Form "B" Field'!F122) -> 0
H37: =SUM(H13+H19+H25+H26+H28+H30+H32+H34) -> 0

Sheet Form "A" Office (hidden)
B2: Part II- Alabama Tank Trust Fund Itemization Form "A" Cost Proposal
B3: Complete forms "A" through "G" as applicable to site activities and for supporting attachments to Part I.
B4: Summary of ATTF Report and Plan Preparation Scenarios
B6: Scenarios | H6: Unit $ | I6: Units | J6: Quantity | K6: Requested$
B8: Initial Abatement Report (other than just MEME)
B9: 1-2 days in field | H9: ='Initial Abatement'!L19 -> 2197 | I9: /job | K9: =IF(J9<1,"",(H9*J9)) -> 
B10: Adder amount for every field day over 2 days(not to exceed 14 days) | H10: ='Initial Abatement'!L41 -> 372.5 | I10: /day | K10: =IF(J10<1,"",(H10*J10)) -> 
B11: Initial Abatement Free Product Recovery Report | H11: ='Initial Abatement'!L39 -> 527 | I11: /job
B12: Preliminary Investigation Report | H12: ='Prelm Rprt'!L17 -> 5408 | I12: /site
B13: Secondary Plan (on and offsite)(once per site) | H13: ='Prelm Rprt'!L32 -> 930 | I13: /site
B14: Secondary Report (up to 12 wells) | H14: ='Scdry additional well Plan Rpt'!L18 -> 6229 | I14: /site
B15: Adder per Wells installed over 8 | H15: ='Scdry additional well Plan Rpt'!L20 -> 166 | I15: /well
B16: Off-site access-Residential | H16: ='Scdry additional well Plan Rpt'!L118 -> 201.25 | I16: /property
B17: Off-site access - Commercial | H17: ='Scdry additional well Plan Rpt'!L115 -> 287.5 | I17: /property
B18: Off-site access - ALDOT | H18: ='Scdry additional well Plan Rpt'!L108 -> 1638 | I18: /property
B19: Additional Well Installation Plan (investigation 1-4 wells) | H19: ='Scdry additional well Plan Rpt'!L36 -> 527 | I19: /plan
B20: Additional Well Installation Plan (investigation >4 wells) | H20: ='Scdry additional well Plan Rpt'!L51 -> 904 | I20: /plan
B21: Additional Well Installation Report (1-4 wells)(as an adder) | H21: ='Scdry additional well Plan Rpt'!L70 -> 1287 | I21: /report
B22: Additional Well Installation Report (>4wells)(as an adder) | H22: ='Scdry additional well Plan Rpt'!L89 -> 1568 | I22: /report
B23: High Resolution Characterization Plan/Report (stand alone) | H23: ='Scdry additional well Plan Rpt'!L138 -> 2149 | I23: /pln/rprt
B24: Groundwater Monitoring Plan (GWM) | H24: ='NAMR GWM PLAN RPRT'!L17 -> 553 | I24: /site
B25: NAMR/GWM-Report
B26: 0 | C26: 1-12 wells, BTEX/MTBE/Naphthalene | H26: ='NAMR GWM PLAN RPRT'!L36 -> 1306 | I26: /report
B27: 0 | C27: 1-12 wells, BTEX/MTBE+PAH | H27: ='NAMR GWM PLAN RPRT'!L58 -> 1568 | I27: /report
B28: NAMR/GWM adder >12 wells, BTEX/MTBE/Naphthalene | H28: ='NAMR GWM PLAN RPRT'!L38 -> 41.5 | I28: /well
B29: NAMR/GWM adder >12 wells, BTEX/MTBE + PAH | H29: ='NAMR GWM PLAN RPRT'!L63 -> 58.1 | I29: /well
B31: FPR Plan -All free product recovery | H31: ='FP PlanReportMEMEField'!L17 -> 872 | I31: /plan
B32: FPR Report -all free product reports (except MEME) | H32: ='FP PlanReportMEMEField'!L80 -> 1082 | I32: /report
B33: FPR Report-MEME | H33: ='FP PlanReportMEMEField'!L99 -> 1178 | I33: /report
B34: MEME/Injection Events (adder to report) | H34: ='FP PlanReportMEMEField'!L142 -> 834 | I34: /report
B35: Adder amount for >3 MEME/Injection Events (per approved period) | H35: ='FP PlanReportMEMEField'!L161 -> 326 | I35: /report
B47: ARBCA Report Tier I/RM 1
B48: 0 | C48: 1-12 wells, BTEX/MTBE/Naphthalene | H48: =ARBCA!L17 -> 4389 | I48: /evaluation
B49: 0 | C49: 1-12 wells, BTEX/MTBE+PAH | H49: =ARBCA!L35 -> 4651 | I49: /evaluation
B50: ARBCA Report Tier II/RM 2
B51: 0 | C51: 1-12 wells, BTEX/MTBE/Naphthalene | H51: =ARBCA!L53 -> 4389 | I51: /evaluation
B52: 0 | C52: 1-12 wells, BTEX/MTBE+PAH | H52: =ARBCA!L78 -> 4651 | I52: /evaluation
B53: ARBCA GRP Re Assessment(1-4 wells Gas) | H53: =ARBCA!L124 -> 566 | I53: /assessment
B54: ARBCA GRP Re Assessment(1-4 wells Diesel) | H54: =ARBCA!L142 -> 890 | I54: /assessment
B55: ARBCA GRP Well Additions >4 per well | H55: =(ARBCA!L142*0.25) -> 222.5 | I55: /well
B56: ARBCA adder for Gas > number of allocated wells | H56: =ARBCA!L81 -> 41.5 | I56: /well
B57: ARBCA adder for Diesel > number of allocated wells | H57: =ARBCA!L84 -> 49.8 | I57: /well
B58: ARBCA adder for Tier II WITH DECAY | H58: =ARBCA!L87 -> 2514 | I58: /evaluation
B59: ARBCA Evaluation with Decay (stand alone evaluation) | H59: =ARBCA!L106 -> 3803 | I59: /evaluation
B61: CAP Development - CA Evaluation (once per site) | H61: ='Corrective Action Plans'!L17 -> 3761 | I61: /site
B62: CAP Development - RNA | H62: ='Corrective Action Plans'!L35 -> 1745 | I62: /cap
B63: CAP Development - RNA with MEME | H63: ='Corrective Action Plans'!L53 -> 1860 | I63: /cap
B64: CAP Development - Excavation | H64: ='Corrective Action Plans'!L78 -> 1821 | I64: /cap
B65: CAP Development - Liquid Injections | H65: ='Corrective Action Plans'!L96 -> 5132 | I65: /cap
B66: CAP Development (Class 1)- DPVE, P&T with SVE | H66: ='Corrective Action Plans'!L114 -> 7684 | I66: /cap
B67: CAP Development (Class 2) - Ozone/SVE, AS/SVE, Liquid Chemox/Biox | H67: ='Corrective Action Plans'!L139 -> 6780 | I67: /cap
B68: CAP Development (Class 3) - Ozone, AS, SVE | H68: ='Corrective Action Plans'!L157 -> 6252 | I68: /cap
B69: CAP Modification (use Form "F" for input) | H69: =IF('Form "F" Details'!K68="","",'Form "F" Details'!K68) ->  | I69: /cap | J69: =IF(H69="","",1) ->  | K69: =IF(H69=0,"",H69) -> 
B70: CAP Implementation Report - Excavation | H70: ='Corrective Action Reports Eng'!L17 -> 2278 | I70: /report
B71: CAP Implementation Report -Liquid Injections | H71: ='Corrective Action Reports Eng'!L35 -> 2901 | I71: /report
B72: CA System Installation Report (all Classes same) | H72: ='Corrective Action Reports Eng'!L78 -> 8344 | I72: /report
B73: SEMR - DPVE, P&T Reports
B74: 0 | C74: 1-12 wells, BTEX/MTBE/Naphthalene | H74: ='Corrective Action Reports Eng'!L96 -> 5444 | I74: /report
B75: 0 | C75: 1-12 wells, BTEX/MTBE+PAH | H75: ='Corrective Action Reports Eng'!L114 -> 5706 | I75: /report
B76: SEMR - Ozone, AS, SVE, Chemox, Biosparge - Reports
B77: 0 | C77: 1-12 wells, BTEX/MTBE/Naphthalene | H77: ='Corrective Action Reports Eng'!L132 -> 4830 | I77: /report
B78: 0 | C78: 1-12 wells, BTEX/MTBE+PAH | H78: ='Corrective Action Reports Eng'!L150 -> 5092 | I78: /report
B79: SEMR adder >12 wells, BTEX/MTBE/Naph | H79: ='Corrective Action Reports Eng'!L152 -> 41.5 | I79: /well
B80: SEMR adder >12 wells, BTEX/MTBE+PAH | H80: ='Corrective Action Reports Eng'!L155 -> 49.8 | I80: /well
B90: IDW/Treatment Disposal Plan (stand alone) | H90: ='MISC Plans Reports'!L17 -> 630 | I90: /plan | K90: =IF(J90<1,"",(H90*J90)) -> 
B91: IDW/Treatment Disposal Report (stand alone) | H91: ='MISC Plans Reports'!L35 -> 1012 | I91: /report
B92: DPVE Pilot Test Plan (not for Slug Test) | H92: ='Aquifer Pilot Pl Rpt Fld'!L53 -> 1179 | I92: /plan
B93: DPVE Pilot Test Report | H93: ='Aquifer Pilot Pl Rpt Fld'!L71 -> 1853 | I93: /report
B94: AS/SVE or Ozone Pilot Test Plan | H94: ='Aquifer Pilot Pl Rpt Fld'!L89 -> 1179 | I94: /plan
B95: AS/SVE or Ozone Pilot Test Report | H95: ='Aquifer Pilot Pl Rpt Fld'!L107 -> 1853 | I95: /report
B96: ISCO or Bioremediation Pilot Test Plan | H96: ='Aquifer Pilot Pl Rpt Fld'!L125 -> 1179 | I96: /plan
B97: ISCO or Bioremediation Pilot Test Report | H97: ='Aquifer Pilot Pl Rpt Fld'!L143 -> 2045 | I97: /report
B98: Specific Capacity Test Plan | H98: ='Aquifer Pilot Pl Rpt Fld'!L17 -> 400 | I98: /plan
B99: Specific Capacity Test Report | H99: ='Aquifer Pilot Pl Rpt Fld'!L35 -> 1536 | I99: /report
B100: System Purchase Letter | H100: ='Corrective Action Reports Eng'!L53 -> 1452 | I100: /ltr
B101: Monitoring Well Abandonment Plan | H101: ='MW Abandon Plan Report Field'!L17 -> 487 | I101: /plan
B102: Monitoring Well Abandonment Report | H102: ='MW Abandon Plan Report Field'!L35 -> 1082 | I102: /report
B103: System Decommissioning Plan | H103: ='MW Abandon Plan Report Field'!L53 -> 968 | I103: /plan
B104: System Decommissioning Report | H104: ='MW Abandon Plan Report Field'!L78 -> 1926 | I104: /report
B105: Alternate Water Supply Plan | H105: ='MISC Plans Reports'!L53 -> 757 | I105: /plan
B106: Alternate Water Supply Report | H106: ='MISC Plans Reports'!L78 -> 1178 | I106: /report
B107: Public Water Line Replacement Plan | H107: ='MISC Plans Reports'!L183 -> 1102 | I107: /plan
B108: Public Water Line Replacement Report | H108: ='MISC Plans Reports'!L201 -> 1638 | I108: /report
B109: Adjacent Property Owner Information (additional effort) | H109: ='MISC Plans Reports'!L147 -> 328.5 | I109: /document
B110: UIC Permit Application Preparation | H110: ='MISC Plans Reports'!L96 -> 1331 | I110: /permit
B111: UIC General Permit Application Preparation | H111: ='MISC Plans Reports'!L114 -> 853 | I111: /permit
B112: UIC General Permit Application Renewal | H112: ='MISC Plans Reports'!L279 -> 470 | I112: /renewal | K112: =IF(J112<1,"",(H112*J112)) -> 
B113: General NPDES Application Preparation | H113: ='MISC Plans Reports'!L114 -> 853 | I113: /permit
B114: General NPDES Application Renewal | H114: ='MISC Plans Reports'!L279 -> 470 | I114: /renewal
B115: ADEM Solid Waste Profile Preparation | H115: ='MISC Plans Reports'!L132 -> 239.5 | I115: /profile
B116: Municipal Sewer Application Process (ADEM or Others) | H116: ='MISC Plans Reports'!L165 -> 517 | I116: /profile
B117: Environmental Covenant Preparation | H117: ='MW Abandon Plan Report Field'!L96 -> 611 | I117: /covenant
B118: Cost Proposal Tier I Addendum Preparation | H118: ='MISC Plans Reports'!L243 -> 115 | I118: /addendum
B119: Cost Proposal Tier II Addendum Preparation | H119: ='MISC Plans Reports'!L261 -> 362 | I119: /addendum
B120: ADEM Approved Amount
B122: Other Plan/Report (use Form "F" for input) | H122: =IF('Form "F" Details'!K25="","",'Form "F" Details'!K25) ->  | J122: =IF(H122="","",1) ->  | K122: =IF(H122=0,"",H122) -> 
F124: Total Report and Plan Costs | K124: =SUM(K8:K122) -> 0 | L124: =SUM(K8:K122) -> 0

Sheet PR Part I Info (hidden)
B2: Alabama Tank Trust Fund
B3: Payment Request
B4: Part I
B6: I.1 Payment Request Information:
B7: Payment Request Number: | F7: Date of Payment Request (mm/dd/yy):
B8: =IF('CP Part I Info'!B8:E9="","Enter Information from CP Form",'CP Part I Info'!B8:E9) -> Enter Information from CP Form
B10: =IF('CP Part I Info'!B9="","",'CP Part I Info'!B9) -> 
B11: UST or AST Incident Number: | F11: Facility I.D. Number:
B12: =IF('CP Part I Info'!B11:E11="","Enter Information from CP Form",'CP Part I Info'!B11:E11) -> Enter Information from CP Form | F12: =IF('CP Part I Info'!F11:I11="","Enter Information from CP Form",'CP Part I Info'!F11:I11) -> Enter Information from CP Form
B16: I.2 Facility Information
B17: Facility Name: | D17: =IF('CP Part I Info'!D14:I14="","Enter Information from CP Form",'CP Part I Info'!D14:I14) -> Enter Information from CP Form
B19: Facility Address: | D19: =IF('CP Part I Info'!D15:I15="","Enter Information from CP Form",'CP Part I Info'!D15:I15) -> Enter Information from CP Form
D20: =IF('CP Part I Info'!D16:I16="","",'CP Part I Info'!D16:I16) -> 
B22: I.3 Owner Information:
B23: Owner Name: | D23: =IF('CP Part I Info'!D19:I19="","Enter Information from CP Form",'CP Part I Info'!D19:I19) -> Enter Information from CP Form
B25: Owner Address: | D25: =IF('CP Part I Info'!D20:I20="","Enter Information from CP Form",'CP Part I Info'!D20:I20) -> Enter Information from CP Form
D26: =IF('CP Part I Info'!D21:I21="","",'CP Part I Info'!D21:I21) -> 
B30: I.4 Response Action Contractor Information:
B31: Approved Response Action Contractor Name: | F31: =IF('CP Part I Info'!F25="","Enter Information from CP Form",'CP Part I Info'!F25) -> Enter Information from CP Form
B32: Approved Response Action Contractor Address: | F32: =IF('CP Part I Info'!F26="","Enter Information from CP Form",'CP Part I Info'!F26) -> Enter Information from CP Form
F33: =IF('CP Part I Info'!F27="","Enter Information from CP Form",'CP Part I Info'!F27) -> Enter Information from CP Form
B35: Project Contact: | D35: =IF('CP Part I Info'!D29:I29="","Enter Information from CP Form",'CP Part I Info'!D29:I29) -> Enter Information from CP Form
B36: Project Contact phone # | E36: =IF('CP Part I Info'!E30:I30="","Enter Information from CP Form",'CP Part I Info'!E30:I30) -> Enter Information from CP Form
B37: Project Contact E-mail: | E37: =IF('CP Part I Info'!E31:I31="","Enter Information from CP Form",'CP Part I Info'!E31:I31) -> Enter Information from CP Form
B38: Employer Tax Number (IRS) | E38: =IF('CP Part I Info'!E32:I32="","Enter Information from CP Form",'CP Part I Info'!E32:I32) -> Enter Information from CP Form
B39: =IF('CP Part I Info'!B33="","",'CP Part I Info'!B33) ->  | D39: =IF('CP Part I Info'!D33="","",'CP Part I Info'!D33) -> 
B40: I.5 Designation of Payment:
B41: Name of Person or Firm to whom Payment is to be made:
B43: Address:
B44: ADEM | C44: Contract/Owner Number: | F44: Invoice No: | H44: Approved Payment:
B45: USE ONLY
B51: ADEM Payment Request Summary
B52: PR Total | D52: Facility I.D. # | G52: CP # | H52: Incident # | J52: Site Name
B53: =IF('PR Part I Total'!$E$17="","",'PR Part I Total'!$E$17) -> 0 | D53: =IF('PR Part I Info'!$F$12="","",'PR Part I Info'!$F$12) -> Enter Information from CP Form | G53: =IF('PR Part I Info'!$B$8="","",'PR Part I Info'!$B$8) -> Enter Information from CP Form | H53: =IF('PR Part I Info'!$B$12="","",'PR Part I Info'!$B$12) -> Enter Information from CP Form | J53: =IF('PR Part I Info'!$D$17="","",'PR Part I Info'!$D$17) -> Enter Information from CP Form

Sheet PR Part I Page 2 (hidden)
B2: =IF(B3="","",'PR Part I Info'!B7:E7) ->  | E2: =IF(E3="","",'PR Part I Info'!B11) ->  | H2: =IF(H3="","",'PR Part I Info'!F11) -> 
B3: =IF('PR Part I Info'!B8="Enter Information from CP Form","",'PR Part I Info'!B8) ->  | E3: =IF('PR Part I Info'!B12="Enter Information from CP Form","",'PR Part I Info'!B12) ->  | H3: =IF('PR Part I Info'!F12="Enter Information from CP Form","",'PR Part I Info'!F12) -> 
B4: I.6 Activity Information:
B5: Indicate below the activities for which the Payment Request is submitted:
C7: Site Stabilization/Initial Abatement | H7: =IF(B7="x",1,0) -> 0
C8: Preliminary Investigation | H8: =IF(B8="x",1,0) -> 0
C9: Secondary Investigation / Additional Well Installation | H9: 0
C10: Alabama Risk Based Corrective Action (ARBCA) | H10: 0
C11: Groundwater Sampling | H11: 0
C12: Free Product Removal/Mobile Enhanced Multiphase Extraction (MEME) | I12: =IF(B12="x",1,0) -> 0
C13: Corrective Action Plan Evaluation | H13: 0
C14: Develop Corrective Action Plan | H14: 0
C15: Corrective Action | H15: 0
C16: Stockpile Sampling / Management / Disposal | H16: 0
C17: Provision of Alternate Water Supply | H17: 0
C18: Pilot Test | H18: 0
C19: Monitoring Well Abandonment | H19: 0
C20: System Decommissioning/Removal | H20: 0
B21: Activities/Other/Brief Summary of Activities: | H21: =SUM(H7+H8+H9+H10+H11+I12+H13+H14+H15+H16+H17+H18+H19+H20) -> 0
B29: Provide completion date for this phase of work activities:
B32: Provide proposed completion date for all site activities:
B36: I.7 Subcontractor Information:
B37: Indicate Subcontractors used during this phase of work:
B38: Name & Address | G38: Service Provided

Sheet PR Part I Signatures (hidden)
B2: =IF(B3="","",'PR Part I Info'!B7:E7) ->  | E2: =IF(E3="","",'PR Part I Info'!B11) ->  | I2: =IF(I3="","",'PR Part I Info'!F11) -> 
B3: =IF('PR Part I Info'!B8="Enter Information from CP Form","",'PR Part I Info'!B8) ->  | E3: =IF('PR Part I Info'!B12="Enter Information from CP Form","",'PR Part I Info'!B12) ->  | I3: =IF('PR Part I Info'!F12="Enter Information from CP Form","",'PR Part I Info'!F12) -> 
B4: I.8 Certification of Unintential Release of Motor Fuel and Payment Payment Request :
B5: Signature must be provided below for this request to be processed
C6: 1. I certify that all costs incurred under this payment request have been paid to the contractor.
B7: Check to owner | C7: The above certification will result in a check written to the owner or operator.
C8: 2. I certify that all costs incurred under this payment request have NOT been paid to the contractor.
B9: Check to Contractor | C9: The above certification will result in a check written to the contractor.
B10: I certify that either option 1 or option 2 above applies, and I certify that an unintentional release has occurred from a motor fuel underground storage tank system or aboveground storage tank system at the site.
B13: Owner Printed Name and Title:
B15: Owner Operator Signature:
B16: Date:
B17: I.9 Certification of Payment Request Information:
B18: Signature must be dated with an original signature by the tank owner or operator, a responsible corporate official or a person to which signature authority has been delegated in writing in a form approved by the Department. Documentation of the delegation must be submitted to the Department.
B19: I certify to the best of my knowledge and belief: that the costs presented herein represent actual costs incurred in the performance of response actions related to this site during the period of time indicated on this application; and that no charges are presented as part of this application that did not result from the performance of response actions which were necessary due to the release of motor fuels at this site.
B20: I have personally examined and am familiar with the information submitted in this payment request and all attachments and that, based on my inquiry of those persons immediately responsible for obtaining the information contained in this payment request, I certify that the information is true, accurate, and complete, and that this payment request does not duplicate any request for payment for any charge previously submitted to the Department.
B21: Owner Printed Name and Title:
B22: Owner Operator Signature:
B23: Date:
B24: Contractor Printed Name and Title:
B25: Contractor's Signature:
B26: Date:
B28: Sections I.8 and I.9 must be signed by appropriate person for Request to be processed

Sheet PR Part I Total (hidden)
B2: =IF(B3="","",'PR Part I Info'!B7:E7) ->  | D2: =IF(D3="","",'PR Part I Info'!B11) ->  | H2: =IF(H3="","",'PR Part I Info'!F11) -> 
B3: =IF('PR Part I Info'!B8="Enter Information from CP Form","",'PR Part I Info'!B8) ->  | D3: =IF('PR Part I Info'!B12="Enter Information from CP Form","",'PR Part I Info'!B12) ->  | H3: =IF('PR Part I Info'!F12="Enter Information from CP Form","",'PR Part I Info'!F12) -> 
B4: I.10 Trust Fund Obligation Information:
B5: Total of Previously Approved Payment Requests:
B8: Total of Payment Requests to Date: (Approved Payment Requests plus amount proposed in this request) | F8: =IF((F5+E25)=0,"",F5+E25) -> 
B11: Estimate Percent Completion of Entire Project to Date: | G11: =IF(F8="","",IF('CP Part I Total'!F25="","",(F8/('CP Part I Total'!F25)))) -> 
B14: I.11 Payment Request Amount:
G15: For ADEM Use Only
E16: Proposed | G16: Adjusted | I16: Approved
B17: Payment Request Amount from Forms: | E17: =SUM('PR Form "A" Office'!K125+'PR Form "B" Field'!K168+'PR Form "C" Drilling'!K60+'PR Form "D" Other'!K56) -> 0
D18: =SUM(E19:F24) -> 0
B19: Owners Required Contribution for UST Release($5,000): Applicable for CP#1 Only
B22: Owners Required Contribution for AST Release($10,000): Applicable for CP#1 Only
B25: Total of This Payment Request: | E25: =E17-(D18) -> 0
B27: CP approved amount | E27: ='CP Part I Total'!E38 -> 0
B29: This Payment Request exceeds the approved Cost Proposal by | H29: =IF((E25-E27)<=0,"",(E25-E27)) -> 
B30: Please describe the cause of the exceedance below and include appropriate invoices
B35: I.12 ADEM Approval Signatures:
B37: Approve for Payment
E38: Name | I38: Date
B39: I, | F39: certify that all costs incurred under this payment are
C40: ADEM Director
B41: due and payable.

Sheet PR Form "A" Office (hidden)
B2: Part II- Alabama Tank Trust Fund Itemization Form "A" Payment Request
B3: Complete forms "A" through "G" as applicable to site activities and as supporting attachments.
B4: Summary of ATTF Report and Plan Preparation Scenarios
B6: 0 | D6: Scenarios | H6: Unit $ | I6: CP | J6: PR | K6: Requested
B8: Initial Abatement Report (other than just MEME)
B9: 1-2 days in field | H9: ='Initial Abatement'!L19 -> 2197 | I9: =IF('Form "A" Office'!J9<1,"",'Form "A" Office'!J9) ->  | K9: =IF(J9<1,"",(H9*J9)) ->  | M9: =IF(I9="","",(I9*H9)) -> 
B10: Adder amount for every field day over 2 days(not to exceed 14 days) | H10: ='Initial Abatement'!L41 -> 372.5 | I10: =IF('Form "A" Office'!J10<1,"",'Form "A" Office'!J10) ->  | K10: =IF(J10<1,"",(H10*J10)) ->  | M10: =IF(I10="","",(I10*H10)) -> 
B11: Initial Abatement Free Product Recovery Report | H11: ='Initial Abatement'!L39 -> 527 | I11: =IF('Form "A" Office'!J11<1,"",'Form "A" Office'!J11) -> 
B12: Preliminary Investigation Report | H12: ='Prelm Rprt'!L17 -> 5408 | I12: =IF('Form "A" Office'!J12<1,"",'Form "A" Office'!J12) -> 
B13: Secondary Plan (on and offsite) | H13: ='Prelm Rprt'!L32 -> 930 | I13: =IF('Form "A" Office'!J13<1,"",'Form "A" Office'!J13) -> 
B14: Secondary Report (up to 12 wells) | H14: ='Scdry additional well Plan Rpt'!L18 -> 6229 | I14: =IF('Form "A" Office'!J14<1,"",'Form "A" Office'!J14) -> 
B15: Adder per Wells over 8 | H15: ='Scdry additional well Plan Rpt'!L20 -> 166 | I15: =IF('Form "A" Office'!J15<1,"",'Form "A" Office'!J15) -> 
B16: Off-site access-Residential | H16: ='Scdry additional well Plan Rpt'!L118 -> 201.25 | I16: =IF('Form "A" Office'!J16<1,"",'Form "A" Office'!J16) -> 
B17: Off-site access - Commercial | H17: ='Scdry additional well Plan Rpt'!L115 -> 287.5 | I17: =IF('Form "A" Office'!J17<1,"",'Form "A" Office'!J17) -> 
B18: Off-site access - ALDOT | H18: ='Scdry additional well Plan Rpt'!L108 -> 1638 | I18: =IF('Form "A" Office'!J18<1,"",'Form "A" Office'!J18) -> 
B19: Additional Well Installation Plan (investigation 1-4 wells) | H19: ='Scdry additional well Plan Rpt'!L36 -> 527 | I19: =IF('Form "A" Office'!J19<1,"",'Form "A" Office'!J19) -> 
B20: Additional Well Installation Plan (investigation >4 wells) | H20: ='Scdry additional well Plan Rpt'!L51 -> 904 | I20: =IF('Form "A" Office'!J20<1,"",'Form "A" Office'!J20) -> 
B21: Additional Well Installation Report (1-4 wells)(as an adder) | H21: ='Scdry additional well Plan Rpt'!L70 -> 1287 | I21: =IF('Form "A" Office'!J21<1,"",'Form "A" Office'!J21) -> 
B22: Additional Well Installation Report (>4 wells)(as an adder) | H22: ='Scdry additional well Plan Rpt'!L89 -> 1568 | I22: =IF('Form "A" Office'!J22<1,"",'Form "A" Office'!J22) ->  | M22: =IF(I22="","",(I22*H22)) -> 
B23: High Resolution Characterization Report (stand alone) | H23: ='Scdry additional well Plan Rpt'!L138 -> 2149 | I23: =IF('Form "A" Office'!J23<1,"",'Form "A" Office'!J23) ->  | M23: =IF(I23="","",(I23*H23)) -> 
B24: Groundwater Monitoring Plan (GWM) | H24: ='NAMR GWM PLAN RPRT'!L17 -> 553 | I24: =IF('Form "A" Office'!J24<1,"",'Form "A" Office'!J24) -> 
B25: NAMR/GWM-Report
B26: 0 | C26: 1-12 wells, BTEX/MTBE/Naphthalene | H26: ='NAMR GWM PLAN RPRT'!L36 -> 1306 | I26: =IF('Form "A" Office'!J26<1,"",'Form "A" Office'!J26) -> 
B27: 0 | C27: 1-12 wells, BTEX/MTBE+PAH | H27: ='NAMR GWM PLAN RPRT'!L58 -> 1568 | I27: =IF('Form "A" Office'!J27<1,"",'Form "A" Office'!J27) -> 
B28: NAMR/GWM adder >12 wells, BTEX/MTBE/Naphthalene | H28: ='NAMR GWM PLAN RPRT'!L38 -> 41.5 | I28: =IF('Form "A" Office'!J28<1,"",'Form "A" Office'!J28) -> 
B29: NAMR/GWM adder >12 wells, BTEX/MTBE + PAH | H29: ='NAMR GWM PLAN RPRT'!L63 -> 58.1 | I29: =IF('Form "A" Office'!J29<1,"",'Form "A" Office'!J29) -> 
B31: FPR Plan -All free product recovery | H31: ='FP PlanReportMEMEField'!L17 -> 872 | I31: =IF('Form "A" Office'!J31<1,"",'Form "A" Office'!J31) -> 
B32: FPR Report -all free product reports (except MEME) | H32: ='FP PlanReportMEMEField'!L80 -> 1082 | I32: =IF('Form "A" Office'!J32<1,"",'Form "A" Office'!J32) -> 
B33: FPR Report-MEME | H33: ='FP PlanReportMEMEField'!L99 -> 1178 | I33: =IF('Form "A" Office'!J33<1,"",'Form "A" Office'!J33) -> 
B34: MEME/Injection Events (adder to report) | H34: ='FP PlanReportMEMEField'!L142 -> 834 | I34: =IF('Form "A" Office'!J34<1,"",'Form "A" Office'!J34) -> 
B35: Adder amount for >3MEME/Injection Events (per approved period) | H35: ='FP PlanReportMEMEField'!L161 -> 326 | I35: =IF('Form "A" Office'!J35<1,"",'Form "A" Office'!J35) -> 
B47: ARBCA Report Tier 1/RM 1
B48: 0 | C48: 1-12 wells, BTEX/MTBE/Naphthalene | H48: =ARBCA!L17 -> 4389 | I48: =IF('Form "A" Office'!J48<1,"",'Form "A" Office'!J48) -> 
B49: 0 | C49: 1-12 wells, BTEX/MTBE+PAH | H49: =ARBCA!L35 -> 4651 | I49: =IF('Form "A" Office'!J49<1,"",'Form "A" Office'!J49) -> 
B50: ARBCA Report Tier II/ RM 2
B51: 0 | C51: 1-12 wells, BTEX/MTBE/Naphthalene | H51: =ARBCA!L53 -> 4389 | I51: =IF('Form "A" Office'!J51<1,"",'Form "A" Office'!J51) -> 
B52: 0 | C52: 1-12 wells, BTEX/MTBE+PAH | H52: =ARBCA!L78 -> 4651 | I52: =IF('Form "A" Office'!J52<1,"",'Form "A" Office'!J52) -> 
B53: ARBCA GRP Re Assessment (1-4 wells Gas) | H53: =ARBCA!L124 -> 566 | I53: =IF('Form "A" Office'!J53<1,"",'Form "A" Office'!J53) -> 
B54: ARBCA GRP Re Assessment (1-4 wells Diesel) | H54: =ARBCA!L142 -> 890 | I54: =IF('Form "A" Office'!J54<1,"",'Form "A" Office'!J54) -> 
I55: =IF('Form "A" Office'!J55<1,"",'Form "A" Office'!J55) -> 
B56: ARBCA adder for Gas > number of allocated wells | H56: =ARBCA!L81 -> 41.5 | I56: =IF('Form "A" Office'!J56<1,"",'Form "A" Office'!J56) -> 
B57: ARBCA adder for Diesel > number of allocated wells | H57: =ARBCA!L84 -> 49.8 | I57: =IF('Form "A" Office'!J57<1,"",'Form "A" Office'!J57) -> 
B58: ARBCA adder for Tier II WITH DECAY | H58: =ARBCA!L87 -> 2514 | I58: =IF('Form "A" Office'!J58<1,"",'Form "A" Office'!J58) -> 
B59: ARBCA Evaluation with Decay (stand alone evaluation) | H59: =ARBCA!L106 -> 3803 | I59: =IF('Form "A" Office'!J59<1,"",'Form "A" Office'!J59) -> 
B61: CAP Development - CA Evaluation (once per site) | H61: ='Corrective Action Plans'!L17 -> 3761 | I61: =IF('Form "A" Office'!J61<1,"",'Form "A" Office'!J61) -> 
B62: CAP Development - RNA | H62: ='Corrective Action Plans'!L35 -> 1745 | I62: =IF('Form "A" Office'!J62<1,"",'Form "A" Office'!J62) -> 
B63: CAP Development - RNA with MEME | H63: ='Corrective Action Plans'!L53 -> 1860 | I63: =IF('Form "A" Office'!J63<1,"",'Form "A" Office'!J63) -> 
B64: CAP Development - Excavation | H64: ='Corrective Action Plans'!L78 -> 1821 | I64: =IF('Form "A" Office'!J64<1,"",'Form "A" Office'!J64) -> 
B65: CAP Development - Surfactant Injection | H65: ='Corrective Action Plans'!L96 -> 5132 | I65: =IF('Form "A" Office'!J65<1,"",'Form "A" Office'!J65) -> 
B66: CAP Development (Class 1)- DPVE, P&T, SVE | H66: ='Corrective Action Plans'!L114 -> 7684 | I66: =IF('Form "A" Office'!J66<1,"",'Form "A" Office'!J66) -> 
B67: CAP Development (Class 2) - Ozone/SVE, AS/SVE, Liquid Chemox/Biox | H67: ='Corrective Action Plans'!L139 -> 6780 | I67: =IF('Form "A" Office'!J67<1,"",'Form "A" Office'!J67) -> 
B68: CAP Development (Class 3) - Ozone, AS, SVE | H68: ='Corrective Action Plans'!L157 -> 6252 | I68: =IF('Form "A" Office'!J68<1,"",'Form "A" Office'!J68) -> 
B69: CAP Modification (requires detailed attachment) | H69: =IF('PR Form "F" Details'!K68=0,0,'PR Form "F" Details'!K68) -> 0 | I69: =IF('Form "A" Office'!K69="","",'Form "A" Office'!K69) ->  | J69: =IF(H69=0,"",1) ->  | K69: =IF(J69="","",IF(I69="","",H69)) ->  | M69: =IF(I69="","",(I69)) -> 
B70: CAP Implementation Report - Excavation | H70: ='Corrective Action Reports Eng'!L17 -> 2278 | I70: =IF('Form "A" Office'!J70<1,"",'Form "A" Office'!J70) -> 
B71: CAP Implementation Report - Liquid Injections | H71: ='Corrective Action Reports Eng'!L35 -> 2901 | I71: =IF('Form "A" Office'!J71<1,"",'Form "A" Office'!J71) -> 
B72: CA System Installation Report (all Classes same) | H72: ='Corrective Action Reports Eng'!L78 -> 8344 | I72: =IF('Form "A" Office'!J72<1,"",'Form "A" Office'!J72) -> 
B73: SEMR Qtrly DPVE, P&T Reports
B74: 0 | C74: 1-12 wells, BTEX/MTBE/Naphthalene | H74: ='Corrective Action Reports Eng'!L96 -> 5444 | I74: =IF('Form "A" Office'!J74<1,"",'Form "A" Office'!J74) -> 
B75: 0 | C75: 1-12 wells, BTEX/MTBE+PAH | H75: ='Corrective Action Reports Eng'!L114 -> 5706 | I75: =IF('Form "A" Office'!J75<1,"",'Form "A" Office'!J75) -> 
B76: SEMR Qtrly Ozone, AS, SVE, Chemox, Biosparge - Reports
B77: 0 | C77: 1-12 wells, BTEX/MTBE/Naphthalene | H77: ='Corrective Action Reports Eng'!L132 -> 4830 | I77: =IF('Form "A" Office'!J77<1,"",'Form "A" Office'!J77) -> 
B78: 0 | C78: 1-12 wells, BTEX/MTBE+PAH | H78: ='Corrective Action Reports Eng'!L150 -> 5092 | I78: =IF('Form "A" Office'!J78<1,"",'Form "A" Office'!J78) -> 
B79: SEMR adder >12 wells, BTEX/MTBE/Naph | H79: ='Corrective Action Reports Eng'!L152 -> 41.5 | I79: =IF('Form "A" Office'!J79<1,"",'Form "A" Office'!J79) -> 
B80: SEMR adder >12 wells, BTEX/MTBE+PAH | H80: ='Corrective Action Reports Eng'!L155 -> 49.8 | I80: =IF('Form "A" Office'!J80<1,"",'Form "A" Office'!J80) -> 
B90: IDW/Treatment Disposal Plan (stand alone) | H90: ='MISC Plans Reports'!L17 -> 630 | I90: =IF('Form "A" Office'!J90<1,"",'Form "A" Office'!J90) ->  | K90: =IF(J90<1,"",(H90*J90)) -> 
B91: IDW/Treatment Disposal Report (stand alone) | H91: ='MISC Plans Reports'!L35 -> 1012 | I91: =IF('Form "A" Office'!J91<1,"",'Form "A" Office'!J91) -> 
B92: DPVE Pilot Test Plan (not for Slug Test) | H92: ='Aquifer Pilot Pl Rpt Fld'!L53 -> 1179 | I92: =IF('Form "A" Office'!J92<1,"",'Form "A" Office'!J92) ->  | M92: =IF(I90="","",(I90*H90)) -> 
B93: DPVE Pilot Test Report | H93: ='Aquifer Pilot Pl Rpt Fld'!L71 -> 1853 | I93: =IF('Form "A" Office'!J93<1,"",'Form "A" Office'!J93) -> 
B94: AS/SVE or Ozone Pilot Test Plan | H94: ='Aquifer Pilot Pl Rpt Fld'!L89 -> 1179 | I94: =IF('Form "A" Office'!J94<1,"",'Form "A" Office'!J94) -> 
B95: AS/SVE or Ozone Pilot Test Report | H95: ='Aquifer Pilot Pl Rpt Fld'!L107 -> 1853 | I95: =IF('Form "A" Office'!J95<1,"",'Form "A" Office'!J95) -> 
B96: ISCO or Bioremediation Pilot Test Plan | H96: ='Aquifer Pilot Pl Rpt Fld'!L125 -> 1179 | I96: =IF('Form "A" Office'!J96<1,"",'Form "A" Office'!J96) -> 
B97: ISCO or Bioremediation Pilot Test Report | H97: ='Aquifer Pilot Pl Rpt Fld'!L143 -> 2045 | I97: =IF('Form "A" Office'!J97<1,"",'Form "A" Office'!J97) -> 
B98: Specific Capacity Test Plan | H98: ='Aquifer Pilot Pl Rpt Fld'!L17 -> 400 | I98: =IF('Form "A" Office'!J98<1,"",'Form "A" Office'!J98) -> 
B99: Specific Capacity Test Report | H99: ='Aquifer Pilot Pl Rpt Fld'!L35 -> 1536 | I99: =IF('Form "A" Office'!J99<1,"",'Form "A" Office'!J99) -> 
B100: System Purchase Letter | H100: ='Corrective Action Reports Eng'!L53 -> 1452 | I100: =IF('Form "A" Office'!J100<1,"",'Form "A" Office'!J100) -> 
B101: Monitoring Well Abandonment Plan | H101: ='MW Abandon Plan Report Field'!L17 -> 487 | I101: =IF('Form "A" Office'!J101<1,"",'Form "A" Office'!J101) -> 
B102: Monitoring Well Abandonment Report | H102: ='MW Abandon Plan Report Field'!L35 -> 1082 | I102: =IF('Form "A" Office'!J102<1,"",'Form "A" Office'!J102) -> 
B103: System Decommissioning Plan | H103: ='MW Abandon Plan Report Field'!L53 -> 968 | I103: =IF('Form "A" Office'!J103<1,"",'Form "A" Office'!J103) -> 
B104: System Decommissioning Report | H104: ='MW Abandon Plan Report Field'!L78 -> 1926 | I104: =IF('Form "A" Office'!J104<1,"",'Form "A" Office'!J104) -> 
B105: Alternate Water Supply Plan | H105: ='MISC Plans Reports'!L53 -> 757 | I105: =IF('Form "A" Office'!J105<1,"",'Form "A" Office'!J105) -> 
B106: Alternate Water Supply Report | H106: ='MISC Plans Reports'!L78 -> 1178 | I106: =IF('Form "A" Office'!J106<1,"",'Form "A" Office'!J106) -> 
B107: Public Water Line Replacement Plan | H107: ='MISC Plans Reports'!L183 -> 1102 | I107: =IF('Form "A" Office'!J107<1,"",'Form "A" Office'!J107) -> 
B108: Public Water Line Replacement Report | H108: ='MISC Plans Reports'!L201 -> 1638 | I108: =IF('Form "A" Office'!J108<1,"",'Form "A" Office'!J108) -> 
B109: Adjacent Property Owner Information (additional effort) | H109: ='MISC Plans Reports'!L147 -> 328.5 | I109: =IF('Form "A" Office'!J109<1,"",'Form "A" Office'!J109) -> 
B110: UIC Permit Application Preparation | H110: ='MISC Plans Reports'!L96 -> 1331 | I110: =IF('Form "A" Office'!J110<1,"",'Form "A" Office'!J110) -> 
B111: UIC General Permit Application Preparation | H111: ='MISC Plans Reports'!L114 -> 853 | I111: =IF('Form "A" Office'!J111<1,"",'Form "A" Office'!J111) -> 
B112: UIC General Permit Application Renewal | H112: ='MISC Plans Reports'!L279 -> 470 | I112: =IF('Form "A" Office'!J112<1,"",'Form "A" Office'!J112) ->  | K112: =IF(J112<1,"",(H112*J112)) -> 
B113: NPDES General Permit Application Preparation | H113: ='MISC Plans Reports'!L114 -> 853 | I113: =IF('Form "A" Office'!J113<1,"",'Form "A" Office'!J113) ->  | K113: =IF(J113<1,"",(H113*J113)) ->  | M113: =IF(I113="","",(I113*H113)) -> 
B114: NPDES General Permit Application Renewal | H114: ='MISC Plans Reports'!L279 -> 470 | I114: =IF('Form "A" Office'!J114<1,"",'Form "A" Office'!J114) ->  | K114: =IF(J114<1,"",(H114*J114)) ->  | M114: =IF(I115="","",(I115*H115)) -> 
B115: ADEM Solid Waste Profile Preparation | H115: ='MISC Plans Reports'!L132 -> 239.5 | I115: =IF('Form "A" Office'!J115<1,"",'Form "A" Office'!J115) ->  | K115: =IF(J115<1,"",(H115*J115)) ->  | M115: =IF(I116="","",(I116*H116)) -> 
B116: Municipal Sewer Application Process (ADEM or Others) | H116: ='MISC Plans Reports'!L165 -> 517 | I116: =IF('Form "A" Office'!J116<1,"",'Form "A" Office'!J116) ->  | M116: =IF(I117="","",(I117*H117)) -> 
B117: Environmental Covenant preparation | H117: ='MW Abandon Plan Report Field'!L96 -> 611 | I117: =IF('Form "A" Office'!J117<1,"",'Form "A" Office'!J117) ->  | M117: =IF(I118="","",(I118*H118)) -> 
B118: CP Preparation (CP requested by ADEM but not implemented) | H118: ='MISC Plans Reports'!L219 -> 229
B119: Cost Proposal Tier I Addendum Preparation | H119: ='MISC Plans Reports'!L243 -> 115 | I119: =IF('Form "A" Office'!J118<1,"",'Form "A" Office'!J118) -> 
B120: Cost Proposal Tier II Addendum Preparation | H120: ='MISC Plans Reports'!L261 -> 362 | I120: =IF('Form "A" Office'!J119<1,"",'Form "A" Office'!J119) -> 
B122: ADEM Approved Amount | H122: =IF('Form "A" Office'!H120=0,"",'Form "A" Office'!H120) ->  | I122: =IF('Form "A" Office'!J120<1,"",'Form "A" Office'!J120) ->  | K122: =IF(J122="","",IF(H122="","",(H122*J122))) -> 
B123: Other Plan/Report (hours and documentation required) | H123: =IF('PR Form "F" Details'!L25=0,0,'PR Form "F" Details'!L25) -> 0 | I123: =IF('Form "A" Office'!K122="","",'Form "A" Office'!K122) ->  | J123: =IF('PR Form "F" Details'!L25=0,"",1) ->  | K123: =IF(J123="","",IF(I123="","",'PR Form "F" Details'!L25)) ->  | M123: =IF(I123="","",(I123)) -> 
B124: 0
B125: Total CP Approved Amount | E125: =('Form "A" Office'!$K$124) -> 0 | G125: Total Report and Plan Costs | K125: =SUM(K8:K123) -> 0 | M125: =SUM(M9:M123) -> 0

Sheet PR Form "B" Field (hidden)
B2: Part II- Alabama Tank Trust Fund Itemization Form "B" Payment Request
B3: Summary of ATTF Field Scenarios
C5: Scenarios | H5: Unit $ | I5: CP | J5: PR | K5: Requested
B7: Well Installation Oversight time
B8: Type II Porous Media Drilling
B10: Porous material 0-10 feet | H10: =' Field Task'!I4 -> 227 | I10: =IF('Form "B" Field'!J10<1,"",'Form "B" Field'!J10) ->  | K10: =IF(J10<1,"",H10*J10) ->  | M10: =IF(I10="","",(I10*H10)) -> 
B11: Porous material 0-30 feet | H11: =' Field Task'!I6 -> 358 | I11: =IF('Form "B" Field'!J11<1,"",'Form "B" Field'!J11) ->  | M11: =IF(I11="","",(I11*H11)) -> 
B12: Porous material 0-50 feet | H12: =' Field Task'!I8 -> 777 | I12: =IF('Form "B" Field'!J12<1,"",'Form "B" Field'!J12) -> 
B13: Porous material 0-70 feet | H13: =' Field Task'!I10 -> 1004 | I13: =IF('Form "B" Field'!J13<1,"",'Form "B" Field'!J13) -> 
B14: Porous material 0-90 feet | H14: =' Field Task'!I12 -> 1231 | I14: =IF('Form "B" Field'!J14<1,"",'Form "B" Field'!J14) -> 
B15: Porous material 0-110 feet | H15: =' Field Task'!I14 -> 1458 | I15: =IF('Form "B" Field'!J15<1,"",'Form "B" Field'!J15) -> 
B16: Type II Bedrock Drilling
B18: Bedrock 0-20' Air Rotary Drilling | H18: =' Field Task'!I18 -> 358 | I18: =IF('Form "B" Field'!J18<1,"",'Form "B" Field'!J18) ->  | K18: =IF(J18<1,"",H18*J18) -> 
B19: Bedrock 0-40' Air Rotary Drilling | H19: =' Field Task'!I22 -> 489 | I19: =IF('Form "B" Field'!J19<1,"",'Form "B" Field'!J19) ->  | K19: =IF(J19<1,"",H19*J19) -> 
B20: Bedrock 0-60' Air Rotary Drilling | H20: =' Field Task'!I26 -> 716 | I20: =IF('Form "B" Field'!J20<1,"",'Form "B" Field'!J20) -> 
B21: Bedrock 0-80' Air Rotary Drilling | H21: =' Field Task'!I30 -> 943 | I21: =IF('Form "B" Field'!J21<1,"",'Form "B" Field'!J21) -> 
B23: Bedrock 0-20' Core Drilling | H23: =' Field Task'!I20 -> 454 | I23: =IF('Form "B" Field'!J23<1,"",'Form "B" Field'!J23) -> 
B24: Bedrock 0-40' Core Drilling | H24: =' Field Task'!I24 -> 777 | I24: =IF('Form "B" Field'!J24<1,"",'Form "B" Field'!J24) -> 
B25: Bedrock 0-60' Core Drilling | H25: =' Field Task'!I28 -> 908 | I25: =IF('Form "B" Field'!J25<1,"",'Form "B" Field'!J25) -> 
B26: Bedrock 0-80' Core Drilling | H26: =' Field Task'!I32 -> 1135 | I26: =IF('Form "B" Field'!J26<1,"",'Form "B" Field'!J26) -> 
B28: Type III Well Porous (Depth of entire well)
B30: Type III Well 0-20' (entire well in porous material) | H30: =' Field Task'!I36 -> 406 | I30: =IF('Form "B" Field'!J30<1,"",'Form "B" Field'!J30) ->  | K30: =IF(J30<1,"",H30*J30) -> 
B31: Type III Well 0-40' (entire well in porous material) | H31: =' Field Task'!I38 -> 633 | I31: =IF('Form "B" Field'!J31<1,"",'Form "B" Field'!J31) ->  | K31: =IF(J31<1,"",H31*J31) -> 
B32: Type III Well 0-60' (entire well in porous material) | H32: =' Field Task'!I40 -> 860 | I32: =IF('Form "B" Field'!J32<1,"",'Form "B" Field'!J32) ->  | K32: =IF(J32<1,"",H32*J32) -> 
B33: Type III Well 0-80' (entire well in porous material) | H33: =' Field Task'!I42 -> 1087 | I33: =IF('Form "B" Field'!J33<1,"",'Form "B" Field'!J33) ->  | K33: =IF(J33<1,"",H33*J33) -> 
B34: Type III Well 0-100' (entire well in porous material) | H34: =' Field Task'!I44 -> 1314 | I34: =IF('Form "B" Field'!J34<1,"",'Form "B" Field'!J34) ->  | K34: =IF(J34<1,"",H34*J34) -> 
B35: Type III Well Bedrock (Depth of entire well)
B37: Type III Well 0-20' (bedrock encountered) | H37: =' Field Task'!I58 -> 454 | I37: =IF('Form "B" Field'!J37<1,"",'Form "B" Field'!J37) ->  | K37: =IF(J37<1,"",H37*J37) -> 
B38: Type III Well 0-40' (bedrock encountered) | H38: =' Field Task'!I60 -> 681 | I38: =IF('Form "B" Field'!J38<1,"",'Form "B" Field'!J38) ->  | K38: =IF(J38<1,"",H38*J38) -> 
B39: Type III Well 0-60' (bedrock encountered) | H39: =' Field Task'!I62 -> 908 | I39: =IF('Form "B" Field'!J39<1,"",'Form "B" Field'!J39) ->  | K39: =IF(J39<1,"",H39*J39) -> 
B40: Type III Well 0-80' (bedrock encountered) | H40: =' Field Task'!I64 -> 1135 | I40: =IF('Form "B" Field'!J40<1,"",'Form "B" Field'!J40) ->  | K40: =IF(J40<1,"",H40*J40) -> 
B41: Type III Well 0-100' (bedrock encountered) | H41: =' Field Task'!I66 -> 1362 | I41: =IF('Form "B" Field'!J41<1,"",'Form "B" Field'!J41) ->  | K41: =IF(J41<1,"",H41*J41) -> 
B42: Soil Boring Only (no well installed)/Direct Push Oversight
B43: Soil Boring porous material 0-10 feet | H43: =' Field Task'!I70 -> 144 | I43: =IF('Form "B" Field'!J43<1,"",'Form "B" Field'!J43) ->  | K43: =IF(J43<1,"",H43*J43) -> 
B44: Soil Boring porous material 0-30 feet | H44: =' Field Task'!I72 -> 240 | I44: =IF('Form "B" Field'!J44<1,"",'Form "B" Field'!J44) -> 
B45: Soil Boring porous material 0-50 feet | H45: =' Field Task'!I74 -> 336 | I45: =IF('Form "B" Field'!J45<1,"",'Form "B" Field'!J45) -> 
B46: Soil Boring porous material 0-70 feet | H46: =' Field Task'!I76 -> 528 | I46: =IF('Form "B" Field'!J46<1,"",'Form "B" Field'!J46) -> 
B47: Direct Push (Geologist Daily Charge or 8 probe points) | H47: =('Maximum Rates'!D7)*10 -> 960 | I47: =IF('Form "B" Field'!J47<1,"",'Form "B" Field'!J47) -> 
B48: High Resolution Imaging Field Time and Oversight | H48: =' Field Task'!C140 -> 1356 | I48: =IF('Form "B" Field'!J48<1,"",'Form "B" Field'!J48) -> 
B49: Other Field Activities
B50: Well Re-Development (initial development included in drilling oversight costs) | H50: =' Field Task'!I88 -> 105 | I50: =IF('Form "B" Field'!J50<1,"",'Form "B" Field'!J50) ->  | K50: =IF(J50<1,"",H50*J50) -> 
B51: Slug Tests | H51: =' Field Task'!I86 -> 332 | I51: =IF('Form "B" Field'!J51<1,"",'Form "B" Field'!J51) -> 
B52: Private/Public Water Well Inventory (up to 5 wells) | H52: =' Field Task'!I82 -> 384 | I52: =IF('Form "B" Field'!J52<1,"",'Form "B" Field'!J52) -> 
B53: Site Survey during Investigation (not a Licensed Surveryor) | H53: =' Field Task'!I84 -> 280 | I53: =IF('Form "B" Field'!J53<1,"",'Form "B" Field'!J53) -> 
B54: RW Vault Abandonment Oversight | H54: =' Field Task'!I127 -> 96 | I54: =IF('Form "B" Field'!J54<1,"",'Form "B" Field'!J54) ->  | M54: =IF(I54="","",(I54*H54)) -> 
B55: MW/RW/IW Abandonment Oversight for Overdrilling | H55: =' Field Task'!I123 -> 288 | I55: =IF('Form "B" Field'!J55<1,"",'Form "B" Field'!J55) -> 
B56: MW/RW/IW Abandonment Oversight for Grouting in Casing | H56: =' Field Task'!I125 -> 144 | I56: =IF('Form "B" Field'!J56<1,"",'Form "B" Field'!J56) -> 
B57: Monitoring Well Pad/Cover Repair/Replacement | H57: =' Field Task'!I80 -> 140 | I57: =IF('Form "B" Field'!J57<1,"",'Form "B" Field'!J57) -> 
B58: Groundwater Sampling Set-up | H58: =' Field Task'!I90 -> 140 | I58: =IF('Form "B" Field'!J58<1,"",'Form "B" Field'!J58) -> 
B59: Purge/Development Water Handling (see Basis) | H59: =' Field Task'!I92 -> 105 | I59: =IF('Form "B" Field'!J59<1,"",'Form "B" Field'!J59) -> 
B60: Gauging Well (no sampling) | H60: =' Field Task'!I94 -> 17.5 | I60: =IF('Form "B" Field'!J60<1,"",'Form "B" Field'!J60) -> 
B61: Groundwater Sampling and Gauging 2" Well | H61: =' Field Task'!I96 -> 70 | I61: =IF('Form "B" Field'!J61<1,"",'Form "B" Field'!J61) -> 
B62: Groundwater Sampling and Gauging 4" Well | G62: =SUM(J61:J63) -> 0 | H62: =' Field Task'!I98 -> 80.5 | I62: =IF('Form "B" Field'!J62<1,"",'Form "B" Field'!J62) -> 
B63: Groundwater Sampling and Gauging 6" Well | G63: =(SUM(J61:J63)*'Maximum Rates'!C18) -> 0 | H63: =' Field Task'!I100 -> 87.5 | I63: =IF('Form "B" Field'!J63<1,"",'Form "B" Field'!J63) -> 
B64: Sample Public Well | H64: =' Field Task'!I102 -> 140 | I64: =IF('Form "B" Field'!J64<1,"",'Form "B" Field'!J64) -> 
B65: Sample Private Well | H65: =' Field Task'!I104 -> 105 | I65: =IF('Form "B" Field'!J65<1,"",'Form "B" Field'!J65) -> 
B66: Sample Stream (up to 3 samples) | H66: =' Field Task'!I106 -> 105 | I66: =IF('Form "B" Field'!J66<1,"",'Form "B" Field'!J66) -> 
B67: Soil Sampling Setup (1-4 wells) | H67: =' Field Task'!I108 -> 192 | I67: =IF('Form "B" Field'!J67<1,"",'Form "B" Field'!J67) -> 
B68: Soil Sampling Setup adder (each additional group of 4 wells) | H68: =' Field Task'!I110 -> 96 | I68: =IF('Form "B" Field'!J68<1,"",'Form "B" Field'!J68) -> 
B69: MEME Event/Pilot Test/Injection Event (hourly rate) | H69: ='Maximum Rates'!D9 -> 70 | I69: =IF('Form "B" Field'!J69<1,"",'Form "B" Field'!J69) -> 
B70: DPVE Pilot Test/Aquifer Test (hourly rate) | H70: =('Maximum Rates'!D7)+'Maximum Rates'!D9 -> 166 | I70: =IF('Form "B" Field'!J70<1,"",'Form "B" Field'!J70) -> 
B71: SVE/ AS/ Ozone Pilot Test | H71: =' Field Task'!I113 -> 864 | I71: =IF('Form "B" Field'!J71<1,"",'Form "B" Field'!J71) -> 
B72: Site Visit by PE/PG (CAP Development,etc) | H72: ='Corrective Action Plans'!L175 -> 1056 | I72: =IF('Form "B" Field'!J72<1,"",'Form "B" Field'!J72) -> 
B73: System Installation Oversight (up to 7 days) | H73: =' Field Task'!C130 -> 9616 | I73: =IF('Form "B" Field'!J73<1,"",'Form "B" Field'!J73) -> 
B74: System Installation Oversight Adder (per day over 7 doc req.) | H74: =' Field Task'!C135 -> 1075 | I74: =IF('Form "B" Field'!J74<1,"",'Form "B" Field'!J74) -> 
B75: System Start up | H75: =' Field Task'!I130 -> 1840 | I75: =IF('Form "B" Field'!J75<1,"",'Form "B" Field'!J75) -> 
B76: System Decommissioning | H76: =' Field Task'!I135 -> 1141 | I76: =IF('Form "B" Field'!J76<1,"",'Form "B" Field'!J76) -> 
B77: DPVE, Pump and Treat O&M 3 months | H77: =' Field Task'!I115 -> 4280 | I77: =IF('Form "B" Field'!J77<1,"",'Form "B" Field'!J77) -> 
B78: DPVE, Pump and Treat O&M 4 months | H78: =' Field Task'!I119 -> 5400 | I78: =IF('Form "B" Field'!J78<1,"",'Form "B" Field'!J78) -> 
B79: Ozone, biosparge, SVE, biovent and Air Sparge O&M 3 months | H79: =' Field Task'!I117 -> 2140 | I79: =IF('Form "B" Field'!J79<1,"",'Form "B" Field'!J79) ->  | M79: =IF(I79="","",(I79*H79)) -> 
B80: Ozone, biosparge, SVE, biovent and Air Sparge O&M 4 months | H80: =' Field Task'!I121 -> 2700 | I80: =IF('Form "B" Field'!J80<1,"",'Form "B" Field'!J80) ->  | M80: =IF(I80="","",(I80*H80)) -> 
B81: ADEM Approved Amount | I81: =IF('Form "B" Field'!J81<1,"",'Form "B" Field'!J81) ->  | K81: =IF(J81<1,"",IF('Form "B" Field'!G81=0,"",IF('Form "B" Field'!G81<H81,'Form "B" Field'!G81,H81*J81))) -> 
B82: Other Field Work not listed (hours and documentation required) | H82: =IF('PR Form "F" Details'!L44=0,0,'PR Form "F" Details'!L44) -> 0 | I82: =IF('Form "F" Details'!K45=0,"",'Form "F" Details'!K45) ->  | J82: =IF('PR Form "F" Details'!L44=0,"",1) ->  | K82: =IF(J82="","",IF(I82="","",H82)) ->  | M82: =IF(I82="","",(I82*H82)) -> 
B83: Emergency Response | H83: =IF('PR Form "F" Details'!K117=0,0,'PR Form "F" Details'!K117) -> 0 | I83: =IF('Form "F" Details'!K116=0,"",'Form "F" Details'!K116) ->  | J83: =IF('PR Form "F" Details'!K117=0,"",1) ->  | K83: =IF(J83="","",IF(I83="","",H83)) ->  | M83: =IF(I83="","",(I83*H83)) -> 
B84: Travel
B85: Mileage Rate | I85: =IF('Form "B" Field'!J85="","",'Form "B" Field'!J85) ->  | M85: =IF(I85="","",(I85*H85)) -> 
B86: Mileage (One way office to site) | I86: =IF('Form "B" Field'!J86="","",'Form "B" Field'!J86) -> 
C87: Number of round trips to site | I87: =IF('Form "B" Field'!J87="","",'Form "B" Field'!J87) ->  | K87: =IF(J87="","",((J86*2)*J85)*J87) ->  | M87: =IF(I86="","",(((I86*2)*('Form "B" Field'!$J$85))*I87)) -> 
B88: Other Mileage (enter total mileage not including office to site) | H88: =J85 -> 0 | I88: =IF('Form "B" Field'!J88="","",'Form "B" Field'!J88) ->  | K88: =IF(J88="","",(J88*J85)) ->  | M88: =IF(I88="","",((I88*('Form "B" Field'!$J$85))*I88)) -> 
B89: Travel Time
B90: Technicians(s)-travel time | G90: ='Maximum Rates'!D10 -> 70 | H90: /hr | I90: =IF('Form "B" Field'!J90="","",'Form "B" Field'!J90) ->  | K90: =IF(J90="","",'Maximum Rates'!D9*J90) ->  | L90: ='Field Breakout'!P76 -> 0 | M90: =IF(I90="","",(I90*G90)) -> 
B91: Geologist/Engineer-travel time | G91: ='Maximum Rates'!D7 -> 96 | H91: /hr | I91: =IF('Form "B" Field'!J91="","",'Form "B" Field'!J91) ->  | K91: =IF(J91="","",'Maximum Rates'!D7*J91) ->  | L91: ='Field Breakout'!O76 -> 0 | M91: =IF(I91="","",(I91*G91)) -> 
B92: PG/PE-travel time | G92: ='Maximum Rates'!D6 -> 132 | H92: /hr | I92: =IF('Form "B" Field'!J92="","",'Form "B" Field'!J92) ->  | K92: =IF(J92="","",'Maximum Rates'!D6*J92) ->  | L92: ='Field Breakout'!N76 -> 0 | M92: =IF(I92="","",(I92*G92)) -> 
B93: Project Manager-travel time | F93: =((((J86*2)+J88)/50)*J90)+((((J86*2)+J88)/50*J91)+((((J86*2)+J88)/50)*J92)+((((J86*2)+J88)/50)*J93)) -> 0 | G93: ='Maximum Rates'!D5 -> 115 | H93: /hr | I93: =IF('Form "B" Field'!J93="","",'Form "B" Field'!J93) ->  | K93: =IF(J93="","",'Maximum Rates'!D5*J93) ->  | L93: ='Field Breakout'!M76 -> 0 | M93: =IF(I93="","",(I93*G93)) -> 
B94: Per Diem
B95: Per diem (6-12hrs) | G95: ='Maximum Rates'!D13 -> 12.75 | H95: /day | I95: =IF('Form "B" Field'!J95>0,'Form "B" Field'!J95,"") ->  | J95: =IF(('PR Form "E" Per Diem'!K24+'PR Form "E" Per Diem'!K77+'PR Form "E" Per Diem'!K130)=0,"",'PR Form "E" Per Diem'!K24+'PR Form "E" Per Diem'!K77+'PR Form "E" Per Diem'!K130) ->  | K95: =IF(J95="","",IF((J86+J88)<50,0,(IF(J95>=1,J95*G95,0)))) ->  | M95: =IF(I95="","",(I95*G95)) -> 
B96: Per diem (greater than 12hrs) | G96: ='Maximum Rates'!D14 -> 34 | H96: /ext. day | I96: =IF('Form "B" Field'!J96>0,'Form "B" Field'!J96,"") ->  | J96: =IF(('PR Form "E" Per Diem'!K36+'PR Form "E" Per Diem'!K89+'PR Form "E" Per Diem'!K142)=0,"",'PR Form "E" Per Diem'!K36+'PR Form "E" Per Diem'!K89+'PR Form "E" Per Diem'!K142) ->  | K96: =IF(J96="","",IF((J86+J88)<50,0,(IF(J96>=1,J96*G96,0)))) ->  | M96: =IF(I96="","",(I96*G96)) -> 
B97: Per diem 2 days (overnight)(invoice required) | G97: ='Maximum Rates'!D15 -> 85 | H97: /day | I97: =IF('Form "B" Field'!J97>0,'Form "B" Field'!J97,"") ->  | J97: =IF('PR Form "E" Per Diem'!N3=0,"",'PR Form "E" Per Diem'!N3) ->  | K97: =IF(J97="","",IF((J86+J88)<50,0,(IF(J97>=1,J97*G97,0)))) ->  | M97: =IF(I97="","",(I97*G97)) -> 
B98: Per diem >2 consecutive days (overnight)(invoice required) | G98: ='Maximum Rates'!D16 -> 100 | H98: /day | I98: =IF('Form "B" Field'!J98>0,'Form "B" Field'!J98,"") ->  | J98: =IF('PR Form "E" Per Diem'!O3=0,"",'PR Form "E" Per Diem'!O3) ->  | K98: =IF(J98="","",IF((J86+J88)<50,0,(IF(J98>=1,J98*G98,0)))) ->  | M98: =IF(I98="","",(I98*G98)) -> 
B99: Equipment and Equipment Kits
B100: 55-Gallon Drums | G100: ='Maximum Rates'!C19 -> 75 | H100: /drum | I100: =IF('Form "B" Field'!J101<1,"",'Form "B" Field'!J101) ->  | K100: =IF(J100<1,"",(J100*G100)) ->  | M100: =IF(I100="","",(I100*G100)) -> 
B101: Sampling Expendables | G101: ='Maximum Rates'!C20 -> 55 | H101: /sow | I101: =IF('Form "B" Field'!J102<1,"",'Form "B" Field'!J102) ->  | M101: =IF(I101="","",(I101*G101)) -> 
B102: Expendables O&M | G102: ='Maximum Rates'!C36 -> 28 | H102: /day | I102: =IF('Form "B" Field'!J103<1,"",'Form "B" Field'!J103) -> 
B103: Monitoring Well Development | G103: =Equipment!J151 -> 83 | H103: /day | I103: =IF('Form "B" Field'!J104<1,"",'Form "B" Field'!J104) -> 
B104: Monitoring Well/ Boring Installation | G104: =Equipment!H28 -> 66 | H104: /day | I104: =IF('Form "B" Field'!J105<1,"",'Form "B" Field'!J105) -> 
B105: Monitoring Well/ Boring Abandonment | G105: =Equipment!H28 -> 66 | H105: /day | I105: =IF('Form "B" Field'!J106<1,"",'Form "B" Field'!J106) -> 
B106: Encore Samplers | G106: ='Maximum Rates'!C42 -> 10 | H106: /sampler | I106: =IF('Form "B" Field'!J107<1,"",'Form "B" Field'!J107) -> 
B107: Groundwater Monitoring | G107: =Equipment!H77 -> 176 | H107: /day | I107: =IF('Form "B" Field'!J108<1,"",'Form "B" Field'!J108) -> 
B108: Bailers | F108: =SUM(K100:K117) -> 0 | G108: ='Maximum Rates'!C18 -> 8 | H108: /bailer | I108: =IF('Form "B" Field'!J109<1,"",'Form "B" Field'!J109) -> 
B109: MEME Event | G109: =Equipment!H102 -> 77 | H109: /event | I109: =IF('Form "B" Field'!J110<1,"",'Form "B" Field'!J110) -> 
B110: Free Product Bailing | G110: =Equipment!J126 -> 66 | H110: /sow | I110: =IF('Form "B" Field'!J111<1,"",'Form "B" Field'!J111) -> 
B111: DPVE , SVE, AS, P&T O&M | G111: =Equipment!J102 -> 160 | H111: /day | I111: =IF('Form "B" Field'!J112<1,"",'Form "B" Field'!J112) -> 
B112: Ozone Sparge O&M | G112: =Equipment!H126 -> 83 | H112: /day | I112: =IF('Form "B" Field'!J113<1,"",'Form "B" Field'!J113) -> 
B113: DPVE Pilot Test | G113: =Equipment!J77 -> 77 | H113: /sow | I113: =IF('Form "B" Field'!J114<1,"",'Form "B" Field'!J114) -> 
B114: Pumping Test | G114: =Equipment!J53 -> 182 | H114: /sow | I114: =IF('Form "B" Field'!J115<1,"",'Form "B" Field'!J115) -> 
B115: Specific Capacity | G115: =Equipment!H53 -> 72 | H115: /sow | I115: =IF('Form "B" Field'!J116<1,"",'Form "B" Field'!J116) -> 
B116: Slug Test | G116: =Equipment!J28 -> 121 | H116: /sow | I116: =IF('Form "B" Field'!J117<1,"",'Form "B" Field'!J117) -> 
B117: Initial Abatement | G117: =Equipment!H151 -> 55 | H117: /day | I117: =IF('Form "B" Field'!J118<1,"",'Form "B" Field'!J118) -> 
B119: Postage / Shipping and Copying (plans reports, ADEM and owner) | G119: ='Maximum Rates'!D53 -> 85 | H119: /sow | I119: =IF('Form "B" Field'!J120<1,"",'Form "B" Field'!J120) ->  | K119: =IF(J119<1,"",(J119*G119)) -> 
B120: Postage / Shipping (Sample Shipping) | G120: ='Maximum Rates'!D54 -> 50 | I120: =IF('Form "B" Field'!J121<1,"",'Form "B" Field'!J121) ->  | K120: =IF(J120<1,"",(J120*G120)) -> 
B121: Postage / Shipping (documentation required) | F121: =SUM(K119:K121) -> 0 | I121: =IF('Form "B" Field'!J122<1,"",'Form "B" Field'!J122) ->  | K121: =IF(J121<1,"",(J121*H121)) -> 
B122: Analytical Samples
D123: method | F123: Approved Amount Per Sample | G123: "CP" Number of Samples | H123: "PR" Number of Samples | I123: Actual Amount Per Sample | J123: Pass Through
M124: =IF(I124="","",(I124*H124)) -> 
M125: =IF(I125="","",(I125*H125)) -> 
B126: BTEX/MTBE/Naph (water) | D126: 8021 | F126: =IF(G126="","",('Form "B" Field'!F127)) ->  | G126: =IF('Form "B" Field'!J127<>"",'Form "B" Field'!J127,"") ->  | K126: =IF(I126="","",IF(J126="",(I126*H126),((I126*(1+J126))*H126))) ->  | M126: =IF(G126="","",((G126*F126)*(1+'Form "B" Field'!I127))) -> 
B127: BTEX/MTBE/Naph (soil) | D127: 8021 | F127: =IF(G127="","",('Form "B" Field'!F128)) ->  | G127: =IF('Form "B" Field'!J128<>"",'Form "B" Field'!J128,"") ->  | K127: =IF(I127="","",IF(J127="",(I127*H127),((I127*(1+J127))*H127))) ->  | M127: =IF(G127="","",((G127*F127)*(1+'Form "B" Field'!I128))) -> 
B128: PAH (water) | D128: 8100 | F128: =IF(G128="","",('Form "B" Field'!F129)) ->  | G128: =IF('Form "B" Field'!J129<>"",'Form "B" Field'!J129,"") ->  | M128: =IF(G128="","",((G128*F128)*(1+'Form "B" Field'!I129))) -> 
B129: PAH (soil) | D129: 8100 | F129: =IF(G129="","",('Form "B" Field'!F130)) ->  | G129: =IF('Form "B" Field'!J130<>"",'Form "B" Field'!J130,"") ->  | M129: =IF(G129="","",((G129*F129)*(1+'Form "B" Field'!I130))) -> 
B130: Lead (water) | D130: 239.2 | F130: =IF(G130="","",('Form "B" Field'!F131)) ->  | G130: =IF('Form "B" Field'!J131<>"",'Form "B" Field'!J131,"") ->  | M130: =IF(G130="","",((G130*F130)*(1+'Form "B" Field'!I131))) -> 
B131: Lead (soil) | D131: 239.2 | F131: =IF(G131="","",('Form "B" Field'!F132)) ->  | G131: =IF('Form "B" Field'!J132<>"",'Form "B" Field'!J132,"") ->  | M131: =IF(G131="","",((G131*F131)*(1+'Form "B" Field'!I132))) -> 
B132: TPH | D132: 418.1 | F132: =IF(G132="","",('Form "B" Field'!F133)) ->  | G132: =IF('Form "B" Field'!J133<>"",'Form "B" Field'!J133,"") ->  | M132: =IF(G132="","",((G132*F132)*(1+'Form "B" Field'!I133))) -> 
B133: PAH Water Supply | D133: 525.1 | F133: =IF(G133="","",('Form "B" Field'!F134)) ->  | G133: =IF('Form "B" Field'!J134<>"",'Form "B" Field'!J134,"") ->  | M133: =IF(G133="","",((G133*F133)*(1+'Form "B" Field'!I134))) -> 
B134: VOC Water Supply | D134: 8260 | F134: =IF(G134="","",('Form "B" Field'!F135)) ->  | G134: =IF('Form "B" Field'!J135<>"",'Form "B" Field'!J135,"") ->  | M134: =IF(G134="","",((G134*F134)*(1+'Form "B" Field'!I135))) -> 
B135: Dibromoethane 1,2 EDB | D135: 524.2 | F135: =IF(G135="","",('Form "B" Field'!F136)) ->  | G135: =IF('Form "B" Field'!J136<>"",'Form "B" Field'!J136,"") ->  | M135: =IF(G135="","",((G135*F135)*(1+'Form "B" Field'!I136))) -> 
B136: Dichloroethane 1,2 EDC | D136: 8260B | F136: =IF(G136="","",('Form "B" Field'!F137)) ->  | G136: =IF('Form "B" Field'!J137<>"",'Form "B" Field'!J137,"") ->  | M136: =IF(G136="","",((G136*F136)*(1+'Form "B" Field'!I137))) -> 
B137: tert-Butyl alcohol | D137: 8260 | F137: =IF(G137="","",('Form "B" Field'!F138)) ->  | G137: =IF('Form "B" Field'!J138<>"",'Form "B" Field'!J138,"") ->  | M137: =IF(G137="","",((G137*F137)*(1+'Form "B" Field'!I138))) -> 
B138: Ethanol | D138: 8260 | F138: =IF(G138="","",('Form "B" Field'!F139)) ->  | G138: =IF('Form "B" Field'!J139<>"",'Form "B" Field'!J139,"") ->  | M138: =IF(G138="","",((G138*F138)*(1+'Form "B" Field'!I139))) -> 
B139: Oil & Grease | F139: =IF(G139="","",('Form "B" Field'!F140)) ->  | G139: =IF('Form "B" Field'!J140<>"",'Form "B" Field'!J140,"") ->  | M139: =IF(G139="","",((G139*F139)*(1+'Form "B" Field'!I140))) -> 
B140: Air Samples | F140: =IF(G140="","",('Form "B" Field'!F141)) ->  | G140: =IF('Form "B" Field'!J141<>"",'Form "B" Field'!J141,"") ->  | M140: =IF(G140="","",((G140*F140)*(1+'Form "B" Field'!I141))) -> 
B141: Dry Bulk Density | F141: =IF(G141="","",('Form "B" Field'!F142)) ->  | G141: =IF('Form "B" Field'!J142<>"",'Form "B" Field'!J142,"") ->  | M141: =IF(G141="","",((G141*F141)*(1+'Form "B" Field'!I142))) -> 
B142: Grain Size Analysis | F142: =IF(G142="","",('Form "B" Field'!F143)) ->  | G142: =IF('Form "B" Field'!J143<>"",'Form "B" Field'!J143,"") ->  | M142: =IF(G142="","",((G142*F142)*(1+'Form "B" Field'!I143))) -> 
B143: Specific Gravity | F143: =IF(G143="","",('Form "B" Field'!F144)) ->  | G143: =IF('Form "B" Field'!J144<>"",'Form "B" Field'!J144,"") ->  | M143: =IF(G143="","",((G143*F143)*(1+'Form "B" Field'!I144))) -> 
B144: Moisture Content | F144: =IF(G144="","",('Form "B" Field'!F145)) ->  | G144: =IF('Form "B" Field'!J145<>"",'Form "B" Field'!J145,"") ->  | L144: 0.1 | M144: =IF(G144="","",((G144*F144)*(1+'Form "B" Field'!I145))) -> 
B145: Nitrate | F145: =IF(G145="","",('Form "B" Field'!F146)) ->  | G145: =IF('Form "B" Field'!J146<>"",'Form "B" Field'!J146,"") ->  | L145: 0.05 | M145: =IF(G145="","",((G145*F145)*(1+'Form "B" Field'!I146))) -> 
B146: Sulfate | F146: =IF(G146="","",('Form "B" Field'!F147)) ->  | G146: =IF('Form "B" Field'!J147<>"",'Form "B" Field'!J147,"") ->  | M146: =IF(G146="","",((G146*F146)*(1+'Form "B" Field'!I147))) -> 
B147: Iron | F147: =IF(G147="","",('Form "B" Field'!F148)) ->  | G147: =IF('Form "B" Field'!J148<>"",'Form "B" Field'!J148,"") ->  | M147: =IF(G147="","",((G147*F147)*(1+'Form "B" Field'!I148))) -> 
B148: FOM (ASTM 2947) | F148: =IF(G148="","",('Form "B" Field'!F149)) ->  | G148: =IF('Form "B" Field'!J149<>"",'Form "B" Field'!J149,"") ->  | M148: =IF(G148="","",((G148*F147)*(1+'Form "B" Field'!I149))) -> 
B149: Total Organic Carbon (Walkley Black) | F149: =IF(G149="","",('Form "B" Field'!F150)) ->  | G149: =IF('Form "B" Field'!J150<>"",'Form "B" Field'!J150,"") ->  | M149: =IF(G149="","",((G149*F149)*(1+'Form "B" Field'!I150))) -> 
B150: Chloride | F150: =IF(G150="","",('Form "B" Field'!F151)) ->  | G150: =IF('Form "B" Field'!J151<>"",'Form "B" Field'!J151,"") ->  | M150: =IF(G150="","",((G150*F150)*(1+'Form "B" Field'!I151))) -> 
B151: Foaming Agent | F151: =IF(G151="","",('Form "B" Field'!F152)) ->  | G151: =IF('Form "B" Field'!J152<>"",'Form "B" Field'!J152,"") ->  | M151: =IF(G151="","",((G151*F151)*(1+'Form "B" Field'!I152))) -> 
B152: Total Dissolved Solids | F152: =IF(G152="","",('Form "B" Field'!F153)) ->  | G152: =IF('Form "B" Field'!J153<>"",'Form "B" Field'!J153,"") ->  | M152: =IF(G152="","",((G152*F152)*(1+'Form "B" Field'!I153))) -> 
B153: Other | F153: =IF(G153="","",('Form "B" Field'!F154)) ->  | G153: =IF('Form "B" Field'!J154<>"",'Form "B" Field'!J154,"") ->  | M153: =IF(G153="","",((G153*F153)*(1+'Form "B" Field'!I154))) -> 
B154: Other | F154: =IF(G154="","",('Form "B" Field'!F155)) ->  | G154: =IF('Form "B" Field'!J155<>"",'Form "B" Field'!J155,"") ->  | M154: =IF(G154="","",((G154*F154)*(1+'Form "B" Field'!I155))) -> 
B155: Other | F155: =IF(G155="","",('Form "B" Field'!F156)) ->  | G155: =IF('Form "B" Field'!J156<>"",'Form "B" Field'!J156,"") ->  | M155: =IF(G155="","",((G155*F155)*(1+'Form "B" Field'!I156))) -> 
M156: =IF(I156="","",(I156*H156)) -> 
B159: waterbtex | C159: soilbtex | D159: PAHsoil | E159: PAHwater | F159: 239.2 | G159: TPHsoil | I159: PAHsupply | J159: VOCsupply
B160: 8021 | E160: 610 | F160: 6020 | G160: 418.1 | I160: 525.1 | J160: 8021 | M160: 0
B161: 8260 | C161: 8021 | D161: 8310 | E161: 8310 | F161: 7421 | G161: 5520 | J161: 8260
B162: 602 | C162: 8260 | D162: 8270 | E162: 8270 | G162: 9071 | I162: EDB
C163: 8015D | G163: 8015 GRO | H163: 8021 | I163: 8011 | M163: 64256231
G164: 8015 DRO | H164: 8260 | I164: 504.1 | M164: 4163866
H165: 502.2 | I165: 524.2 | M165: 263253.24
H166: 524.2 | I166: 8260 | M166: 4329892
H167: =SUM(K126:K157) -> 0
B168: Total CP Approved Amount | F168: =('Form "B" Field'!$K$167) -> 0 | G168: Total Field Costs | K168: =SUM(K10:K155) -> 0 | M168: =SUM(M10:M155) -> 0

Sheet Postage shipping (hidden)
A4: Postage/Shipping class I-All Plans and Reports to Owners and the A.D.E.M
B5: includes any and all office expenses, copies, CD's and changes | G5: ='Maximum Rates'!D53 -> 85
A7: Postage/Shipping class II- samples shipped to the lab soil or water per shipment
B8: includes any and all associated expenses and shipping options | G8: ='Maximum Rates'!D54 -> 50
A10: Postage Special Circumstance-documentation to be supplied

Sheet Equipment (hidden)
A1: Item Name | E1: Rate ($)/day | F1: Units | G1: Boring/Well Installation/ Abandonment | I1: Slug Test
G2: # days | H2: Total | I2: # days | J2: Total
A3: Air Compressor | E3: ='Maximum Rates'!$C$21 -> 28 | F3: /day | H3: =($E3)*G3 -> 0 | J3: =($E3)*I3 -> 0
A4: Combustible Gas Indicator/PID/FID | E4: ='Maximum Rates'!$C$22 -> 55 | F4: /day | G4: 1 | H4: =E4*G4 -> 55 | J4: =($E4)*I4 -> 0
A5: Conductivity Meter | E5: ='Maximum Rates'!$C$23 -> 11 | F5: /day | H5: 0 | J5: 0
A6: Digital Manometer | E6: ='Maximum Rates'!$C$24 -> 11 | F6: /day | H6: 0 | J6: 0
A7: Dissolved Oxygen Meter | E7: ='Maximum Rates'!$C$25 -> 11 | F7: /day | H7: 0 | J7: 0
F8: /day | H8: 0 | J8: 0
A9: Generator (5Kw) | E9: ='Maximum Rates'!$C$27 -> 28 | F9: /day | H9: 0 | J9: 0
A10: Submersible Pump | E10: ='Maximum Rates'!$C$28 -> 33 | F10: /day | H10: 0 | J10: 0
A11: In-Situ Transducer | E11: ='Maximum Rates'!$C$29 -> 110 | F11: /day | H11: 0 | I11: 1 | J11: 110
A12: Interface Probe/Water Level | E12: ='Maximum Rates'!$C$30 -> 11 | F12: /day | G12: 1 | H12: 11 | I12: 1 | J12: 11
A13: Air Flow Meter | E13: ='Maximum Rates'!$C$31 -> 11 | F13: /day | H13: 0 | J13: 0
A14: Multimeter | E14: ='Maximum Rates'!$C$38 -> 110 | F14: /day | H14: 0 | J14: 0
A15: Ozone Meter/Sensor | E15: ='Maximum Rates'!$C$33 -> 11 | F15: /day | H15: 0 | J15: 0
F16: /day | H16: 0 | J16: 0
A17: pH/Temperature Meter | E17: ='Maximum Rates'!$C$35 -> 11 | F17: /day | H17: 0 | J17: 0
A18: Gloves | E18: ='Maximum Rates'!$C$26 -> 6 | F18: /day | H18: 0 | J18: 0
A19: Redox/ORP Meter | E19: ='Maximum Rates'!$C$37 -> 11 | F19: /day | H19: 0 | J19: 0
F20: /day | H20: 0 | J20: 0
A21: Thermal Anemometer | E21: ='Maximum Rates'!$C$39 -> 11 | F21: /day | H21: 0 | J21: 0
A22: Turbidity Meter | E22: ='Maximum Rates'!$C$40 -> 11 | F22: /day | H22: 0 | J22: 0
F23: /day | H23: 0 | J23: 0
D28: Total | H28: =SUM(H3:H27) -> 66 | J28: =SUM(J3:J27) -> 121
A30: Item Name | E30: Rate ($)/day | F30: Units | G30: Specific Capacity Test | I30: Pumping Test
G31: # days | H31: Total | I31: # days | J31: Total
A32: Air Compressor | E32: ='Maximum Rates'!$C$21 -> 28 | F32: /day | H32: =($E32)*G32 -> 0 | J32: =($E32)*I32 -> 0
A33: Combustible Gas Indicator/PID/FID | E33: ='Maximum Rates'!$C$22 -> 55 | F33: /day | H33: =($E33)*G33 -> 0 | J33: =($E33)*I33 -> 0
A34: Conductivity Meter | E34: ='Maximum Rates'!$C$23 -> 11 | F34: /day | H34: 0 | J34: 0
A35: Digital Manometer | E35: ='Maximum Rates'!$C$24 -> 11 | F35: /day | H35: 0 | J35: 0
A36: Dissolved Oxygen Meter | E36: ='Maximum Rates'!$C$25 -> 11 | F36: /day | H36: 0 | J36: 0
F37: /day | H37: 0 | J37: 0
A38: Generator (5Kw) | E38: ='Maximum Rates'!$C$27 -> 28 | F38: /day | G38: 1 | H38: 28 | I38: 1 | J38: 28
A39: Submersible Pump | E39: ='Maximum Rates'!$C$28 -> 33 | F39: /day | G39: 1 | H39: 33 | I39: 1 | J39: 33
A40: In-Situ Transducer | E40: ='Maximum Rates'!$C$29 -> 110 | F40: /day | H40: 0 | I40: 1 | J40: 110
A41: Interface Probe/Water Level | E41: ='Maximum Rates'!$C$30 -> 11 | F41: /day | G41: 1 | H41: 11 | I41: 1 | J41: 11
A42: Air Flow Meter | E42: ='Maximum Rates'!$C$31 -> 11 | F42: /day | H42: 0 | J42: 0
A43: Multimeter | E43: ='Maximum Rates'!$C$38 -> 110 | F43: /day | H43: 0 | J43: 0
A44: Ozone Meter/Sensor | E44: ='Maximum Rates'!$C$33 -> 11 | F44: /day | H44: 0 | J44: 0
F45: /day | H45: 0 | J45: 0
A46: pH/Temperature Meter | E46: ='Maximum Rates'!$C$35 -> 11 | F46: /day | H46: 0 | J46: 0
A47: Gloves | E47: ='Maximum Rates'!$C$26 -> 6 | F47: /day | H47: 0 | J47: 0
A48: Redox/ORP Meter | E48: ='Maximum Rates'!$C$37 -> 11 | F48: /day | H48: 0 | J48: 0
F49: /day | H49: 0 | J49: 0
A50: Thermal Anemometer | E50: ='Maximum Rates'!$C$39 -> 11 | F50: /day | H50: 0 | J50: 0
A51: Turbidity Meter | E51: ='Maximum Rates'!$C$40 -> 11 | F51: /day | H51: 0 | J51: 0
F52: /day | H52: 0 | J52: 0
D53: Total | H53: =SUM(H32:H52) -> 72 | J53: =SUM(J32:J52) -> 182
A54: Item Name | E54: Rate ($)/day | F54: Units | G54: Groundwater Monitoring | I54: DPVE Pilot Test
G55: # days | H55: Total | I55: # days | J55: Total
A56: Air Compressor | E56: ='Maximum Rates'!$C$21 -> 28 | F56: /day | H56: =($E56)*G56 -> 0 | J56: =($E56)*I56 -> 0
A57: Combustible Gas Indicator/PID/FID | E57: ='Maximum Rates'!$C$22 -> 55 | F57: /day | G57: 1 | H57: =($E57)*G57 -> 55 | I57: 1 | J57: =($E57)*I57 -> 55
A58: Conductivity Meter | E58: ='Maximum Rates'!$C$23 -> 11 | F58: /day | H58: 0 | J58: 0
A59: Digital Manometer | E59: ='Maximum Rates'!$C$24 -> 11 | F59: /day | H59: 0 | I59: 1 | J59: 11
A60: Dissolved Oxygen Meter | E60: ='Maximum Rates'!$C$25 -> 11 | F60: /day | H60: 0 | J60: 0
F61: /day | H61: 0 | J61: 0
A62: Generator (5Kw) | E62: ='Maximum Rates'!$C$27 -> 28 | F62: /day | H62: 0 | J62: 0
A63: Submersible Pump | E63: ='Maximum Rates'!$C$28 -> 33 | F63: /day | H63: 0 | J63: 0
A64: In-Situ Transducer | E64: ='Maximum Rates'!$C$29 -> 110 | F64: /day | H64: 0 | J64: 0
A65: Interface Probe/Water Level | E65: ='Maximum Rates'!$C$30 -> 11 | F65: /day | G65: 1 | H65: 11 | I65: 1 | J65: 11
A66: Air Flow Meter | E66: ='Maximum Rates'!$C$31 -> 11 | F66: /day | H66: 0 | J66: 0
A67: Multimeter | E67: ='Maximum Rates'!$C$38 -> 110 | F67: /day | G67: 1 | H67: 110 | J67: 0
A68: Ozone Meter/Sensor | E68: ='Maximum Rates'!$C$33 -> 11 | F68: /day | H68: 0 | J68: 0
F69: /day | H69: 0 | J69: 0
A70: pH/Temperature Meter | E70: ='Maximum Rates'!$C$35 -> 11 | F70: /day | H70: 0 | J70: 0
A71: Gloves | E71: ='Maximum Rates'!$C$26 -> 6 | F71: /day | H71: 0 | J71: 0
A72: Redox/ORP Meter | E72: ='Maximum Rates'!$C$37 -> 11 | F72: /day | H72: 0 | J72: 0
F73: /day | H73: 0 | J73: 0
A74: Thermal Anemometer | E74: ='Maximum Rates'!$C$39 -> 11 | F74: /day | H74: 0 | J74: 0
A75: Turbidity Meter | E75: ='Maximum Rates'!$C$40 -> 11 | F75: /day | H75: 0 | J75: 0
F76: /day | H76: 0 | J76: 0
D77: Total | H77: =SUM(H56:H76) -> 176 | J77: =SUM(J56:J76) -> 77
A79: Item Name | E79: Rate ($)/day | F79: Units | G79: MEME Event | I79: DPVE, AS, SVE, P&T O&M
G80: # days | H80: Total | I80: # days | J80: Total
A81: Air Compressor | E81: ='Maximum Rates'!$C$21 -> 28 | F81: /day | H81: =($E81)*G81 -> 0 | J81: =($E81)*I81 -> 0
A82: Combustible Gas Indicator/PID/FID | E82: ='Maximum Rates'!$C$22 -> 55 | F82: /day | G82: 1 | H82: =($E82)*G82 -> 55 | I82: 1 | J82: =($E82)*I82 -> 55
A83: Conductivity Meter | E83: ='Maximum Rates'!$C$23 -> 11 | F83: /day | H83: 0 | J83: 0
A84: Digital Manometer | E84: ='Maximum Rates'!$C$24 -> 11 | F84: /day | G84: 1 | H84: 11 | I84: 1 | J84: 11
A85: Dissolved Oxygen Meter | E85: ='Maximum Rates'!$C$25 -> 11 | F85: /day | H85: 0 | J85: 0
F86: /day | H86: 0 | J86: 0
A87: Generator (5Kw) | E87: ='Maximum Rates'!$C$27 -> 28 | F87: /day | H87: 0 | J87: 0
A88: Submersible Pump | E88: ='Maximum Rates'!$C$28 -> 33 | F88: /day | H88: 0 | J88: 0
A89: In-Situ Transducer | E89: ='Maximum Rates'!$C$29 -> 110 | F89: /day | H89: 0 | J89: 0
A90: Interface Probe/Water Level | E90: ='Maximum Rates'!$C$30 -> 11 | F90: /day | G90: 1 | H90: 11 | I90: 1 | J90: 11
A91: Air Flow Meter | E91: ='Maximum Rates'!$C$31 -> 11 | F91: /day | H91: 0 | I91: 1 | J91: 11
A92: Multimeter | E92: ='Maximum Rates'!$C$38 -> 110 | F92: /day | H92: 0 | J92: 0
A93: Ozone Meter/Sensor | E93: ='Maximum Rates'!$C$33 -> 11 | F93: /day | H93: 0 | J93: 0
A94: Multimeter | E94: ='Maximum Rates'!$C$38/2 -> 55 | F94: /day | H94: 0 | I94: 1 | J94: 55
A95: pH/Temperature Meter | E95: ='Maximum Rates'!$C$35 -> 11 | F95: /day | H95: 0 | J95: 0
A96: Gloves | E96: ='Maximum Rates'!$C$26 -> 6 | F96: /day | H96: 0 | I96: 1 | J96: 6
A97: Redox/ORP Meter | E97: ='Maximum Rates'!$C$37 -> 11 | F97: /day | H97: 0 | J97: 0
F98: /day | H98: 0 | J98: 0
A99: Thermal Anemometer | E99: ='Maximum Rates'!$C$39 -> 11 | F99: /day | H99: 0 | I99: 1 | J99: 11
A100: Turbidity Meter | E100: ='Maximum Rates'!$C$40 -> 11 | F100: /day | H100: 0 | J100: 0
F101: /day | H101: 0 | J101: 0
D102: Total | H102: =SUM(H81:H101) -> 77 | J102: =SUM(J81:J101) -> 160
A103: Item Name | E103: Rate ($)/day | F103: Units | G103: Ozone O&M | I103: Free Product Bailing
G104: # days | H104: Total | I104: # days | J104: Total
A105: Air Compressor | E105: ='Maximum Rates'!$C$21 -> 28 | F105: /day | H105: =($E105)*G105 -> 0 | J105: =($E105)*I105 -> 0
A106: Combustible Gas Indicator/PID/FID | E106: ='Maximum Rates'!$C$22 -> 55 | F106: /day | G106: 1 | H106: =($E106)*G106 -> 55 | I106: 1 | J106: =($E106)*I106 -> 55
A107: Conductivity Meter | E107: ='Maximum Rates'!$C$23 -> 11 | F107: /day | H107: 0 | J107: 0
A108: Digital Manometer | E108: ='Maximum Rates'!$C$24 -> 11 | F108: /day | H108: 0 | J108: 0
A109: Dissolved Oxygen Meter | E109: ='Maximum Rates'!$C$25 -> 11 | F109: /day | H109: 0 | J109: 0
F110: /day | H110: 0 | J110: 0
A111: Generator (5Kw) | E111: ='Maximum Rates'!$C$27 -> 28 | F111: /day | H111: 0 | J111: 0
A112: Submersible Pump | E112: ='Maximum Rates'!$C$28 -> 33 | F112: /day | H112: 0 | J112: 0
A113: In-Situ Transducer | E113: ='Maximum Rates'!$C$29 -> 110 | F113: /day | H113: 0 | J113: 0
A114: Interface Probe/Water Level | E114: ='Maximum Rates'!$C$30 -> 11 | F114: /day | G114: 1 | H114: 11 | I114: 1 | J114: 11
A115: Air Flow Meter | E115: ='Maximum Rates'!$C$31 -> 11 | F115: /day | H115: 0 | J115: 0
A116: Multimeter | E116: ='Maximum Rates'!$C$38 -> 110 | F116: /day | H116: 0 | J116: 0
A117: Ozone Meter/Sensor | E117: ='Maximum Rates'!$C$33 -> 11 | F117: /day | G117: 1 | H117: 11 | J117: 0
F118: /day | H118: 0 | J118: 0
A119: pH/Temperature Meter | E119: ='Maximum Rates'!$C$35 -> 11 | F119: /day | H119: 0 | J119: 0
A120: Gloves | E120: ='Maximum Rates'!$C$26 -> 6 | F120: /day | G120: 1 | H120: 6 | J120: 0
A121: Redox/ORP Meter | E121: ='Maximum Rates'!$C$37 -> 11 | F121: /day | H121: 0 | J121: 0
F122: /day | H122: 0 | J122: 0
A123: Thermal Anemometer | E123: ='Maximum Rates'!$C$39 -> 11 | F123: /day | H123: 0 | J123: 0
A124: Turbidity Meter | E124: ='Maximum Rates'!$C$40 -> 11 | F124: /day | H124: 0 | J124: 0
F125: /day | H125: 0 | J125: 0
D126: Total | H126: =SUM(H105:H125) -> 83 | J126: =SUM(J105:J125) -> 66
A128: Item Name | E128: Rate ($)/day | F128: Units | G128: Initial Abatement | I128: Well Development
G129: # days | H129: Total | I129: # days | J129: Total
A130: Air Compressor | E130: ='Maximum Rates'!$C$21 -> 28 | F130: /day | H130: =($E130)*G130 -> 0 | J130: =($E130)*I130 -> 0
A131: Combustible Gas Indicator/PID/FID | E131: ='Maximum Rates'!$C$22 -> 55 | F131: /day | G131: 1 | H131: =($E131)*G131 -> 55 | J131: =($E131)*I131 -> 0
A132: Conductivity Meter | E132: ='Maximum Rates'!$C$23 -> 11 | F132: /day | H132: 0 | J132: 0
A133: Digital Manometer | E133: ='Maximum Rates'!$C$24 -> 11 | F133: /day | H133: 0 | J133: 0
A134: Dissolved Oxygen Meter | E134: ='Maximum Rates'!$C$25 -> 11 | F134: /day | H134: 0 | J134: 0
F135: /day | H135: 0 | J135: 0
A136: Generator (5Kw) | E136: ='Maximum Rates'!$C$27 -> 28 | F136: /day | H136: 0 | J136: 0
A137: Submersible Pump | E137: ='Maximum Rates'!$C$28 -> 33 | F137: /day | H137: 0 | J137: 0
A138: In-Situ Transducer | E138: ='Maximum Rates'!$C$29 -> 110 | F138: /day | H138: 0 | J138: 0
A139: Interface Probe/Water Level | E139: ='Maximum Rates'!$C$30 -> 11 | F139: /day | H139: 0 | I139: 1 | J139: 11
A140: Air Flow Meter | E140: ='Maximum Rates'!$C$31 -> 11 | F140: /day | H140: 0 | J140: 0
A141: Multimeter | E141: ='Maximum Rates'!$C$38 -> 110 | F141: /day | H141: 0 | J141: 0
A142: Ozone Meter/Sensor | E142: ='Maximum Rates'!$C$33 -> 11 | F142: /day | H142: 0 | J142: 0
A143: Peristaltic pump and tubing | E143: ='Maximum Rates'!$C$34 -> 55 | F143: /day | H143: 0 | I143: 1 | J143: 55
A144: pH/Temperature Meter | E144: ='Maximum Rates'!$C$35 -> 11 | F144: /day | H144: 0 | J144: 0
A145: Gloves | E145: ='Maximum Rates'!$C$26 -> 6 | F145: /day | H145: 0 | J145: 0
A146: Redox/ORP Meter | E146: ='Maximum Rates'!$C$37 -> 11 | F146: /day | H146: 0 | J146: 0
F147: /day | H147: 0 | J147: 0
A148: Thermal Anemometer | E148: ='Maximum Rates'!$C$39 -> 11 | F148: /day | H148: 0 | J148: 0
A149: Turbidity Meter | E149: ='Maximum Rates'!$C$40 -> 11 | F149: /day | H149: 0 | J149: 0
A150: Well Development Expendables | E150: ='Maximum Rates'!$C$45 -> 17 | F150: /day | H150: 0 | I150: 1 | J150: 17
D151: Total | H151: =SUM(H130:H150) -> 55 | J151: =SUM(J130:J150) -> 83

Sheet Maximum Rates
B2: Alabama Tank Trust Fund Maximum Allowable Rates 01/2023
B4: Personnel Rates | G4: Analytical with Methods
B5: Project Manager | D5: 115
B6: PE/PG | D6: 132 | K6: water | L6: soil
B7: Staff Geologist/Engineer | D7: 96 | G7: BTEX/MTBE/Naph
B8: Scientist | D8: 90 | I8: 8260; 8021; 602 | K8: 65 | L8: 65
B9: Technician | D9: 70
B10: Draftsman | D10: 70 | G10: PAH | I10: 610 | K10: 130
B11: Clerical | D11: 57 | I11: 8310;8270 | K11: 130 | L11: 130
B12: *Rates can be adjusted down | G12: PAH Water Supply | I12: 525.1 | K12: 275
B13: Per Diem Daily | D13: 12.75
B14: Per Diem Extended | D14: 34 | G14: VOC Water Supply | I14: 524.2 | K14: 150
B15: Per Diem Overnight (2 days) | D15: 85 | I15: 8260 | K15: 65
B16: Per Diem Overnight (>2 days) | D16: 100 | G16: 1,2 Dibromoethane
G17: (EDB) | I17: 504.1 | K17: 65
B18: Disposable Bailers | C18: 8 | D18: /ea | I18: 524.2 | K18: 150
B19: 55 Gallon Drums | C19: 75 | D19: /ea | I19: 8011 | K19: 65
B20: Expendables* | C20: 55 | D20: /sow | G20: 1,2 Dichloroethane | I20: 8260 | K20: 65 | L20: 65
B21: Air Compressor | C21: 28 | D21: /day | G21: (EDC) | I21: 504.1 | K21: 65
B22: Combustible Gas Indicator/PID/FID | C22: 55 | D22: /day | I22: 524.2 | K22: 150
B23: Conductivity Meter | C23: 11 | D23: /day
B24: Digital Manometer | C24: 11 | D24: /day | G24: Lead
B25: Dissolved Oxygen Meter | C25: 11 | D25: /day | I25: 239.2; 7421 | K25: 25 | L25: 25
B26: Gloves | C26: 6 | D26: /day | I26: 6020 | K26: 15 | L26: 15
B27: Generator (5K) | C27: 28 | D27: /day | G27: TPH
B28: Submersible Pump | C28: 33 | D28: /day | I28: 5520 | L28: 60
B29: Pressure Transducer/data logger | C29: 110 | D29: /day | I29: 418.1/9071 | L29: 50
B30: Interface Probe/Water Level | C30: 11 | D30: /day | I30: 8015 GRO | L30: 80
B31: Flow Meter (anemometer) | C31: 11 | D31: /day | I31: 8015 DRO | L31: 95
B32: Metal Detector | C32: 11 | D32: /day
B33: Ozone Meter/Sensor | C33: 11 | D33: /day | G33: Oil & Grease | I33: 9071;5520 | K33: 50
B34: Pump-Peristaltic or Purging (inc. tubing) | C34: 55 | D34: /day | G34: Dry Bulk Density | I34: ASTM 2473 | K34: 20
B35: pH/Temperature Meter | C35: 11 | D35: /day | G35: Grain Size Analysis | K35: 40
B36: Pressure Washer | C36: 28 | D36: /day | G36: FOM | I36: ASTM 2974 | K36: 40
B37: Redox/ORP Meter | C37: 11 | D37: /day | G37: Moisture Content | I37: ASTM 2216 | K37: 15
B38: Multimeter | C38: 110 | D38: /day | G38: Specific Gravity | I38: ASTM D854 | K38: 20
B39: Thermal Anemometer | C39: 11 | D39: /day | G39: Nitrate | K39: 20
B40: Turbidity Meter | C40: 11 | D40: /day | G40: Sulfate | K40: 20
B41: Concrete Saw | C41: 28 | D41: /sow | G41: Iron | K41: 20
B42: Encore Samplers | C42: 10 | D42: /sampler | G42: Air Samples | I42: 8260 | K42: 100
B43: O&M Expendables** | C43: 28 | D43: /day | G43: TCLP | K43: 100
B44: Skidsteer (750max/week) | C44: 275 | D44: day | G44: Ethanol | I44: 8015D;8260 | K44: 65
B45: Well Development Expendables | C45: 17 | D45: /day | G45: Methanol | K45: 65
B46: Emergency Response Multiplier | C46: 1.5 | D46: times
G47: Chloride
G48: Foaming Agent
G49: Total Organic Carbon
G50: Total Dissolved Solids
B52: Postage | G52: Pass Through Amount
B53: Postage Class I | D53: 85 | G53: Other than System Purchase/ Install | L53: 0.1
B54: Postage Class II | D54: 50 | G54: System Purchase/ Install | L54: 0.05
B58: Drilling | G58: * for scope of work (i.e. Preliminary is one scope)
B59: Mob/Demob amount | D59: 300 | G59: ** includes influent and effluent sampling
B60: Mileage rate per mile (current State rate)
B61: Well Completion MW 8" cover | D61: 205
B62: Well Completion MW 12" cover | D62: 242
B63: RW/EW vault abandonment (removal) | D63: 550
B64: RW/EW vault abandonment (fill in place) | D64: 250
B65: 2" Monitoring Well (HAS) per foot | D65: 65
B66: 4" Monitoring Well (HAS) per foot | D66: 70
B67: Soil Boring (HAS) per foot | D67: 30
B68: Temp Wells | D68: 36
B69: Rock Drilling 2" Well | D69: 71
B70: Rock Drilling 4" Well | D70: 77
B71: Rock Coring | D71: 49
B72: Type III Well | D72: 145
B73: Direct Push Technologies | D73: 2320
B74: Direct Push Well Materials | D74: 10
B75: MW/RW Pad removal | D75: 115
B76: 2" MW/RW Abandonment per foot overdrill | D76: 35
B77: MW/RW Abandonment remove top of casing | D77: 18
B78: 4" MW/RW Abandonment per foot overdrill | D78: 45
B79: Shelby Tubes | D79: 58
B80: Rolloff dumpster
B81: Drilling Device Driven (6 x's mileage rate)
B82: Drilling Device Hauled (3 x's mileage rate)
B84: Permit Application
B85: NPDES General Permit
B86: UIC Permit
B87: Solid Waste Profile (form 300)

Sheet Form "B" Field (hidden)
B2: Part II- Alabama Tank Trust Fund Itemization Form "B" Cost Proposal
B3: Summary of ATTF Field Scenarios
B5: Scenarios | H5: Unit $ Unit Quantity Requested$
B7: Well Installation Oversight time
B8: Type II Porous Media Drilling
B10: Porous material 0-10 feet | H10: =' Field Task'!I4 -> 227 | I10: /well | K10: =IF(J10<1,"",J10*H10) -> 
B11: Porous material 0-30 feet | H11: =' Field Task'!I6 -> 358 | I11: /well
B12: Porous material 0-50 feet | H12: =' Field Task'!I8 -> 777 | I12: /well
B13: Porous material 0-70 feet | H13: =' Field Task'!I10 -> 1004 | I13: /well
B14: Porous material 0-90 feet | H14: =' Field Task'!I12 -> 1231 | I14: /well
B15: Porous material 0-110 feet | H15: =' Field Task'!I14 -> 1458 | I15: /well
B16: Type II Bedrock Drilling
B18: Bedrock 0-20' Air Rotary Drilling | H18: =' Field Task'!I18 -> 358 | I18: /well | K18: =IF(J18<1,"",J18*H18) -> 
B19: Bedrock 0-40' Air Rotary Drilling | H19: =' Field Task'!I22 -> 489 | I19: /well
B20: Bedrock 0-60' Air Rotary Drilling | H20: =' Field Task'!I26 -> 716 | I20: /well
B21: Bedrock 0-80' Air Rotary Drilling | H21: =' Field Task'!I30 -> 943 | I21: /well
B23: Bedrock 0-20' Core Drilling | H23: =' Field Task'!I20 -> 454 | I23: /well
B24: Bedrock 0-40' Core Drilling | H24: =' Field Task'!I24 -> 777 | I24: /well
B25: Bedrock 0-60' Core Drilling | H25: =' Field Task'!I28 -> 908 | I25: /well
B26: Bedrock 0-80' Core Drilling | H26: =' Field Task'!I32 -> 1135 | I26: /well
B28: Type III Well Porous (Depth of entire well)
B30: Type III Well 0-20' (entire well in porous material) | H30: =' Field Task'!I36 -> 406 | I30: /well | K30: =IF(J30<1,"",J30*H30) -> 
B31: Type III Well 0-40' (entire well in porous material) | H31: =' Field Task'!I38 -> 633 | I31: /well
B32: Type III Well 0-60' (entire well in porous material) | H32: =' Field Task'!I40 -> 860 | I32: /well
B33: Type III Well 0-80' (entire well in porous material) | H33: =' Field Task'!I42 -> 1087 | I33: /well
B34: Type III Well 0-100' (entire well in porous material) | H34: =' Field Task'!I44 -> 1314 | I34: /well
B35: Type III Well Bedrock (Depth of entire well)
B37: Type III Well 0-20' (bedrock encountered) | H37: =' Field Task'!I58 -> 454 | I37: /well | K37: =IF(J37<1,"",J37*H37) -> 
B38: Type III Well 0-40' (bedrock encountered) | H38: =' Field Task'!I60 -> 681 | I38: /well | K38: =IF(J38<1,"",J38*H38) -> 
B39: Type III Well 0-60' (bedrock encountered) | H39: =' Field Task'!I62 -> 908 | I39: /well | K39: =IF(J39<1,"",J39*H39) -> 
B40: Type III Well 0-80' (bedrock encountered) | H40: =' Field Task'!I64 -> 1135 | I40: /well | K40: =IF(J40<1,"",J40*H40) -> 
B41: Type III Well 0-100' (bedrock encountered) | H41: =' Field Task'!I66 -> 1362 | I41: /well | K41: =IF(J41<1,"",J41*H41) -> 
B42: Soil Boring (no well set)/Direct Push oversight
B43: Soil Boring porous material 0-10 feet | H43: =' Field Task'!I70 -> 144 | I43: /well
B44: Soil Boring porous material 0-30 feet | H44: =' Field Task'!I72 -> 240 | I44: /well
B45: Soil Boring porous material 0-50 feet | H45: =' Field Task'!I74 -> 336 | I45: /well
B46: Soil Boring porous material 0-70 feet | H46: =' Field Task'!I76 -> 528 | I46: /well | K46: =IF(J46<1,"",J46*H46) -> 
B47: Direct Push (Geologist Daily Charge or 8 probe points) | H47: =('Maximum Rates'!D7)*10 -> 960 | I47: /day
B48: High Resolution Imaging Field Time and Oversight | H48: =' Field Task'!C140 -> 1356 | I48: /day
B49: Other Field Activities
B50: Well Re-Development (initial development included in drilling oversight costs) | H50: =' Field Task'!I88 -> 105 | I50: /well
B51: Slug Tests | H51: =' Field Task'!I86 -> 332 | I51: /well
B52: Private/Public Water Well Inventory (up to 5 wells) | H52: =' Field Task'!I82 -> 384 | I52: /5wells
B53: Site Survey during Investigation (not a Licensed Surveyor) | H53: =' Field Task'!I84 -> 280 | I53: /sow
B54: RW Vault Abandonment Oversight | H54: =' Field Task'!I127 -> 96 | I54: /vault | K54: =IF(J54<1,"",J54*H54) -> 
B55: MW/RW/IW Abandonment Oversight for Overdrilling | H55: =' Field Task'!I123 -> 288 | I55: /well
B56: MW/RW/IW Abandonment Oversight for Grouting in Casing | H56: =' Field Task'!I125 -> 144 | I56: /well
B57: Monitoring Well Pad/Cover Repair/ Replacement | H57: =' Field Task'!I80 -> 140 | I57: /well
B58: Groundwater Sampling Set-up (2hrs tech time) | H58: =' Field Task'!I90 -> 140 | I58: /sow
B59: Purge/Development Water Handling (see Basis) | H59: =' Field Task'!I92 -> 105 | I59: /sow
B60: Gauging Well (no sampling) | H60: =' Field Task'!I94 -> 17.5 | I60: /well
B61: Groundwater Sampling and Gauging 2" Well | H61: =' Field Task'!I96 -> 70 | I61: /well
B62: Groundwater Sampling and Gauging 4" Well | F62: =SUM(J61:J63) -> 0 | H62: =' Field Task'!I98 -> 80.5 | I62: /well
B63: Groundwater Sampling and Gauging 6" Well | F63: =(SUM(J61:J63)*'Maximum Rates'!C18) -> 0 | H63: =' Field Task'!I100 -> 87.5 | I63: /well
B64: Sample Public Well | H64: =' Field Task'!I102 -> 140 | I64: /well
B65: Sample Private Well | H65: =' Field Task'!I104 -> 105 | I65: /well
B66: Sample Stream (up to 3 samples) | H66: =' Field Task'!I106 -> 105 | I66: /stream
B67: Soil Sampling Setup (1-4 wells) | H67: =' Field Task'!I108 -> 192 | I67: /sow
B68: Soil Sampling Setup adder (each additional group of 4 wells) | H68: =' Field Task'!I110 -> 96 | I68: /sow
B69: MEME Event/Pilot Test/Injection Event (hourly rate) | H69: ='Maximum Rates'!D9 -> 70 | I69: /hr
B70: DPVE Pilot Test/Aquifer Test (hourly rate) | H70: =('Maximum Rates'!D7)+'Maximum Rates'!D9 -> 166 | I70: /hr
B71: SVE/ AS/ Ozone Pilot Test | H71: =' Field Task'!I113 -> 864 | I71: /test
B72: Site Visit by PE/PG (CAP Development,etc) | H72: ='Corrective Action Plans'!L175 -> 1056 | I72: /site
B73: System Installation Oversight (up to 7 days in field) | H73: =' Field Task'!C130 -> 9616 | I73: /system
B74: System Installation Oversight Adder (per day over 7 doc req.) | H74: =' Field Task'!C135 -> 1075 | I74: /day
B75: System Startup | H75: =' Field Task'!I130 -> 1840 | I75: /system | K75: =IF(J75<1,"",J75*H75) -> 
B76: System Decommissioning | H76: =' Field Task'!I135 -> 1141 | I76: /day | K76: =IF(J76<1,"",J76*H76) -> 
B77: DPVE, Pump and Treat O&M 3 months | H77: =' Field Task'!I115 -> 4280 | I77: /quarter
B78: DPVE, Pump and Treat O&M 4 months | H78: =' Field Task'!I119 -> 5400 | I78: /triannual
B79: Ozone, biosparge, SVE, biovent and Air Sparge O&M 3 months | H79: =' Field Task'!I117 -> 2140 | I79: /quarter
B80: Ozone, biosparge, SVE, biovent and Air Sparge O&M 4 months | H80: =' Field Task'!I121 -> 2700 | I80: /triannual
B81: ADEM Approved Amount | K81: =IF(J81<1,"",J81*G81) -> 
B82: Other Field Work not listed (use Form "F" for input) | G82: =IF('Form "F" Details'!K45="","",'Form "F" Details'!K45) ->  | J82: =IF(G82="","",1) ->  | K82: =IF(G82>0,G82,"") -> 
B83: Emergency Response (Contact ADEM for approval) | G83: =IF('Form "F" Details'!K116="","",'Form "F" Details'!K116) ->  | I83: =SUM(K127:K156) -> 0 | J83: =IF(G83="","",1) ->  | K83: =IF(G83>0,G83,"") -> 
B84: Travel
B85: Mileage Rate
B86: Mileage (One way office to site)
B87: 0 | C87: Number of round trips to site | K87: =IF(J87<1,"",(((J86*2)*J85)*J87)) -> 
B88: Other Mileage (enter total mileage not including office to site) | H88: =J85 -> 0 | K88: =IF(J88<1,"",(J88*J85)) -> 
B89: Personnel Travel Time (entered in Hours)
B90: Technician(s)-travel time | H90: ='Maximum Rates'!D9 -> 70 | I90: /hr | K90: =IF(J90="","",'Maximum Rates'!D9*J90) ->  | L90: ='Field Breakout'!P76 -> 0
B91: Geologist/Engineer-travel time | H91: ='Maximum Rates'!D7 -> 96 | I91: /hr | K91: =IF(J91="","",'Maximum Rates'!D7*J91) ->  | L91: ='Field Breakout'!O76 -> 0
B92: PG/PE-travel time | H92: ='Maximum Rates'!D6 -> 132 | I92: /hr | K92: =IF(J92="","",'Maximum Rates'!D6*J92) ->  | L92: ='Field Breakout'!N76 -> 0
B93: Project Manager-travel time | F93: =((((J86*2)+J88)/50)*J90)+((((J86*2)+J88)/50*J91)+((((J86*2)+J88)/50)*J92)+((((J86*2)+J88)/50)*J93)) -> 0 | G93: =SUM(J90:J93) -> 0 | H93: ='Maximum Rates'!D5 -> 115 | I93: /hr | K93: =IF(J93="","",'Maximum Rates'!D5*J93) ->  | L93: ='Field Breakout'!M76 -> 0
B94: Per Diem
B95: Per diem (6-12hrs) | H95: ='Maximum Rates'!D13 -> 12.75 | I95: /day | J95: =IF('Form "E" Per Diem'!N24=0,"",'Form "E" Per Diem'!L24) ->  | K95: =IF(J95="","",IF((J86+J88)<50,0,(IF(J95>=1,J95*H95)))) -> 
B96: Per diem (greater than 12hrs) | H96: ='Maximum Rates'!D14 -> 34 | I96: /ext. day | J96: =IF('Form "E" Per Diem'!N25=0,"",'Form "E" Per Diem'!L36) ->  | K96: =IF(J96="","",IF((J86+J88)<50,0,(IF(J96>=1,J96*H96)))) -> 
B97: Per diem 2 days (overnight)(invoice(s) required) | H97: ='Maximum Rates'!D15 -> 85 | I97: /day | J97: =IF('Form "E" Per Diem'!M27=0,"",'Form "E" Per Diem'!M27) ->  | K97: =IF(J97="","",IF((J86+J88)<50,0,(IF(J97>=1,J97*H97)))) -> 
B98: Per diem >2 consecutive days (overnight)(invoice(s) required) | H98: ='Maximum Rates'!D16 -> 100 | I98: /day | J98: =IF('Form "E" Per Diem'!N27=0,"",'Form "E" Per Diem'!N27) ->  | K98: =IF(J98="","",IF((J86+J88)<50,0,(IF(J98>=1,J98*H98)))) ->  | L98: =SUM(K95:K98) -> 0
B99: Equipment and Equipment Kits
B101: 55-Gallon Drums | H101: ='Maximum Rates'!C19 -> 75 | I101: /drum | K101: =IF(J101<1,"",J101*H101) -> 
B102: Sampling Expendables(gloves, ice, string, jars, foil, distilled water, paper towels, etc.) | H102: ='Maximum Rates'!C20 -> 55 | I102: /sow
B103: Expendables O&M | H103: ='Maximum Rates'!C36 -> 28 | I103: /day
B104: Monitoring Well Development | H104: =Equipment!J151 -> 83 | I104: /day
B105: Monitoring Well/Boring Installation | H105: =Equipment!H28 -> 66 | I105: /day
B106: Monitoring Well/Boring Abandonment | H106: =Equipment!H28 -> 66 | I106: /day
B107: Encore Samplers | H107: ='Maximum Rates'!C42 -> 10 | I107: /sample
B108: Groundwater Monitoring | H108: =Equipment!H77 -> 176 | I108: /day
B109: Bailers | H109: ='Maximum Rates'!C18 -> 8 | I109: /bailer
B110: MEME Event | H110: =Equipment!H102 -> 77 | I110: /event
B111: Free Product Bailing | F111: =SUM(K101:K118) -> 0 | H111: =Equipment!J126 -> 66 | I111: /sow
B112: DPVE, SVE, AS, P&T O&M | H112: =Equipment!J102 -> 160 | I112: /day
B113: Ozone Sparge O&M | H113: =Equipment!H126 -> 83 | I113: /day
B114: DPVE Pilot Test | H114: =Equipment!J77 -> 77 | I114: /sow
B115: Pumping Test | H115: =Equipment!J53 -> 182 | I115: /sow
B116: Specific Capacity | H116: =Equipment!H53 -> 72 | I116: /sow
B117: Slug Test | H117: =Equipment!J28 -> 121 | I117: /sow
B118: Initial Abatement | H118: =Equipment!H151 -> 55 | I118: /day
B120: Postage / Shipping and Copying (plans reports, ADEM and owner) | H120: ='Maximum Rates'!D53 -> 85 | I120: /sow
B121: Postage / Shipping (Sample Shipping) | H121: ='Maximum Rates'!D54 -> 50 | I121: /samples
B122: Postage / Shipping (documentation required) | F122: =SUM(K120:K122) -> 0
B123: Analytical Samples
D125: Method | I125: Pass Through | J125: Sample #
B126: 0
B127: BTEX/MTBE/Naph (water) | D127: 8021 | F127: =IF(D127=8021,'Maximum Rates'!$K$8,IF(D127=8260,'Maximum Rates'!$K$8,IF(D127=602,'Maximum Rates'!$K$8))) -> 65 | G127: /sample | K127: =IF(J127<1,"",IF(I127="",(J127*F127),(J127*F127)*(1+I127))) -> 
B128: BTEX/MTBE/Naph (soil) | D128: 8021 | F128: =IF(D128=8021,'Maximum Rates'!$L$8, IF(D128=8260,'Maximum Rates'!$L$8)) -> 65 | G128: /sample | K128: =IF(J128<1,"",IF(I128="",(J128*F128),(J128*F128)*(1+I128))) -> 
B129: PAH (water) | D129: 8270 | F129: =IF(D129=610,'Maximum Rates'!$K$10, IF(D129=8270,'Maximum Rates'!$K$11, IF(D129=8310,'Maximum Rates'!$K$11, IF(D129=8100,'Maximum Rates'!#REF!, IF(D129=625,'Maximum Rates'!#REF!))))) -> 130 | G129: /sample
B130: PAH (soil) | D130: 8270 | E130: 0.05 | F130: =IF(D130=8100,'Maximum Rates'!#REF!, IF(D130=8270,'Maximum Rates'!$L$11, IF(D130=8310,'Maximum Rates'!$L$11))) -> 130 | G130: /sample
B131: Lead (water) | D131: 239.2 | E131: 0.1 | F131: =IF(D131=239.2,'Maximum Rates'!$K$25, IF(D131=6020,'Maximum Rates'!$K$26, IF(D131=7421,'Maximum Rates'!$K$25))) -> 25 | G131: /sample
B132: Lead (soil) | D132: 239.2 | F132: =IF(D132=239.2,'Maximum Rates'!$L$25, IF(D132=6020,'Maximum Rates'!$L$26, IF(D132=7421,'Maximum Rates'!$L$25, IF(D132=6010,'Maximum Rates'!$L$26)))) -> 25 | G132: /sample
B133: TPH | D133: 418.1 | F133: =IF(D133=418.1,'Maximum Rates'!$L$29,IF(D133=5520,'Maximum Rates'!$L$28,IF(D133=9071,'Maximum Rates'!$L$29,IF(D133="8015 GRO",'Maximum Rates'!$L$30,IF(D133="8015 DRO",'Maximum Rates'!$L$31))))) -> 50 | G133: /sample
B134: PAH Water Supply | D134: 525.1 | F134: =IF(D134=525.1,'Maximum Rates'!$K$12) -> 275 | G134: /sample
B135: VOC Water Supply | D135: 8260 | F135: =IF(D135=8260,'Maximum Rates'!$K$15,IF(D135=524.2,'Maximum Rates'!$K$14,)) -> 65 | G135: /sample
B136: Dibromoethane1,2, EDB | D136: 8011 | F136: =IF(D136=8011,'Maximum Rates'!$K$19, IF(D136=504.1,'Maximum Rates'!$K$17,IF(D136=524.2,'Maximum Rates'!$K$22))) -> 65 | G136: /sample
B137: Dichloroethane1,2 EDC | D137: 8260 | F137: =IF(D137=8260,'Maximum Rates'!$K$8,IF(D137=524.2,'Maximum Rates'!$K$14,IF(D137=504.1,'Maximum Rates'!$K$17))) -> 65 | G137: /sample
B138: tert-Butyl alcohol | D138: 8015D | F138: =IF(D138=8260,'Maximum Rates'!$K$8,IF(D138="8015D",'Maximum Rates'!$K$44)) -> 65 | G138: /sample
B139: Ethanol | D139: 8015D | F139: =IF(D139=8260,'Maximum Rates'!$K$8, IF(D139="8015D",'Maximum Rates'!$K$44)) -> 65 | G139: /sample
B140: Oil & Grease | F140: ='Maximum Rates'!$K$33 -> 50 | G140: /sample
B141: Air Samples (System Influent) | F141: ='Maximum Rates'!$K$42 -> 100 | G141: /sample
B142: Dry Bulk Density | F142: ='Maximum Rates'!$K$34 -> 20 | G142: /sample
B143: Grain Size Analysis | F143: ='Maximum Rates'!$K$35 -> 40 | G143: /sample
B144: Specific Gravity | F144: ='Maximum Rates'!$K$38 -> 20 | G144: /sample | K144: =IF(J144<1,"",IF(I144="",(J144*F144),(J144*F144)*(1+I144))) -> 
B145: Moisture Content | F145: ='Maximum Rates'!$K$37 -> 15 | G145: /sample
B146: Nitrate | F146: ='Maximum Rates'!$K$39 -> 20 | G146: /sample
B147: Sulfate | F147: ='Maximum Rates'!$K$40 -> 20 | G147: /sample
B148: Iron | F148: ='Maximum Rates'!$K$41 -> 20 | G148: /sample
B149: FOM (ASTM 2947) | F149: ='Maximum Rates'!$K$36 -> 40 | G149: /sample
B150: Total Organic Carbon (Walkley Black) | G150: /sample
B151: Chloride | G151: /sample
B152: Foaming Agents | G152: /sample
B153: Total Dissolved Solids | G153: /sample
B154: Other | G154: /sample
B155: Other | G155: /sample
B156: Other | G156: /sample
B157: 8
B158: waterbtex | C158: soilbtex | D158: PAHsoil | E158: PAHwater | G158: leadwater | H158: TPHsoil
B159: 8021 | D159: 8100 | E159: 610 | F159: 239.2 | G159: 239.2 | I159: 525.1 | J159: 8021
B160: 8260 | C160: 8021 | D160: 8310 | E160: 8310 | F160: 6020 | G160: 6020 | H160: 418.1 | J160: 8260
B161: 602 | C161: 8260 | D161: 8270 | E161: 8270 | F161: 7421 | G161: 7421 | H161: 5520 | I161: EDB | J161: 502.2
D162: 8260 | H162: 9071 | I162: 8011 | J162: 524.2
D163: 8015D | H163: 8015 GRO | I163: 504.1 | J163: 8260
H164: 8015 DRO | I164: 524.2
I165: 8260
F167: Total Field Costs | K167: =SUM(K10:K166) -> 0 | L167: =SUM(K10:K166) -> 0

Sheet PR Form "C" Drilling (hidden)
B2: Part II- Alabama Tank Trust Fund Itemization Form "C" Payment Request
B3: Drilling
C4: Scenarios | G4: Unit $ | H4: Unit | I4: CP | J4: PR | K4: Requested
B5: Mileage Rate (Current Federal Rate) | I5: =IF('Form "C" Drilling'!J5="","",'Form "C" Drilling'!J5) -> 
B6: Mileage (drilling device driven or ATV) (up to 450 one way miles) 1 | G6: =IF(J5="","",6*J5) ->  | H6: /mile | I6: =IF('Form "C" Drilling'!J6>=1,'Form "C" Drilling'!J6,"") -> 
B7: Number of Mobilizations (Includes $300 Mob/Demob amount) | I7: =IF('Form "C" Drilling'!J7>=1,'Form "C" Drilling'!J7,"") ->  | K7: =IF(J7="","",((J6*G6*2)*J7+J7*'Maximum Rates'!D59)) -> 
B8: Mileage (drilling device "hauled" to the site)(up to 450 one way miles) 1
B9: (direct push, skid steer, etc.) | G9: =IF(J5="","",3*J5) ->  | H9: /mile | I9: =IF('Form "C" Drilling'!J9>=1,'Form "C" Drilling'!J9,"") -> 
B10: Number of Mobilizations (Includes $300 Mob/Demob amount) | I10: =IF('Form "C" Drilling'!J10>=1,'Form "C" Drilling'!J10,"") ->  | K10: =IF(J10="","",((J9*G9*2)*J10+J10*'Maximum Rates'!D59)) -> 
B11: Well Completions
B12: Well Pad Completions (2" and 4")(up to 8" cover) 2 | G12: ='Maximum Rates'!D61 -> 205 | H12: /well | I12: =IF('Form "C" Drilling'!J12>=1,'Form "C" Drilling'!J12,"") ->  | K12: =IF(J12<1,"",(J12*G12)) -> 
B13: Well Pad Completions (2" and 4")(12" cover) 2 | G13: ='Maximum Rates'!D62 -> 242 | H13: /well | I13: =IF('Form "C" Drilling'!J13>=1,'Form "C" Drilling'!J13,"") ->  | K13: =IF(J13<1,"",(J13*G13)) -> 
B14: Well Pad Completions RW/EW non hinged lid (2'x2')2 | H14: /well | I14: =IF('Form "C" Drilling'!J14>=1,'Form "C" Drilling'!J14,"") ->  | K14: =IF(J14<1,"",(J14*G14)) -> 
B15: Well Pad Completions for Recovery/Extraction Wells (2'x2') 2 | H15: /well | I15: =IF('Form "C" Drilling'!J15>=1,'Form "C" Drilling'!J15,"") ->  | K15: =IF(J15<1,"",(J15*G15)) -> 
B16: Alternate Screen for Recovery/Extraction/Injection Wells per/ft | H16: /ft | I16: =IF('Form "C" Drilling'!J16>=1,'Form "C" Drilling'!J16,"") ->  | K16: =IF(J16<1,"",(J16*G16)) -> 
B17: (Quote and Invoices Required) 4
B18: Unconsolidated Media Drilling
B19: 1" / 2" Monitoring Well (HSA) 3 | G19: ='Maximum Rates'!D65 -> 65 | H19: /foot | I19: =IF('Form "C" Drilling'!J18>=1,'Form "C" Drilling'!J18,"") ->  | K19: =IF(J19<1,"",(J19*G19)) -> 
B20: 4" Monitoring Well (HSA) 3 | G20: ='Maximum Rates'!D66 -> 70 | H20: /foot | I20: =IF('Form "C" Drilling'!J19>=1,'Form "C" Drilling'!J19,"") -> 
B21: Type III Well (HSA) 5 | G21: ='Maximum Rates'!D72 -> 145 | H21: /foot | I21: =IF('Form "C" Drilling'!J20>=1,'Form "C" Drilling'!J20,"") -> 
B22: Soil Boring (HSA) per ft (includes tremie grout abandonment) 6 | G22: ='Maximum Rates'!D67 -> 30 | H22: /foot | I22: =IF('Form "C" Drilling'!J21>=1,'Form "C" Drilling'!J21,"") -> 
B23: Temporary Well (HSA) per ft (includes tremie grout abandonment) 6 | G23: ='Maximum Rates'!D68 -> 36 | H23: /foot | I23: =IF('Form "C" Drilling'!J22>=1,'Form "C" Drilling'!J22,"") -> 
B24: Sonic Drilling | H24: /foot | I24: =IF('Form "C" Drilling'!J23>=1,'Form "C" Drilling'!J23,"") -> 
B25: Bedrock Drilling
B26: Air Rotary Rock Drilling per ft (2") 3 | G26: ='Maximum Rates'!D69 -> 71 | H26: /foot | I26: =IF('Form "C" Drilling'!J25>=1,'Form "C" Drilling'!J25,"") ->  | K26: =IF(J26<1,"",(J26*G26)) -> 
B27: Air Rotary Rock Drilling per ft (4") 3 | G27: ='Maximum Rates'!D70 -> 77 | H27: /foot | I27: =IF('Form "C" Drilling'!J26>=1,'Form "C" Drilling'!J26,"") ->  | K27: =IF(J27<1,"",(J27*G27)) -> 
B28: Type III Well 5 | G28: ='Maximum Rates'!D72 -> 145 | H28: /foot | I28: =IF('Form "C" Drilling'!J27>=1,'Form "C" Drilling'!J27,"") ->  | K28: =IF(J28<1,"",(J28*G28)) -> 
B29: MINIMUM AMOUNT OF $3,000 ADJUSTED 8 | H29: =IF(SUM(K12:K48)=0,0,IF(SUM(K12:K48)<3000,3000,SUM(K12:K48))) -> 0 | I29: =IF(AND(H29>0,H29<=3000),0,1) -> 1 | K29: 0
B30: Air Compressor | H30: /day | I30: =IF('Form "C" Drilling'!J29>=1,'Form "C" Drilling'!J29,"") ->  | K30: =IF(J30<1,"",(J30*G30)) -> 
B31: Rock Coring | G31: ='Maximum Rates'!D71 -> 49 | H31: /foot | I31: =IF('Form "C" Drilling'!J30>=1,'Form "C" Drilling'!J30,"") ->  | K31: =IF(J31<1,"",(J31*G31)) -> 
B32: Direct Push Technologies
B33: Direct Push per day (includes all personnel time) 6 | G33: ='Maximum Rates'!D73 -> 2320 | H33: /day | I33: =IF('Form "C" Drilling'!J32>=1,'Form "C" Drilling'!J32,"") ->  | K33: =IF(J33<1,"",(J33*G33)) -> 
B34: Direct Push well install materials per foot | G34: ='Maximum Rates'!D74 -> 10 | H34: /foot | I34: =IF('Form "C" Drilling'!J33>=1,'Form "C" Drilling'!J33,"") ->  | K34: =IF(J34<1,"",(J34*G34)) -> 
B35: Other Items
B36: MW/RW Pad Removal | G36: ='Maximum Rates'!D75 -> 115 | H36: /foot | I36: =IF('Form "C" Drilling'!J35>=1,'Form "C" Drilling'!J35,"") ->  | K36: =IF(J36<1,"",(J36*G36)) -> 
B37: 2" MW/RW Abandonment by Overdrilling then tremie grout 3 | G37: ='Maximum Rates'!D76 -> 35 | H37: /foot | I37: =IF('Form "C" Drilling'!J36>=1,'Form "C" Drilling'!J36,"") ->  | K37: =IF(J37<1,"",(J37*G37)) -> 
B38: 4" MW/RW Abandonment by Overdrilling then tremie grout 3 | G38: ='Maximum Rates'!D78 -> 45 | H38: /foot | I38: =IF('Form "C" Drilling'!J37>=1,'Form "C" Drilling'!J37,"") ->  | K38: =IF(J38<1,"",(J38*G38)) -> 
B39: MW/RW Tremie Grout Abandonment | G39: ='Maximum Rates'!D77 -> 18 | H39: /foot | I39: =IF('Form "C" Drilling'!J38>=1,'Form "C" Drilling'!J38,"") ->  | K39: =IF(J39<1,"",(J39*G39)) -> 
B40: (remove well casing to approximately 3' and fill remainder) 3
B41: Recovery Well Vault removal and backfill w/concrete (2'x2')7 | G41: ='Maximum Rates'!D63 -> 550 | H41: /vault | I41: =IF('Form "C" Drilling'!J40>=1,'Form "C" Drilling'!J40,"") -> 
B42: Recovery Well Vault removal and backfill w/concrete (2'x2') | G42: ='Maximum Rates'!D64 -> 250 | H42: /vault | I42: =IF('Form "C" Drilling'!J41>=1,'Form "C" Drilling'!J41,"") -> 
B43: Drums | G43: ='Maximum Rates'!C19 -> 75 | H43: /drum | I43: =IF('Form "C" Drilling'!J42>=1,'Form "C" Drilling'!J42,"") -> 
B44: Shelby Tubes | G44: ='Maximum Rates'!D79 -> 58 | H44: /tube | I44: =IF('Form "C" Drilling'!J43>=1,'Form "C" Drilling'!J43,"") -> 
B45: Per Diem (overnight) (man days)(hotel receipts required) | G45: 85 | H45: /day | I45: =IF('Form "C" Drilling'!J44>=1,'Form "C" Drilling'!J44,"") ->  | L45: ='Maximum Rates'!D15 -> 85
B46: Other (receipts required) | I46: =IF('Form "C" Drilling'!J45>=1,'Form "C" Drilling'!J45,"") ->  | K46: =IF(J46<1,"",(J46*G46)) ->  | L46: ='Maximum Rates'!D16 -> 100
B47: Other (receipts required) | I47: =IF('Form "C" Drilling'!J46>=1,'Form "C" Drilling'!J46,"") ->  | K47: =IF(J47<1,"",(J47*G47)) -> 
B48: Other (receipts required) | I48: =IF('Form "C" Drilling'!J47>=1,'Form "C" Drilling'!J47,"") ->  | K48: =IF(J48<1,"",(J48*G48)) -> 
B49: Pass Through (if appropriate) Enter "10" or "5" as appropriate | G49: =SUM(K6:K48) -> 0 | I49: =IF('Form "C" Drilling'!J48="","",'Form "C" Drilling'!J48) ->  | K49: =IF(J49="","",(SUM(K7:K10)+H29)*J49) -> 
H50: =IF(K49="",0,K49) -> 0
B51: 1 Mileage (enter ONE WAY miles) for any and all support vehicles, trailers, equipment, and personnel time | H51: 0.1
B52: 2 Includes labor, concrete, forms (if needed), bolt down covers, caps, vaults, and locks
B53: 3 Includes personnel, screen, risers, bentonite, sand, silt sleeves, decon, skid steer,
B54: saw cutting, coring, safety equipment, plastic sheeting, water, well developing, etc.
B55: 4 If an alternative type screen is warranted instead of typical pvc slotted screen (i.e. continuous screen, stainless steel, etc.)
B56: 5 Includes personnel, outer and inner casing of entire well, screen, grout, decon, skid steer, saw cutting, coring, safety equipment, plastic sheeting, water, etc.
B57: 6 Includes well pad removal and surface completion as per surrounding
B58: 7 If costs are to exceed this amount a detailed quote should be included and costs listed below or on "Form D"
B59: 8 The sum of the amounts for drilling activities will be a minimum of $3,000
B60: Total CP Approved Amount | E60: =('Form "C" Drilling'!$J$59) -> 0 | G60: Total Drilling Costs | K60: =SUM(SUM(K6:K10)+H29+H50) -> 0

Sheet PR Form "D" Other (hidden)
B2: Part II- Alabama Tank Trust Fund Itemization Form "D" Payment Request
B3: All Vendor Invoices should be detailed, itemized and attached to Form "D"
B4: Sub Contractors/ Vendors/ Utilities
H6: Cost Proposal Approved Amount | I6: Enter Actual Amount Here | J6: Pass Through | K6: Requested
B7: 8-hr MEME Event | H7: =IF('Form "D" Other'!J7<1,"",'Form "D" Other'!J7) ->  | K7: =IF(I7<1,"",IF(J7="",I7,(I7*(1+J7)))) -> 
B8: 12-hr MEME Event | H8: =IF('Form "D" Other'!J8<1,"",'Form "D" Other'!J8) ->  | K8: =IF(I8<1,"",IF(J8="",I8,(I8*(1+J8)))) -> 
B9: 24-hr MEME Event | H9: =IF('Form "D" Other'!J9<1,"",'Form "D" Other'!J9) -> 
B10: MEME Water Disposal amount | H10: =IF('Form "D" Other'!J10<1,"",'Form "D" Other'!J10) -> 
B11: ADEM Solid Waste Profile (ADEM review fee) | H11: =IF('Form "D" Other'!J11<1,"",'Form "D" Other'!J11) -> 
B12: ALDOT Permit Fee | H12: =IF('Form "D" Other'!J12<1,"",'Form "D" Other'!J12) -> 
B13: Carbon Disposal | H13: =IF('Form "D" Other'!J13<1,"",'Form "D" Other'!J13) -> 
B14: Carbon Recycling | H14: =IF('Form "D" Other'!J14<1,"",'Form "D" Other'!J14) -> 
B15: Corrective Action System Decommissioning | H15: =IF('Form "D" Other'!J15<1,"",'Form "D" Other'!J15) -> 
B16: Corrective Action System Install | H16: =IF('Form "D" Other'!J16<1,"",'Form "D" Other'!J16) -> 
B17: Corrective Action System Purchase | H17: =IF('Form "D" Other'!J17<1,"",'Form "D" Other'!J17) -> 
B18: Corrective Action System Rental | H18: =IF('Form "D" Other'!J18<1,"",'Form "D" Other'!J18) -> 
B19: Oxidizer Rental | H19: =IF('Form "D" Other'!J19<1,"",'Form "D" Other'!J19) -> 
B20: Excavation | H20: =IF('Form "D" Other'!J20<1,"",'Form "D" Other'!J20) -> 
B21: Injection Events | H21: =IF('Form "D" Other'!J21<1,"",'Form "D" Other'!J21) -> 
B22: NPDES Permit Application (permit fee) | H22: =IF('Form "D" Other'!J22<1,"",'Form "D" Other'!J22) -> 
B23: Phone Costs (telemetry) | H23: =IF('Form "D" Other'!J23<1,"",'Form "D" Other'!J23) -> 
B24: Power Costs | H24: =IF('Form "D" Other'!J24<1,"",'Form "D" Other'!J24) -> 
B25: Propane Costs | H25: =IF('Form "D" Other'!J25<1,"",'Form "D" Other'!J25) -> 
B26: Rentals | H26: =IF('Form "D" Other'!J26<1,"",'Form "D" Other'!J26) -> 
B27: Rentals | H27: =IF('Form "D" Other'!J27<1,"",'Form "D" Other'!J27) -> 
B28: Rentals | H28: =IF('Form "D" Other'!J28<1,"",'Form "D" Other'!J28) ->  | L28: 0.05
B29: Rentals | H29: =IF('Form "D" Other'!J29<1,"",'Form "D" Other'!J29) ->  | L29: 0.1
B30: Roll Off Dumpster (includes hauling/handling) | H30: =IF('Form "D" Other'!J30<1,"",'Form "D" Other'!J30) -> 
B31: Sewer Disposal Costs | H31: =IF('Form "D" Other'!J31<1,"",'Form "D" Other'!J31) -> 
B32: Solid Waste Soil Disposal (to include hauling/handling) | H32: =IF('Form "D" Other'!J32<1,"",'Form "D" Other'!J32) -> 
B33: UIC Permit Application (permit fee) | H33: =IF('Form "D" Other'!J33<1,"",'Form "D" Other'!J33) -> 
B34: UIC Permit Greenfield Fee | H34: =IF('Form "D" Other'!J34<1,"",'Form "D" Other'!J34) -> 
B35: Water Supply for Liquid Ring Pump | H35: =IF('Form "D" Other'!J35<1,"",'Form "D" Other'!J35) -> 
B36: Water Treatment/Disposal (to include hauling/handling) | H36: =IF('Form "D" Other'!J36<1,"",'Form "D" Other'!J36) -> 
B37: Professional Survey (Licensed Surveyor) | H37: =IF('Form "D" Other'!J37<1,"",'Form "D" Other'!J37) -> 
B38: Other Miscellaneous items/rentals (receipts required) | H38: =IF('Form "D" Other'!J38<1,"",'Form "D" Other'!J38) -> 
B39: Other Miscellaneous items/rentals (receipts required) | H39: =IF('Form "D" Other'!J39<1,"",'Form "D" Other'!J39) -> 
B40: Other Miscellaneous items/rentals (receipts required) | H40: =IF('Form "D" Other'!J40<1,"",'Form "D" Other'!J40) -> 
B41: Other Miscellaneous items/rentals (receipts required) | H41: =IF('Form "D" Other'!J41<1,"",'Form "D" Other'!J41) -> 
B42: Other Miscellaneous items/rentals (receipts required) | H42: =IF('Form "D" Other'!J42<1,"",'Form "D" Other'!J42) -> 
B43: Other/Misc. (receipts required) | H43: =IF('Form "D" Other'!J43<1,"",'Form "D" Other'!J43) -> 
B44: Other/Misc. (receipts required) | H44: =IF('Form "D" Other'!J44<1,"",'Form "D" Other'!J44) -> 
B45: Other/Misc. (receipts required) | H45: =IF('Form "D" Other'!J45<1,"",'Form "D" Other'!J45) -> 
B46: Other/Misc. (receipts required) | H46: =IF('Form "D" Other'!J46<1,"",'Form "D" Other'!J46) -> 
B47: Other/Misc. (receipts required) | H47: =IF('Form "D" Other'!J47<1,"",'Form "D" Other'!J47) -> 
B48: Other/Misc. (receipts required) | H48: =IF('Form "D" Other'!J48<1,"",'Form "D" Other'!J48) -> 
B49: Other/Misc. (receipts required) | H49: =IF('Form "D" Other'!J49<1,"",'Form "D" Other'!J49) -> 
B50: Other/Misc. (receipts required) | H50: =IF('Form "D" Other'!J50<1,"",'Form "D" Other'!J50) -> 
B51: Other/Misc. (receipts required) | H51: =IF('Form "D" Other'!J51<1,"",'Form "D" Other'!J51) -> 
B52: Other/Misc. (receipts required) | H52: =IF('Form "D" Other'!J52<1,"",'Form "D" Other'!J52) -> 
B53: Other/Misc. (receipts required) | H53: =IF('Form "D" Other'!J53<1,"",'Form "D" Other'!J53) -> 
B54: Other/Misc. (receipts required) | H54: =IF('Form "D" Other'!J54<1,"",'Form "D" Other'!J54) ->  | K54: =IF(I54<1,"",IF(J54="",I54,(I54*(1+J54)))) -> 
B56: Total CP Approved Amount | E56: =('Form "D" Other'!K56) -> 0 | G56: Total Subs/Vendors/Utilities | K56: =SUM(K6:K55) -> 0

Sheet Field Breakout (hidden)
H2: PM | I2: PE/PG | J2: G | K2: Tech | M2: PM | N2: PE/PG | O2: G | P2: Tech
B4: Porous material 0-10 feet | J4: =' Field Task'!C5 -> 192 | K4: =' Field Task'!G5 -> 35 | L4: ='Form "B" Field'!J10 -> 0 | M4: =H4*L4 -> 0 | N4: =I4*L4 -> 0 | O4: =J4*L4 -> 0 | P4: =K4*L4 -> 0
B5: Porous material 0-30 feet | J5: =' Field Task'!C7 -> 288 | K5: =' Field Task'!G7 -> 70 | L5: ='Form "B" Field'!J11 -> 0 | M5: =H5*L5 -> 0 | N5: =I5*L5 -> 0 | O5: =J5*L5 -> 0 | P5: =K5*L5 -> 0
B6: Porous material 0-50 feet | J6: =' Field Task'!C9 -> 672 | K6: =' Field Task'!G9 -> 105 | L6: ='Form "B" Field'!J12 -> 0 | M6: 0 | N6: 0 | O6: 0 | P6: 0
B7: Porous material 0-70 feet | J7: =' Field Task'!C11 -> 864 | K7: =' Field Task'!G11 -> 140 | L7: ='Form "B" Field'!J13 -> 0 | M7: 0 | N7: 0 | O7: 0 | P7: 0
B8: Porous material 0-90 feet | J8: =' Field Task'!C13 -> 1056 | K8: =' Field Task'!G13 -> 175 | L8: ='Form "B" Field'!J14 -> 0 | M8: 0 | N8: 0 | O8: 0 | P8: 0
B9: Porous material 0-110 feet | J9: =' Field Task'!C15 -> 1248 | K9: =' Field Task'!G15 -> 210 | L9: ='Form "B" Field'!J15 -> 0 | M9: 0 | N9: 0 | O9: 0 | P9: 0
B12: Bedrock 0-20' Air Rotary Drilling | J12: =' Field Task'!C19 -> 288 | K12: =' Field Task'!G19 -> 70 | L12: ='Form "B" Field'!J18 -> 0 | M12: =H12*L12 -> 0 | N12: =I12*L12 -> 0 | O12: =J12*L12 -> 0 | P12: =K12*L12 -> 0
B13: Bedrock 0-40' Air Rotary Drilling | J13: =' Field Task'!C23 -> 384 | K13: =' Field Task'!G23 -> 105 | L13: ='Form "B" Field'!J19 -> 0 | M13: 0 | N13: 0 | O13: 0 | P13: 0
B14: Bedrock 0-60' Air Rotary Drilling | J14: =' Field Task'!C27 -> 576 | K14: =' Field Task'!G27 -> 140 | L14: ='Form "B" Field'!J20 -> 0 | M14: 0 | N14: 0 | O14: 0 | P14: 0
B15: Bedrock 0-80' Air Rotary Drilling | J15: =' Field Task'!C31 -> 768 | K15: =' Field Task'!G31 -> 175 | L15: ='Form "B" Field'!J21 -> 0 | M15: 0 | N15: 0 | O15: 0 | P15: 0
B17: Bedrock 0-20' Core Drilling | J17: =' Field Task'!C21 -> 384 | K17: =' Field Task'!G21 -> 70 | L17: ='Form "B" Field'!J23 -> 0 | M17: 0 | N17: 0 | O17: 0 | P17: 0
B18: Bedrock 0-40' Core Drilling | J18: =' Field Task'!C25 -> 672 | K18: =' Field Task'!G25 -> 105 | L18: ='Form "B" Field'!J24 -> 0 | M18: =H18*L18 -> 0 | N18: =I18*L18 -> 0 | O18: =J18*L18 -> 0 | P18: =K18*L18 -> 0
B19: Bedrock 0-60' Core Drilling | J19: =' Field Task'!C29 -> 768 | K19: =' Field Task'!G29 -> 140 | L19: ='Form "B" Field'!J25 -> 0 | M19: 0 | N19: 0 | O19: 0 | P19: 0
B20: Bedrock 0-80' Core Drilling | J20: =' Field Task'!C33 -> 960 | K20: =' Field Task'!G33 -> 175 | L20: ='Form "B" Field'!J26 -> 0 | M20: 0 | N20: 0 | O20: 0 | P20: 0
B22: Porous
B23: Outer Casing for Type III Well 0-20' | J23: =' Field Task'!C37 -> 336 | K23: =' Field Task'!G37 -> 70 | L23: ='Form "B" Field'!J30 -> 0 | M23: =H23*L23 -> 0 | N23: =I23*L23 -> 0 | O23: =J23*L23 -> 0 | P23: =K23*L23 -> 0
B24: Outer Casing for Type III Well 0-40' | J24: =' Field Task'!C39 -> 528 | K24: =' Field Task'!G39 -> 105 | L24: ='Form "B" Field'!J31 -> 0 | M24: 0 | N24: 0 | O24: 0 | P24: 0
B25: Outer Casing for Type III Well 0-60' | J25: =' Field Task'!C41 -> 720 | K25: =' Field Task'!G41 -> 140 | L25: ='Form "B" Field'!J32 -> 0 | M25: 0 | N25: 0 | O25: 0 | P25: 0
B26: Outer Casing for Type III Well 0-80' | J26: =' Field Task'!C43 -> 912 | K26: =' Field Task'!G43 -> 175 | L26: ='Form "B" Field'!J33 -> 0 | M26: 0 | N26: 0 | O26: 0 | P26: 0
B27: Outer Casing for Type III Well 0-100' | J27: =' Field Task'!C45 -> 1104 | K27: =' Field Task'!G45 -> 210 | L27: ='Form "B" Field'!J34 -> 0 | M27: 0 | N27: 0 | O27: 0 | P27: 0
B28: Bedrock
B29: Outer Casing for Type III Well 0-20' | J29: =' Field Task'!C59 -> 384 | K29: =' Field Task'!G59 -> 70 | L29: ='Form "B" Field'!J37 -> 0 | M29: =H29*L29 -> 0 | N29: =I29*L29 -> 0 | O29: =J29*L29 -> 0 | P29: =K29*L29 -> 0
B30: Outer Casing for Type III Well 0-40' | J30: =' Field Task'!C61 -> 576 | K30: =' Field Task'!G61 -> 105 | L30: ='Form "B" Field'!J38 -> 0 | M30: =H30*L30 -> 0 | N30: =I30*L30 -> 0 | O30: =J30*L30 -> 0 | P30: =K30*L30 -> 0
B31: Outer Casing for Type III Well 0-60' | J31: =' Field Task'!C63 -> 768 | K31: =' Field Task'!G63 -> 140 | L31: ='Form "B" Field'!J39 -> 0 | M31: =H31*L31 -> 0 | N31: =I31*L31 -> 0 | O31: =J31*L31 -> 0 | P31: =K31*L31 -> 0
B32: Outer Casing for Type III Well 0-80' | J32: =' Field Task'!C65 -> 960 | K32: =' Field Task'!G65 -> 175 | L32: ='Form "B" Field'!J40 -> 0 | M32: =H32*L32 -> 0 | N32: =I32*L32 -> 0 | O32: =J32*L32 -> 0 | P32: =K32*L32 -> 0
B33: Outer Casing for Type III Well 0-100' | J33: =' Field Task'!C67 -> 1152 | K33: =' Field Task'!G67 -> 210 | L33: ='Form "B" Field'!J41 -> 0 | M33: =H33*L33 -> 0 | N33: =I33*L33 -> 0 | O33: =J33*L33 -> 0 | P33: =K33*L33 -> 0
B35: Soil Boring porous material 0-10 feet | J35: =' Field Task'!C71 -> 144 | K35: =' Field Task'!G71 -> 0 | L35: ='Form "B" Field'!J43 -> 0 | M35: 0 | N35: 0 | O35: 0 | P35: 0
B36: Soil Boring porous material 0-30 feet | J36: =' Field Task'!C73 -> 240 | K36: =' Field Task'!G73 -> 0 | L36: ='Form "B" Field'!J44 -> 0 | M36: 0 | N36: 0 | O36: 0 | P36: 0
B37: Soil Boring porous material 0-50 feet | J37: =' Field Task'!C75 -> 336 | K37: =' Field Task'!G75 -> 0 | L37: ='Form "B" Field'!J45 -> 0 | M37: 0 | N37: 0 | O37: 0 | P37: 0
B38: Soil Boring porous material 0-70 feet | J38: =' Field Task'!C77 -> 528 | K38: =' Field Task'!G77 -> 0 | L38: ='Form "B" Field'!J46 -> 0 | M38: =H38*L38 -> 0 | N38: =I38*L38 -> 0 | O38: =J38*L38 -> 0 | P38: =K38*L38 -> 0
B39: Direct Push (Geologist Daily Charge or 8 probe points) | J39: =('Maximum Rates'!D7*10) -> 960 | L39: ='Form "B" Field'!J47 -> 0 | M39: =H39*L39 -> 0 | N39: 0 | O39: 0 | P39: 0
B40: High Resolution | I40: =' Field Task'!C141 -> 396 | J40: =('Maximum Rates'!D7*10) -> 960 | L40: ='Form "B" Field'!J48 -> 0 | M40: =H40*L40 -> 0 | N40: =I40*L40 -> 0 | O40: =J40*L40 -> 0 | P40: =K40*L40 -> 0
B41: Well Development | J41: =' Field Task'!C89 -> 0 | K41: =' Field Task'!G89 -> 105 | L41: ='Form "B" Field'!J50 -> 0 | M41: 0 | N41: 0 | O41: 0 | P41: 0
B42: Slug Tests | J42: =' Field Task'!C87 -> 192 | K42: =' Field Task'!G87 -> 140 | L42: ='Form "B" Field'!J51 -> 0 | M42: 0 | N42: 0 | O42: 0 | P42: 0
B43: Private/Public Water Well Inventory (up to 5 wells) | J43: =' Field Task'!C83 -> 384 | K43: =' Field Task'!G83 -> 0 | L43: ='Form "B" Field'!J52 -> 0 | M43: 0 | N43: 0 | O43: 0 | P43: 0
B44: Initial Site Survey during Investigation (not Licensed) | K44: =' Field Task'!G85 -> 280 | L44: ='Form "B" Field'!J53 -> 0 | M44: 0 | N44: 0 | O44: 0 | P44: 0
B45: Abandonment of RW vault | J45: =' Field Task'!C128 -> 96 | L45: ='Form "B" Field'!J54 -> 0 | M45: 0 | N45: 0 | O45: 0 | P45: 0
B46: MW/RW abandonment (per well) overdrill | J46: =' Field Task'!C124 -> 288 | L46: ='Form "B" Field'!J55 -> 0 | M46: 0 | N46: 0 | O46: 0 | P46: 0
B47: MW/RW abandonment (per well) grout | J47: =' Field Task'!C126 -> 144 | L47: ='Form "B" Field'!J56 -> 0 | M47: =H47*L47 -> 0 | N47: =I47*L47 -> 0 | O47: =J47*L47 -> 0 | P47: =K47*L47 -> 0
B48: Monitoring Well Pad Repair | K48: =' Field Task'!G81 -> 140 | L48: ='Form "B" Field'!J57 -> 0 | M48: 0 | N48: 0 | O48: 0 | P48: 0
B49: Groundwater Sampling Set-up (2 hrs tech time) | K49: =' Field Task'!G91 -> 140 | L49: ='Form "B" Field'!J58 -> 0 | M49: 0 | N49: 0 | O49: 0 | P49: 0
B50: Purge water disposal | K50: =' Field Task'!G93 -> 105 | L50: ='Form "B" Field'!J59 -> 0 | M50: =H50*L50 -> 0 | N50: =I50*L50 -> 0 | O50: =J50*L50 -> 0 | P50: =K50*L50 -> 0
B51: Gauging Well (no sampling) | K51: =' Field Task'!G95 -> 17.5 | L51: ='Form "B" Field'!J60 -> 0 | M51: 0 | N51: 0 | O51: 0 | P51: 0
B52: Groundwater Sampling 2" Well & Bailer | K52: =' Field Task'!G97 -> 70 | L52: ='Form "B" Field'!J61 -> 0 | M52: 0 | N52: 0 | O52: =J52*L52 -> 0 | P52: 0
B53: Groundwater Sampling 4" Well & Bailer | K53: =' Field Task'!G99 -> 80.5 | L53: ='Form "B" Field'!J62 -> 0 | M53: 0 | N53: 0 | O53: 0 | P53: 0
B54: Groundwater Sampling 6" Well & Bailer | K54: =' Field Task'!G101 -> 87.5 | L54: ='Form "B" Field'!J63 -> 0 | M54: 0 | N54: 0 | O54: 0 | P54: 0
B55: sample public well | K55: =' Field Task'!G103 -> 140 | L55: ='Form "B" Field'!J64 -> 0 | M55: =H55*L55 -> 0 | N55: =I55*L55 -> 0 | O55: =J55*L55 -> 0 | P55: =K55*L55 -> 0
B56: samle private well | K56: =' Field Task'!G105 -> 105 | L56: ='Form "B" Field'!J65 -> 0 | M56: =H56*L56 -> 0 | N56: =I56*L56 -> 0 | O56: =J56*L56 -> 0 | P56: =K56*L56 -> 0
B57: sample stream | K57: =' Field Task'!G107 -> 105 | L57: ='Form "B" Field'!J66 -> 0 | M57: =H57*L57 -> 0 | N57: =I57*L57 -> 0 | O57: =J57*L57 -> 0 | P57: =K57*L57 -> 0
B58: soil sample setup | J58: =' Field Task'!C109 -> 192 | K58: =' Field Task'!G108 -> 0 | L58: ='Form "B" Field'!J67 -> 0 | M58: =H58*L58 -> 0 | N58: =I58*L58 -> 0 | O58: =J58*L58 -> 0 | P58: =K58*L58 -> 0
B59: soil samle time over 4 wells | J59: =' Field Task'!C111 -> 96 | K59: =' Field Task'!G109 -> 0 | L59: ='Form "B" Field'!J68 -> 0 | M59: =H59*L59 -> 0 | N59: =I59*L59 -> 0 | O59: =J59*L59 -> 0 | P59: =K59*L59 -> 0
B60: MEME Event/Pilot Test (hourly rate) | K60: ='Maximum Rates'!D9 -> 70 | L60: ='Form "B" Field'!J69 -> 0 | M60: 0 | N60: 0 | O60: 0 | P60: 0
B61: DPVE Pilot Test/Aquifer Test (hourly rate) | J61: ='Maximum Rates'!D7 -> 96 | K61: ='Maximum Rates'!D9 -> 70 | L61: ='Form "B" Field'!J70 -> 0 | M61: 0 | N61: 0 | O61: 0 | P61: 0
B62: SVE Pilot Test | J62: =' Field Task'!C114 -> 864 | K62: =' Field Task'!G114 -> 0 | L62: ='Form "B" Field'!J71 -> 0 | M62: 0 | N62: 0 | O62: 0 | P62: 0
B63: CAP Development Site Visit | H63: ='Corrective Action Plans'!L161 -> 0 | I63: ='Corrective Action Plans'!L164 -> 1056 | J63: ='Corrective Action Plans'!L167 -> 0 | K63: ='Corrective Action Plans'!L170 -> 0 | L63: ='Form "B" Field'!J72 -> 0 | M63: 0 | N63: 0 | O63: 0 | P63: 0
B64: System Install Oversight 7 days | H64: =' Field Task'!C131 -> 1840 | I64: =' Field Task'!C132 -> 1056 | K64: =' Field Task'!C133 -> 6720 | L64: ='Form "B" Field'!J73 -> 0 | M64: =H64*L64 -> 0 | N64: =I64*L64 -> 0 | O64: =J64*L64 -> 0 | P64: =K64*L64 -> 0
B65: System Install Oversigth Adder | H65: =' Field Task'!C136 -> 115 | I65: =' Field Task'!C137 -> 0 | K65: =' Field Task'!C138 -> 960 | L65: ='Form "B" Field'!J74 -> 0 | M65: =H65*L65 -> 0 | N65: =I65*L65 -> 0 | O65: =J65*L65 -> 0 | P65: =K65*L65 -> 0
B66: System Start up | H66: =' Field Task'!I131 -> 1840 | I66: =' Field Task'!I132 -> 0 | K66: =' Field Task'!I133 -> 0 | L66: ='Form "B" Field'!J75 -> 0 | M66: =H66*L66 -> 0 | N66: =I66*L66 -> 0 | O66: =J66*L66 -> 0 | P66: =K66*L66 -> 0
B67: System decommissioning | H67: =' Field Task'!I136 -> 115 | I67: =' Field Task'!I133 -> 0 | J67: =' Field Task'!I137 -> 66 | K67: =' Field Task'!I138 -> 960 | L67: ='Form "B" Field'!J76 -> 0 | M67: =H67*L67 -> 0 | N67: =I67*L67 -> 0 | O67: =J67*L67 -> 0 | P67: =K67*L67 -> 0
B68: DPVE Pump and Treat O&M 3 months | H68: =' Field Task'!C116 -> 920 | K68: =' Field Task'!G116 -> 3360 | L68: ='Form "B" Field'!J77 -> 0 | M68: 0 | N68: 0 | O68: 0 | P68: 0
B69: DPVE Pump and Treat O&M 4 months | H69: =' Field Task'!C120 -> 920 | K69: =' Field Task'!G120 -> 4480 | L69: ='Form "B" Field'!J78 -> 0 | M69: 0 | N69: 0 | O69: 0 | P69: 0
B70: Ozone, biosparge, sve, biovent and Air Sparge O&M 3 months | H70: =' Field Task'!C118 -> 460 | K70: =' Field Task'!G118 -> 1680 | L70: ='Form "B" Field'!J79 -> 0 | M70: 0 | N70: 0 | O70: 0 | P70: 0
B71: Ozone, biosparge, sve, biovent and Air Sparge O&M 4 months | H71: =' Field Task'!C122 -> 460 | K71: =' Field Task'!G122 -> 2240 | L71: ='Form "B" Field'!J80 -> 0 | M71: 0 | N71: 0 | O71: 0 | P71: 0
M74: =SUM(M4:M73)+(('Form "F" Details'!J73*'Maximum Rates'!D5)*'Maximum Rates'!C46)+('Form "F" Details'!J29*'Maximum Rates'!D5) -> 0 | N74: =SUM(N4:N73)+('Form "F" Details'!J33*'Maximum Rates'!D6)+(('Form "F" Details'!J81*'Maximum Rates'!D6)*'Maximum Rates'!C46) -> 0 | O74: =SUM(O4:O73)+('Form "F" Details'!J36*'Maximum Rates'!D7)+(('Form "F" Details'!J87*'Maximum Rates'!D7)*'Maximum Rates'!C46) -> 0 | P74: =(SUM(P4:P73))+(('Form "F" Details'!J99*'Maximum Rates'!D9)*'Maximum Rates'!C46)+('Form "F" Details'!J42*'Maximum Rates'!D9) -> 0
M76: =M74/'Maximum Rates'!D5 -> 0 | N76: =N74/'Maximum Rates'!D6 -> 0 | O76: =O74/'Maximum Rates'!D7 -> 0 | P76: =P74/'Maximum Rates'!D9 -> 0 | R76: =SUM(M76:P76) -> 0

Sheet Office Breakout (hidden)
E7: scientist | F7: PM | G7: PE/PE | H7: Staff G | I7: Draft | J7: Cleric | M7: PM | N7: PE/PG | O7: St Geologist | P7: Draft | Q7: clerical | R7: scientist
A8: Initial Abatement Report
B9: 1-2 days in field | F9: =IF($L9>=1,'Initial Abatement'!L3,0) -> 0 | G9: =IF(L9>=1,'Initial Abatement'!L8,0) -> 0 | H9: =IF(L9>=1,'Initial Abatement'!L11,0) -> 0 | I9: =IF(L9>=1,'Initial Abatement'!L14,0) -> 0 | J9: =IF(L9>=1,'Initial Abatement'!L17,0) -> 0 | K9: =SUM(F9:J9) -> 0 | L9: ='Form "A" Office'!J9 -> 0 | M9: =F9*L9 -> 0 | N9: =G9*L9 -> 0 | O9: =H9*L9 -> 0 | P9: =I9*L9 -> 0 | Q9: =J9*L9 -> 0
B10: Adder amount for every working day over 2 days | F10: =IF(L10>=1,'Initial Abatement'!D44,0) -> 0 | G10: =IF(L10>=1,'Initial Abatement'!D42,0) -> 0 | H10: =IF(L10>=1,'Initial Abatement'!D43,0) -> 0 | J10: =IF(L10>=1,'Initial Abatement'!D45,0) -> 0 | K10: =SUM(F10:J10) -> 0 | L10: ='Form "A" Office'!J10 -> 0 | M10: =F10*L10 -> 0 | N10: =G10*L10 -> 0 | O10: =H10*L10 -> 0 | P10: =I10*L10 -> 0 | Q10: =J10*L10 -> 0
A11: Initial Abatement Report | F11: ='Initial Abatement'!L23 -> 115 | G11: ='Initial Abatement'!L28 -> 132 | H11: ='Initial Abatement'!L31 -> 96 | I11: ='Initial Abatement'!L34 -> 70 | J11: ='Initial Abatement'!L37 -> 114 | K11: 527 | L11: ='Form "A" Office'!J11 -> 0 | M11: =F11*L11 -> 0 | N11: =G11*L11 -> 0 | O11: =H11*L11 -> 0 | P11: =I11*L11 -> 0 | Q11: =J11*L11 -> 0
A12: Preliminary Investigation Rpt | F12: =IF(L12>=1,'Prelm Rprt'!L3,0) -> 0 | G12: =IF(L12>=1,'Prelm Rprt'!L7,0) -> 0 | H12: =IF(L12>=1,'Prelm Rprt'!L9,0) -> 0 | I12: =IF(L12>=1,'Prelm Rprt'!L12,0) -> 0 | J12: =IF(L12>=1,'Prelm Rprt'!L15,0) -> 0 | K12: 0 | L12: ='Form "A" Office'!J12 -> 0 | M12: 0 | N12: 0 | O12: 0 | P12: 0 | Q12: 0
A13: Secondary Plan (on and offsite) | F13: ='Prelm Rprt'!L21 -> 230 | G13: ='Prelm Rprt'!L23 -> 132 | H13: ='Prelm Rprt'!L25 -> 384 | I13: ='Prelm Rprt'!L28 -> 70 | J13: ='Prelm Rprt'!L30 -> 114 | K13: 930 | L13: ='Form "A" Office'!J13 -> 0 | M13: 0 | N13: 0 | O13: 0 | P13: 0 | Q13: 0
A14: Secondary Report (up to 12 wells) | F14: ='Scdry additional well Plan Rpt'!L3 -> 1035 | G14: ='Scdry additional well Plan Rpt'!L7 -> 660 | H14: ='Scdry additional well Plan Rpt'!L10 -> 3072 | I14: ='Scdry additional well Plan Rpt'!L13 -> 1120 | J14: ='Scdry additional well Plan Rpt'!L16 -> 342 | K14: 6229 | L14: ='Form "A" Office'!J14 -> 0 | M14: 0 | N14: 0 | O14: 0 | P14: 0 | Q14: 0
A15: Adder per Wells over 12 | H15: ='Scdry additional well Plan Rpt'!D21 -> 96 | I15: ='Scdry additional well Plan Rpt'!G21 -> 70 | K15: 166 | L15: ='Form "A" Office'!J15 -> 0 | M15: 0 | N15: 0 | O15: 0 | P15: 0 | Q15: 0
A16: Off-site access- Residential | F16: ='Scdry additional well Plan Rpt'!D119 -> 201.25 | K16: 201.25 | L16: ='Form "A" Office'!J16 -> 0 | M16: =F16*L16 -> 0 | N16: =G16*L16 -> 0 | O16: =H16*L16 -> 0 | P16: =I16*L16 -> 0 | Q16: =J16*L16 -> 0
A17: Off-site access - Commercial | F17: ='Scdry additional well Plan Rpt'!D116 -> 287.5 | K17: 287.5 | L17: ='Form "A" Office'!J17 -> 0 | M17: 0 | N17: 0 | O17: 0 | P17: 0 | Q17: 0
A18: Off-site access - ALDOT | F18: ='Scdry additional well Plan Rpt'!L93 -> 920 | G18: ='Scdry additional well Plan Rpt'!L97 -> 132 | H18: ='Scdry additional well Plan Rpt'!L100 -> 192 | I18: ='Scdry additional well Plan Rpt'!L103 -> 280 | J18: ='Scdry additional well Plan Rpt'!L106 -> 114 | K18: 1638 | L18: ='Form "A" Office'!J18 -> 0 | M18: 0 | N18: 0 | O18: 0 | P18: 0 | Q18: 0
A19: Additional Well Installation Plan (1-4) | F19: ='Scdry additional well Plan Rpt'!L25 -> 115 | G19: ='Scdry additional well Plan Rpt'!L27 -> 132 | H19: ='Scdry additional well Plan Rpt'!L29 -> 96 | I19: ='Scdry additional well Plan Rpt'!L32 -> 70 | J19: ='Scdry additional well Plan Rpt'!L34 -> 114 | K19: 527 | L19: ='Form "A" Office'!J19 -> 0 | M19: 0 | N19: 0 | O19: 0 | P19: 0 | Q19: 0
A20: Additional Well Installation Plan (>4) | F20: ='Scdry additional well Plan Rpt'!L40 -> 230 | G20: ='Scdry additional well Plan Rpt'!L42 -> 132 | H20: ='Scdry additional well Plan Rpt'!L44 -> 288 | I20: ='Scdry additional well Plan Rpt'!L47 -> 140 | J20: ='Scdry additional well Plan Rpt'!L49 -> 114 | K20: 904 | L20: ='Form "A" Office'!J20 -> 0 | M20: =F20*L20 -> 0 | N20: =G20*L20 -> 0 | O20: =H20*L20 -> 0 | P20: =I20*L20 -> 0 | Q20: =J20*L20 -> 0
A21: Additional Well Installation Report (1-4) | F21: ='Scdry additional well Plan Rpt'!L55 -> 460 | G21: ='Scdry additional well Plan Rpt'!L59 -> 132 | H21: ='Scdry additional well Plan Rpt'!L62 -> 384 | I21: ='Scdry additional well Plan Rpt'!L65 -> 140 | J21: ='Scdry additional well Plan Rpt'!L68 -> 171 | K21: 1287 | L21: ='Form "A" Office'!J21 -> 0 | M21: =F21*L21 -> 0 | N21: =G21*L21 -> 0 | O21: =H21*L21 -> 0 | P21: =I21*L21 -> 0 | Q21: =J21*L21 -> 0
A22: Additional Well Installation Report (>4) | F22: ='Scdry additional well Plan Rpt'!L74 -> 575 | G22: ='Scdry additional well Plan Rpt'!L78 -> 132 | H22: ='Scdry additional well Plan Rpt'!L81 -> 480 | I22: ='Scdry additional well Plan Rpt'!L84 -> 210 | J22: ='Scdry additional well Plan Rpt'!L87 -> 171 | K22: =SUM(F22:J22) -> 1568 | L22: ='Form "A" Office'!J22 -> 0 | M22: =F22*L22 -> 0 | N22: =G22*L22 -> 0 | O22: =H22*L22 -> 0 | P22: =I22*L22 -> 0 | Q22: =J22*L22 -> 0
A23: High Resolution | F23: ='Scdry additional well Plan Rpt'!L123 -> 575 | G23: ='Scdry additional well Plan Rpt'!L127 -> 132 | H23: ='Scdry additional well Plan Rpt'!L130 -> 768 | I23: ='Scdry additional well Plan Rpt'!L133 -> 560 | J23: ='Scdry additional well Plan Rpt'!L136 -> 114 | K23: =SUM(F23:J23) -> 2149 | L23: ='Form "A" Office'!J23 -> 0 | M23: 0 | N23: 0 | O23: 0 | P23: 0 | Q23: 0
A24: GW monitoring plan | F24: ='NAMR GWM PLAN RPRT'!L3 -> 115 | G24: ='NAMR GWM PLAN RPRT'!L6 -> 132 | H24: ='NAMR GWM PLAN RPRT'!L9 -> 192 | I24: ='NAMR GWM PLAN RPRT'!L12 -> 0 | J24: ='NAMR GWM PLAN RPRT'!L15 -> 114 | K24: 553 | L24: ='Form "A" Office'!J24 -> 0 | M24: 0 | N24: 0 | O24: 0 | P24: 0 | Q24: 0
A25: NAMR/GWM-first report | K25: 0 | L25: ='Form "A" Office'!J25 -> 0 | M25: 0 | N25: 0 | O25: 0 | P25: 0 | Q25: 0
B26: 1-12 wells, BTEX/MTBE/Naphthalene | F26: ='NAMR GWM PLAN RPRT'!L21 -> 230 | G26: ='NAMR GWM PLAN RPRT'!L25 -> 132 | H26: ='NAMR GWM PLAN RPRT'!L28 -> 576 | I26: ='NAMR GWM PLAN RPRT'!L31 -> 140 | J26: ='NAMR GWM PLAN RPRT'!L34 -> 228 | K26: =SUM(F26:J26) -> 1306 | L26: ='Form "A" Office'!J26 -> 0 | M26: 0 | N26: 0 | O26: 0 | P26: 0 | Q26: 0
B27: 1-12 wells, BTEX/MTBE+PAH | F27: ='NAMR GWM PLAN RPRT'!L43 -> 230 | G27: ='NAMR GWM PLAN RPRT'!L47 -> 132 | H27: ='NAMR GWM PLAN RPRT'!L50 -> 768 | I27: ='NAMR GWM PLAN RPRT'!L53 -> 210 | J27: ='NAMR GWM PLAN RPRT'!L56 -> 228 | K27: 1568 | L27: ='Form "A" Office'!J27 -> 0 | M27: 0 | N27: 0 | O27: 0 | P27: 0 | Q27: 0
A28: NAMR/GWM adder >12 wells, BTEX/MTBE/Naphthalene | H28: ='NAMR GWM PLAN RPRT'!D39 -> 24 | I28: ='NAMR GWM PLAN RPRT'!G39 -> 17.5 | K28: 41.5 | L28: ='Form "A" Office'!J28 -> 0 | M28: 0 | N28: 0 | O28: 0 | P28: 0 | Q28: 0
A29: NAMR/GWM adder >12 wells, BTEX/MTBE + PAH | H29: ='NAMR GWM PLAN RPRT'!D64 -> 33.6 | I29: ='NAMR GWM PLAN RPRT'!G64 -> 24.5 | K29: 58.1 | L29: ='Form "A" Office'!J29 -> 0 | M29: 0 | N29: 0 | O29: 0 | P29: 0 | Q29: 0
K30: 0 | L30: ='Form "A" Office'!J30 -> 0 | M30: 0 | N30: 0 | O30: 0 | P30: 0 | Q30: 0
A31: FPR Plan -All free product recovery | F31: ='FP PlanReportMEMEField'!L3 -> 460 | G31: ='FP PlanReportMEMEField'!L6 -> 132 | H31: ='FP PlanReportMEMEField'!L9 -> 96 | I31: ='FP PlanReportMEMEField'!L12 -> 70 | J31: ='FP PlanReportMEMEField'!L15 -> 114 | K31: 872 | L31: ='Form "A" Office'!J31 -> 0 | M31: 0 | N31: 0 | O31: 0 | P31: 0 | Q31: 0
A32: FPR Report -all free product reports (except MEME) | F32: ='FP PlanReportMEMEField'!L65 -> 460 | G32: ='FP PlanReportMEMEField'!L69 -> 132 | H32: ='FP PlanReportMEMEField'!L72 -> 192 | I32: ='FP PlanReportMEMEField'!L75 -> 70 | J32: ='FP PlanReportMEMEField'!L78 -> 228 | K32: 1082 | L32: ='Form "A" Office'!J32 -> 0 | M32: 0 | N32: 0 | O32: 0 | P32: 0 | Q32: 0
A33: FPR Report-MEME | F33: ='FP PlanReportMEMEField'!L84 -> 460 | G33: ='FP PlanReportMEMEField'!L88 -> 132 | H33: ='FP PlanReportMEMEField'!L91 -> 288 | I33: ='FP PlanReportMEMEField'!L94 -> 70 | J33: ='FP PlanReportMEMEField'!L97 -> 228 | K33: 1178 | L33: ='Form "A" Office'!J33 -> 0 | M33: 0 | N33: 0 | O33: 0 | P33: 0 | Q33: 0
A34: FPR Report-MEME/adder for MEME to GWM/NAMR | F34: ='FP PlanReportMEMEField'!L127 -> 230 | G34: ='FP PlanReportMEMEField'!L131 -> 132 | H34: ='FP PlanReportMEMEField'!L134 -> 288 | I34: ='FP PlanReportMEMEField'!L137 -> 70 | J34: ='FP PlanReportMEMEField'!L140 -> 114 | K34: =SUM(F34:J34) -> 834 | L34: ='Form "A" Office'!J34 -> 0 | M34: =F34*L34 -> 0 | N34: =G34*L34 -> 0 | O34: =H34*L34 -> 0 | P34: =I34*L34 -> 0 | Q34: =J34*L34 -> 0
A35: Additional Adder for MEME | F35: ='FP PlanReportMEMEField'!L146 -> 230 | G35: ='FP PlanReportMEMEField'!L150 -> 0 | H35: ='FP PlanReportMEMEField'!L153 -> 96 | I35: ='FP PlanReportMEMEField'!L156 -> 0 | J35: ='FP PlanReportMEMEField'!L159 -> 0 | K35: =SUM(F35:J35) -> 326 | L35: ='Form "A" Office'!J35 -> 0 | M35: =F35*L35 -> 0 | N35: =G35*L35 -> 0 | O35: =H35*L35 -> 0 | P35: =I35*L35 -> 0 | Q35: =J35*L35 -> 0
A36: ARBCA Report Tier 1
B37: 1-12 wells, BTEX/MTBE/Naphthalene | F37: =ARBCA!L3 -> 575 | G37: =ARBCA!L6 -> 792 | H37: =ARBCA!L9 -> 2304 | I37: =ARBCA!L12 -> 490 | J37: =ARBCA!L15 -> 228 | K37: 4389 | L37: ='Form "A" Office'!J48 -> 0 | M37: 0 | N37: 0 | O37: 0 | P37: 0 | Q37: 0
B38: 1-12 wells, BTEX/MTBE+PAH | F38: =ARBCA!L21 -> 575 | G38: =ARBCA!L24 -> 792 | H38: =ARBCA!L27 -> 2496 | I38: =ARBCA!L30 -> 560 | J38: =ARBCA!L33 -> 228 | K38: 4651 | L38: ='Form "A" Office'!J49 -> 0 | M38: 0 | N38: 0 | O38: 0 | P38: 0 | Q38: 0
A39: ARBCA Report Tier II | K39: 0 | L39: ='Form "A" Office'!J50 -> 0 | M39: 0 | N39: 0 | O39: 0 | P39: 0 | Q39: 0
B40: 1-12 wells, BTEX/MTBE/Naphthalene | F40: =ARBCA!L39 -> 575 | G40: =ARBCA!L42 -> 792 | H40: =ARBCA!L45 -> 2304 | I40: =ARBCA!L48 -> 490 | J40: =ARBCA!L51 -> 228 | K40: 4389 | L40: ='Form "A" Office'!J51 -> 0 | M40: 0 | N40: 0 | O40: 0 | P40: 0 | Q40: 0
B41: 1-12 wells, BTEX/MTBE+PAH | F41: =ARBCA!L64 -> 575 | G41: =ARBCA!L67 -> 792 | H41: =ARBCA!L70 -> 2496 | I41: =ARBCA!L73 -> 560 | J41: =ARBCA!L76 -> 228 | K41: 4651 | L41: ='Form "A" Office'!J52 -> 0 | M41: 0 | N41: 0 | O41: 0 | P41: 0 | Q41: 0
A42: GRP Well Assessment | F42: =ARBCA!L110 -> 115 | G42: =ARBCA!L113 -> 132 | H42: =ARBCA!L116 -> 192 | I42: =ARBCA!L119 -> 70 | J42: =ARBCA!L122 -> 57 | K42: =SUM(F42:J42) -> 566 | L42: ='Form "A" Office'!J53 -> 0 | M42: =F42*L42 -> 0 | N42: =G42*L42 -> 0 | O42: =H42*L42 -> 0 | P42: =I42*L42 -> 0 | Q42: =J42*L42 -> 0
A43: GRP Well 1-4 | F43: =ARBCA!L128 -> 115 | G43: =ARBCA!L131 -> 264 | H43: =ARBCA!L134 -> 384 | I43: =ARBCA!L137 -> 70 | J43: =ARBCA!L140 -> 57 | K43: =SUM(F43:J43) -> 890 | L43: ='Form "A" Office'!J54 -> 0 | M43: =F43*L43 -> 0 | N43: =G43*L43 -> 0 | O43: =H43*L43 -> 0 | P43: =I43*L43 -> 0 | Q43: =J43*L43 -> 0
A44: GRP Well >4 | F44: =(ARBCA!L128*0.25) -> 28.75 | G44: =(ARBCA!L131*0.25) -> 66 | H44: =ARBCA!L134*0.25 -> 96 | I44: =ARBCA!L137*0.25 -> 17.5 | J44: =ARBCA!L140*0.25 -> 14.25 | K44: =SUM(F44:J44) -> 222.5 | L44: ='Form "A" Office'!J55 -> 0 | M44: =F44*L44 -> 0 | N44: =G44*L44 -> 0 | O44: =H44*L44 -> 0 | P44: =I44*L44 -> 0 | Q44: =J44*L44 -> 0
A45: adder for >12 wells per well, BTEX/MTBE/Naph | H45: =ARBCA!D82 -> 24 | I45: =ARBCA!G82 -> 17.5 | K45: 41.5 | L45: ='Form "A" Office'!J56 -> 0 | M45: 0 | N45: 0 | O45: 0 | P45: 0 | Q45: 0
A46: adder for >12 wells per well, BTEX/MTBE+PAH | H46: =ARBCA!D85 -> 28.8 | I46: =ARBCA!G85 -> 21 | K46: 49.8 | L46: ='Form "A" Office'!J57 -> 0 | M46: 0 | N46: 0 | O46: 0 | P46: 0 | Q46: 0
A47: adder for Tier II WITH DECAY | H47: =ARBCA!D88 -> 2304 | I47: =ARBCA!G88 -> 210 | K47: 2514 | L47: ='Form "A" Office'!J58 -> 0 | M47: 0 | N47: 0 | O47: 0 | P47: 0 | Q47: 0
A48: ARBCA Evaluation with Decay | F48: =ARBCA!L92 -> 805 | G48: =ARBCA!L95 -> 396 | H48: =ARBCA!L98 -> 2304 | I48: =ARBCA!L101 -> 70 | J48: =ARBCA!L104 -> 228 | K48: 3803 | L48: ='Form "A" Office'!J59 -> 0 | M48: =F48*L48 -> 0 | N48: =G48*L48 -> 0 | O48: =H48*L48 -> 0 | P48: =I48*L48 -> 0 | Q48: =J48*L48 -> 0
A50: CAP Development - CA evaluation (once per site) | F50: ='Corrective Action Plans'!L3 -> 1380 | G50: ='Corrective Action Plans'!L6 -> 1188 | H50: ='Corrective Action Plans'!L9 -> 768 | I50: ='Corrective Action Plans'!L12 -> 140 | J50: ='Corrective Action Plans'!L15 -> 285 | K50: 3761 | L50: ='Form "A" Office'!J61 -> 0 | M50: 0 | N50: 0 | O50: 0 | P50: 0 | Q50: 0
A51: CAP Development - RNA | F51: ='Corrective Action Plans'!L21 -> 345 | G51: ='Corrective Action Plans'!L24 -> 264 | H51: ='Corrective Action Plans'!L27 -> 768 | I51: ='Corrective Action Plans'!L30 -> 140 | J51: ='Corrective Action Plans'!L33 -> 228 | K51: 1745 | L51: ='Form "A" Office'!J62 -> 0 | M51: 0 | N51: 0 | O51: 0 | P51: 0 | Q51: 0
A52: CAP Development - RNA with MEME | F52: ='Corrective Action Plans'!L39 -> 460 | G52: ='Corrective Action Plans'!L42 -> 264 | H52: ='Corrective Action Plans'!L45 -> 768 | I52: ='Corrective Action Plans'!L48 -> 140 | J52: ='Corrective Action Plans'!L51 -> 228 | K52: 1860 | L52: ='Form "A" Office'!J63 -> 0 | M52: 0 | N52: 0 | O52: 0 | P52: 0 | Q52: 0
A53: CAP Development - Excavation | F53: ='Corrective Action Plans'!L64 -> 805 | G53: ='Corrective Action Plans'!L67 -> 264 | H53: ='Corrective Action Plans'!L70 -> 384 | I53: ='Corrective Action Plans'!L73 -> 140 | J53: ='Corrective Action Plans'!L76 -> 228 | K53: 1821 | L53: ='Form "A" Office'!J64 -> 0 | M53: 0 | N53: 0 | O53: 0 | P53: 0 | Q53: 0
A54: CAP Development - Surfactant Injection | F54: ='Corrective Action Plans'!L82 -> 1840 | G54: ='Corrective Action Plans'!L85 -> 2112 | H54: ='Corrective Action Plans'!L88 -> 672 | I54: ='Corrective Action Plans'!L91 -> 280 | J54: ='Corrective Action Plans'!L94 -> 228 | K54: 5132 | L54: ='Form "A" Office'!J65 -> 0 | M54: 0 | N54: 0 | O54: 0 | P54: 0 | Q54: 0
A55: CAP Development (Class 1)- DPVE, P&T, SVE | F55: ='Corrective Action Plans'!L100 -> 1840 | G55: ='Corrective Action Plans'!L103 -> 3168 | H55: ='Corrective Action Plans'!L106 -> 768 | I55: ='Corrective Action Plans'!L109 -> 1680 | J55: ='Corrective Action Plans'!L112 -> 228 | K55: 7684 | L55: ='Form "A" Office'!J66 -> 0 | M55: 0 | N55: 0 | O55: 0 | P55: 0 | Q55: 0
A56: CAP Development (Class 2) - Ozone/SVE, AS/SVE, liquid Chemox/Biox | F56: ='Corrective Action Plans'!L125 -> 1840 | G56: ='Corrective Action Plans'!L128 -> 2640 | H56: ='Corrective Action Plans'!L131 -> 672 | I56: ='Corrective Action Plans'!L134 -> 1400 | J56: ='Corrective Action Plans'!L137 -> 228 | K56: 6780 | L56: ='Form "A" Office'!J67 -> 0 | M56: 0 | N56: 0 | O56: 0 | P56: 0 | Q56: 0
A57: CAP Development (Class 3) - Ozone, AS, SVE | F57: ='Corrective Action Plans'!L143 -> 1840 | G57: ='Corrective Action Plans'!L146 -> 2112 | H57: ='Corrective Action Plans'!L149 -> 672 | I57: ='Corrective Action Plans'!L152 -> 1400 | J57: ='Corrective Action Plans'!L155 -> 228 | K57: 6252 | L57: ='Form "A" Office'!J68 -> 0 | M57: 0 | N57: 0 | O57: 0 | P57: 0 | Q57: 0
A58: CAP Modification | E58: ='Form "F" Details'!K60 ->  | F58: ='Form "F" Details'!K50 ->  | G58: ='Form "F" Details'!K54 ->  | H58: ='Form "F" Details'!K57 ->  | I58: =('Form "F" Details'!K63) ->  | J58: ='Form "F" Details'!K66 ->  | K58: =SUM(E58:J58) -> 0 | L58: =IF('Form "A" Office'!J69="",0,1) -> 0 | M58: =IF(F58="",0,L58*F58) -> 0 | N58: =IF(G58="",0,L58*G58) -> 0 | O58: =IF(H58="",0,L58*H58) -> 0 | P58: =IF(I58="",0,L58*I58) -> 0 | Q58: =IF(J58="",0,L58*J58) -> 0 | R58: =IF(E58="",0,L58*E58) -> 0
A59: CAP Implementation rpt - Excavation | F59: ='Corrective Action Reports Eng'!L3 -> 920 | G59: ='Corrective Action Reports Eng'!L6 -> 528 | H59: ='Corrective Action Reports Eng'!L9 -> 576 | I59: ='Corrective Action Reports Eng'!L12 -> 140 | J59: ='Corrective Action Reports Eng'!L15 -> 114 | K59: 2278 | L59: ='Form "A" Office'!J70 -> 0 | M59: 0 | N59: 0 | O59: 0 | P59: 0 | Q59: 0
A60: CAP Implementation rpt - Injections | F60: ='Corrective Action Reports Eng'!L21 -> 1150 | G60: ='Corrective Action Reports Eng'!L24 -> 1056 | H60: ='Corrective Action Reports Eng'!L27 -> 384 | I60: ='Corrective Action Reports Eng'!L30 -> 140 | J60: ='Corrective Action Reports Eng'!L33 -> 171 | K60: 2901 | L60: ='Form "A" Office'!J71 -> 0 | M60: 0 | N60: 0 | O60: 0 | P60: 0 | Q60: 0
A61: CA System Installation Rpt (all Classes same) | F61: ='Corrective Action Reports Eng'!L64 -> 2990 | G61: ='Corrective Action Reports Eng'!L67 -> 2112 | H61: ='Corrective Action Reports Eng'!L70 -> 2112 | I61: ='Corrective Action Reports Eng'!L73 -> 560 | J61: ='Corrective Action Reports Eng'!L76 -> 570 | K61: 8344 | L61: ='Form "A" Office'!J72 -> 0 | M61: 0 | N61: 0 | O61: 0 | P61: 0 | Q61: 0
A62: SEMR Qtrly DPVE, P&T Reports | K62: 0 | L62: ='Form "A" Office'!J73 -> 0 | M62: 0 | N62: 0 | O62: 0 | P62: 0 | Q62: 0
B63: 1-12 wells, BTEX/MTBE/Naphthalene | F63: ='Corrective Action Reports Eng'!L82 -> 1610 | G63: ='Corrective Action Reports Eng'!L85 -> 1056 | H63: ='Corrective Action Reports Eng'!L88 -> 2112 | I63: ='Corrective Action Reports Eng'!L91 -> 210 | J63: ='Corrective Action Reports Eng'!L94 -> 456 | K63: 5444 | L63: ='Form "A" Office'!J74 -> 0 | M63: 0 | N63: 0 | O63: 0 | P63: 0 | Q63: 0
B64: 1-12 wells, BTEX/MTBE+PAH | F64: ='Corrective Action Reports Eng'!L100 -> 1610 | G64: ='Corrective Action Reports Eng'!L103 -> 1056 | H64: ='Corrective Action Reports Eng'!L106 -> 2304 | I64: ='Corrective Action Reports Eng'!L109 -> 280 | J64: ='Corrective Action Reports Eng'!L112 -> 456 | K64: 5706 | L64: ='Form "A" Office'!J75 -> 0 | M64: 0 | N64: 0 | O64: 0 | P64: 0 | Q64: 0
A65: SEMR Qtrly Ozone, AS, SVE, Chemox, Biosparge - Rpts | K65: 0 | L65: ='Form "A" Office'!J76 -> 0 | M65: 0 | N65: 0 | O65: 0 | P65: 0 | Q65: 0
B66: 1-12 wells, BTEX/MTBE/Naphthalene | F66: ='Corrective Action Reports Eng'!L118 -> 1380 | G66: ='Corrective Action Reports Eng'!L121 -> 1056 | H66: ='Corrective Action Reports Eng'!L124 -> 1728 | I66: ='Corrective Action Reports Eng'!L127 -> 210 | J66: ='Corrective Action Reports Eng'!L130 -> 456 | K66: 4830 | L66: ='Form "A" Office'!J77 -> 0 | M66: 0 | N66: 0 | O66: 0 | P66: 0 | Q66: 0
B67: 1-12 wells, BTEX/MTBE+PAH | F67: ='Corrective Action Reports Eng'!L136 -> 1380 | G67: ='Corrective Action Reports Eng'!L139 -> 1056 | H67: ='Corrective Action Reports Eng'!L142 -> 1920 | I67: ='Corrective Action Reports Eng'!L145 -> 280 | J67: ='Corrective Action Reports Eng'!L148 -> 456 | K67: 5092 | L67: ='Form "A" Office'!J78 -> 0 | M67: 0 | N67: 0 | O67: 0 | P67: 0 | Q67: 0
A68: SEMR adder >12 wells, BTEX/MTBE/Naph | H68: ='Corrective Action Reports Eng'!D153 -> 24 | I68: ='Corrective Action Reports Eng'!G153 -> 17.5 | K68: =SUM(F68:J68) -> 41.5 | L68: ='Form "A" Office'!J79 -> 0 | M68: 0 | N68: 0 | O68: 0 | P68: 0 | Q68: 0
A69: SEMR adder >12 wells, BTEX/MTBE+PAH | H69: ='Corrective Action Reports Eng'!D156 -> 28.8 | I69: ='Corrective Action Reports Eng'!G156 -> 21 | K69: 49.8 | L69: ='Form "A" Office'!J80 -> 0 | M69: 0 | N69: 0 | O69: 0 | P69: 0 | Q69: 0
A71: IDW/Treatment Disposal Plan | F71: ='MISC Plans Reports'!L3 -> 345 | G71: ='MISC Plans Reports'!L6 -> 132 | H71: ='MISC Plans Reports'!L9 -> 96 | I71: ='MISC Plans Reports'!L12 -> 0 | J71: ='MISC Plans Reports'!L15 -> 57 | K71: 630 | L71: ='Form "A" Office'!J90 -> 0 | M71: 0 | N71: 0 | O71: 0 | P71: 0 | Q71: 0
A72: IDW/Treatment Disposal Rpt | F72: ='MISC Plans Reports'!L21 -> 460 | G72: ='MISC Plans Reports'!L24 -> 132 | H72: ='MISC Plans Reports'!L27 -> 192 | I72: ='MISC Plans Reports'!L30 -> 0 | J72: ='MISC Plans Reports'!L33 -> 228 | K72: =SUM(F72:J72) -> 1012 | L72: ='Form "A" Office'!J91 -> 0 | M72: =F72*L72 -> 0 | N72: =G72*L72 -> 0 | O72: =H72*L72 -> 0 | P72: =I72*L72 -> 0 | Q72: =J72*L72 -> 0
A73: DPVE Pilot Test Plan (not for Slug Test) | F73: ='Aquifer Pilot Pl Rpt Fld'!L39 -> 575 | G73: ='Aquifer Pilot Pl Rpt Fld'!L42 -> 132 | H73: ='Aquifer Pilot Pl Rpt Fld'!L45 -> 288 | I73: ='Aquifer Pilot Pl Rpt Fld'!L48 -> 70 | J73: ='Aquifer Pilot Pl Rpt Fld'!L51 -> 114 | K73: 1179 | L73: ='Form "A" Office'!J92 -> 0 | M73: 0 | N73: 0 | O73: 0 | P73: 0 | Q73: 0
A74: DPVE Pilot Test Report | F74: ='Aquifer Pilot Pl Rpt Fld'!L57 -> 575 | G74: ='Aquifer Pilot Pl Rpt Fld'!L60 -> 264 | H74: ='Aquifer Pilot Pl Rpt Fld'!L63 -> 576 | I74: ='Aquifer Pilot Pl Rpt Fld'!L66 -> 210 | J74: ='Aquifer Pilot Pl Rpt Fld'!L69 -> 228 | K74: 1853 | L74: ='Form "A" Office'!J93 -> 0 | M74: 0 | N74: 0 | O74: 0 | P74: 0 | Q74: 0
A75: AS/SVE or Ozone Pilot Test Plan | F75: ='Aquifer Pilot Pl Rpt Fld'!L75 -> 575 | G75: ='Aquifer Pilot Pl Rpt Fld'!L78 -> 132 | H75: ='Aquifer Pilot Pl Rpt Fld'!L81 -> 288 | I75: ='Aquifer Pilot Pl Rpt Fld'!L84 -> 70 | J75: ='Aquifer Pilot Pl Rpt Fld'!L87 -> 114 | K75: 1179 | L75: ='Form "A" Office'!J94 -> 0 | M75: =F75*L75 -> 0 | N75: =G75*L75 -> 0 | O75: =H75*L75 -> 0 | P75: =I75*L75 -> 0 | Q75: =J75*L75 -> 0
A76: AS/SVE or Ozone Pilot Test Report | F76: ='Aquifer Pilot Pl Rpt Fld'!L93 -> 575 | G76: ='Aquifer Pilot Pl Rpt Fld'!L96 -> 264 | H76: ='Aquifer Pilot Pl Rpt Fld'!L99 -> 576 | I76: ='Aquifer Pilot Pl Rpt Fld'!L102 -> 210 | J76: ='Aquifer Pilot Pl Rpt Fld'!L105 -> 228 | K76: 1853 | L76: ='Form "A" Office'!J95 -> 0 | M76: =F76*L76 -> 0 | N76: =G76*L76 -> 0 | O76: =H76*L76 -> 0 | P76: =I76*L76 -> 0 | Q76: =J76*L76 -> 0
A77: ISCO or Bio-Remediation Pilot Test Plan | F77: ='Aquifer Pilot Pl Rpt Fld'!L111 -> 575 | G77: ='Aquifer Pilot Pl Rpt Fld'!L114 -> 132 | H77: ='Aquifer Pilot Pl Rpt Fld'!L117 -> 288 | I77: ='Aquifer Pilot Pl Rpt Fld'!L120 -> 70 | J77: ='Aquifer Pilot Pl Rpt Fld'!L123 -> 114 | K77: 1179 | L77: ='Form "A" Office'!J96 -> 0 | M77: =F77*L77 -> 0 | N77: =G77*L77 -> 0 | O77: =H77*L77 -> 0 | P77: =I77*L77 -> 0 | Q77: =J77*L77 -> 0
A78: ISCO or Bio-Remediation Pilot Test Report | F78: ='Aquifer Pilot Pl Rpt Fld'!L129 -> 575 | G78: ='Aquifer Pilot Pl Rpt Fld'!L132 -> 264 | H78: ='Aquifer Pilot Pl Rpt Fld'!L135 -> 768 | I78: ='Aquifer Pilot Pl Rpt Fld'!L138 -> 210 | J78: ='Aquifer Pilot Pl Rpt Fld'!L141 -> 228 | K78: 2045 | L78: ='Form "A" Office'!J97 -> 0 | M78: =F78*L78 -> 0 | N78: =G78*L78 -> 0 | O78: =H78*L78 -> 0 | P78: =I78*L78 -> 0 | Q78: =J78*L78 -> 0
A79: Specific Capacity Test Plan | F79: ='Aquifer Pilot Pl Rpt Fld'!L3 -> 115 | G79: ='Aquifer Pilot Pl Rpt Fld'!L6 -> 132 | H79: ='Aquifer Pilot Pl Rpt Fld'!L9 -> 96 | I79: ='Aquifer Pilot Pl Rpt Fld'!L12 -> 0 | J79: ='Aquifer Pilot Pl Rpt Fld'!L15 -> 57 | K79: 400 | L79: ='Form "A" Office'!J98 -> 0 | M79: 0 | N79: 0 | O79: 0 | P79: 0 | Q79: 0
A80: Specific Capacity Test Report | F80: ='Aquifer Pilot Pl Rpt Fld'!L21 -> 460 | G80: ='Aquifer Pilot Pl Rpt Fld'!L24 -> 132 | H80: ='Aquifer Pilot Pl Rpt Fld'!L27 -> 576 | I80: ='Aquifer Pilot Pl Rpt Fld'!L30 -> 140 | J80: ='Aquifer Pilot Pl Rpt Fld'!L33 -> 228 | K80: 1536 | L80: ='Form "A" Office'!J99 -> 0 | M80: 0 | N80: 0 | O80: 0 | P80: 0 | Q80: 0
A81: System Purchase letter | F81: ='Corrective Action Reports Eng'!L39 -> 1035 | G81: ='Corrective Action Reports Eng'!L42 -> 132 | H81: ='Corrective Action Reports Eng'!L45 -> 0 | I81: ='Corrective Action Reports Eng'!L48 -> 0 | J81: ='Corrective Action Reports Eng'!L51 -> 285 | K81: 1452 | L81: ='Form "A" Office'!J100 -> 0 | M81: 0 | N81: 0 | O81: 0 | P81: 0 | Q81: 0
A82: Monitoring Well Abandonment Plan | F82: ='MW Abandon Plan Report Field'!L3 -> 115 | G82: ='MW Abandon Plan Report Field'!L6 -> 66 | H82: ='MW Abandon Plan Report Field'!L9 -> 192 | I82: ='MW Abandon Plan Report Field'!L12 -> 0 | J82: ='MW Abandon Plan Report Field'!L15 -> 114 | K82: 487 | L82: ='Form "A" Office'!J101 -> 0 | M82: 0 | N82: 0 | O82: 0 | P82: 0 | Q82: 0
A83: Monitoring Well Abandonment Report | F83: ='MW Abandon Plan Report Field'!L21 -> 460 | G83: ='MW Abandon Plan Report Field'!L24 -> 132 | H83: ='MW Abandon Plan Report Field'!L27 -> 192 | I83: ='MW Abandon Plan Report Field'!L30 -> 70 | J83: ='MW Abandon Plan Report Field'!L33 -> 228 | K83: 1082 | L83: ='Form "A" Office'!J102 -> 0 | M83: 0 | N83: 0 | O83: 0 | P83: 0 | Q83: 0
A84: System Decommissioning Plan | F84: ='MW Abandon Plan Report Field'!L39 -> 460 | G84: ='MW Abandon Plan Report Field'!L42 -> 132 | H84: ='MW Abandon Plan Report Field'!L45 -> 192 | I84: ='MW Abandon Plan Report Field'!L48 -> 70 | J84: ='MW Abandon Plan Report Field'!L51 -> 114 | K84: 968 | L84: ='Form "A" Office'!J103 -> 0 | M84: 0 | N84: 0 | O84: 0 | P84: 0 | Q84: 0
A85: System Decommissioning Report | F85: ='MW Abandon Plan Report Field'!L64 -> 920 | G85: ='MW Abandon Plan Report Field'!L67 -> 132 | H85: ='MW Abandon Plan Report Field'!L70 -> 576 | I85: ='MW Abandon Plan Report Field'!L73 -> 70 | J85: ='MW Abandon Plan Report Field'!L76 -> 228 | K85: 1926 | L85: ='Form "A" Office'!J104 -> 0 | M85: 0 | N85: 0 | O85: 0 | P85: 0 | Q85: 0
A86: Alt Water Supply Plan | F86: ='MISC Plans Reports'!L39 -> 345 | G86: ='MISC Plans Reports'!L42 -> 132 | H86: ='MISC Plans Reports'!L45 -> 96 | I86: ='MISC Plans Reports'!L48 -> 70 | J86: ='MISC Plans Reports'!L51 -> 114 | K86: 757 | L86: ='Form "A" Office'!J105 -> 0 | M86: 0 | N86: 0 | O86: 0 | P86: 0 | Q86: 0
A87: Alt Water Supply Report | F87: ='MISC Plans Reports'!L64 -> 460 | G87: ='MISC Plans Reports'!L67 -> 132 | H87: ='MISC Plans Reports'!L70 -> 288 | I87: ='MISC Plans Reports'!L73 -> 70 | J87: ='MISC Plans Reports'!L76 -> 228 | K87: 1178 | L87: ='Form "A" Office'!J106 -> 0 | M87: 0 | N87: 0 | O87: 0 | P87: 0 | Q87: 0
A88: Public Water Line Replacement Plan | F88: ='MISC Plans Reports'!L169 -> 690 | G88: ='MISC Plans Reports'!L172 -> 132 | H88: ='MISC Plans Reports'!L175 -> 96 | I88: ='MISC Plans Reports'!L178 -> 70 | J88: ='MISC Plans Reports'!L181 -> 114 | K88: 1102 | L88: ='Form "A" Office'!J107 -> 0 | M88: =F88*L88 -> 0 | N88: =G88*L88 -> 0 | O88: =H88*L88 -> 0 | P88: =I88*L88 -> 0 | Q88: =J88*L88 -> 0
A89: Public Water Line Replacement Report | F89: ='MISC Plans Reports'!L187 -> 920 | G89: ='MISC Plans Reports'!L190 -> 132 | H89: ='MISC Plans Reports'!L193 -> 288 | I89: ='MISC Plans Reports'!L196 -> 70 | J89: ='MISC Plans Reports'!L199 -> 228 | K89: 1638 | L89: ='Form "A" Office'!J108 -> 0 | M89: =F89*L89 -> 0 | N89: =G89*L89 -> 0 | O89: =H89*L89 -> 0 | P89: =I89*L89 -> 0 | Q89: =J89*L89 -> 0
A90: adjacent property owner infor | F90: ='MISC Plans Reports'!L136 -> 57.5 | G90: ='MISC Plans Reports'!L138 -> 0 | H90: ='MISC Plans Reports'!L140 -> 144 | I90: ='MISC Plans Reports'!L143 -> 70 | J90: ='MISC Plans Reports'!L145 -> 57 | K90: 328.5 | L90: ='Form "A" Office'!J109 -> 0 | M90: 0 | N90: 0 | O90: 0 | P90: 0 | Q90: 0
A91: UIC Permit Application Prep | F91: ='MISC Plans Reports'!L82 -> 115 | G91: ='MISC Plans Reports'!L85 -> 264 | H91: ='MISC Plans Reports'!L88 -> 768 | I91: ='MISC Plans Reports'!L91 -> 70 | J91: ='MISC Plans Reports'!L94 -> 114 | K91: 1331 | L91: ='Form "A" Office'!J110 -> 0 | M91: 0 | N91: 0 | O91: 0 | P91: 0 | Q91: 0
A92: UIC General Permit | F92: ='MISC Plans Reports'!L100 -> 345 | G92: ='MISC Plans Reports'!L103 -> 132 | H92: ='MISC Plans Reports'!L106 -> 192 | I92: ='MISC Plans Reports'!L109 -> 70 | J92: ='MISC Plans Reports'!L112 -> 114 | K92: =SUM(F92:J92) -> 853 | L92: ='Form "A" Office'!J111 -> 0 | M92: =F92*L92 -> 0 | N92: =G92*L92 -> 0 | O92: =H92*L92 -> 0 | P92: =I92*L92 -> 0 | Q92: =J92*L92 -> 0
A93: General NPDES app prep | F93: ='MISC Plans Reports'!L100 -> 345 | G93: ='MISC Plans Reports'!L103 -> 132 | H93: ='MISC Plans Reports'!L106 -> 192 | I93: ='MISC Plans Reports'!L109 -> 70 | J93: ='MISC Plans Reports'!L112 -> 114 | K93: 853 | L93: ='Form "A" Office'!J113 -> 0 | M93: 0 | N93: 0 | O93: 0 | P93: 0 | Q93: 0
A94: General NPDES/UIC app prep renewal | F94: ='MISC Plans Reports'!L265 -> 115 | G94: ='MISC Plans Reports'!L268 -> 132 | H94: ='MISC Plans Reports'!L271 -> 96 | I94: ='MISC Plans Reports'!L274 -> 70 | J94: ='MISC Plans Reports'!L277 -> 57 | K94: 470 | L94: ='Form "A" Office'!J112 -> 0 | M94: =F94*L94 -> 0 | N94: =G94*L94 -> 0 | O94: =H94*L94 -> 0 | P94: =I94*L94 -> 0 | Q94: =J94*L94 -> 0
A95: General NPDES/UIC app prep renewal | F95: ='MISC Plans Reports'!L265 -> 115 | G95: ='MISC Plans Reports'!L268 -> 132 | H95: ='MISC Plans Reports'!L271 -> 96 | I95: ='MISC Plans Reports'!L274 -> 70 | J95: ='MISC Plans Reports'!L277 -> 57 | K95: 470 | L95: ='Form "A" Office'!J114 -> 0 | M95: =F95*L95 -> 0 | N95: =G95*L95 -> 0 | O95: =H95*L95 -> 0 | P95: =I95*L95 -> 0 | Q95: =J95*L95 -> 0
A96: ADEM Solid Waste Profile | F96: ='MISC Plans Reports'!L118 -> 115 | G96: ='MISC Plans Reports'!L121 -> 0 | H96: ='MISC Plans Reports'!L124 -> 96 | I96: ='MISC Plans Reports'!L127 -> 0 | J96: ='MISC Plans Reports'!L130 -> 28.5 | K96: 239.5 | L96: ='Form "A" Office'!J115 -> 0 | M96: 0 | N96: 0 | O96: 0 | P96: 0 | Q96: 0
A97: ADEM SID Prep | F97: ='MISC Plans Reports'!L151 -> 460 | G97: ='MISC Plans Reports'!L154 -> 0 | H97: ='MISC Plans Reports'!L157 -> 0 | I97: ='MISC Plans Reports'!L160 -> 0 | J97: ='MISC Plans Reports'!L163 -> 57 | K97: 517 | L97: ='Form "A" Office'!J116 -> 0 | M97: =F97*L97 -> 0 | N97: =G97*L97 -> 0 | O97: =H97*L97 -> 0 | P97: =I97*L97 -> 0 | Q97: =J97*L97 -> 0
A98: Environmental Covenant | F98: ='MW Abandon Plan Report Field'!L82 -> 230 | G98: ='MW Abandon Plan Report Field'!L85 -> 132 | H98: ='MW Abandon Plan Report Field'!L88 -> 192 | I98: ='MW Abandon Plan Report Field'!L91 -> 0 | J98: ='MW Abandon Plan Report Field'!L94 -> 57 | K98: 611 | L98: ='Form "A" Office'!J117 -> 0 | M98: =F98*L98 -> 0 | N98: =G98*L98 -> 0 | O98: =H98*L98 -> 0 | P98: =I98*L98 -> 0 | Q98: 0
A99: Addendum Tier I | F99: ='MISC Plans Reports'!L229 -> 115 | G99: ='MISC Plans Reports'!L232 -> 0 | H99: ='MISC Plans Reports'!L235 -> 0 | I99: ='MISC Plans Reports'!L238 -> 0 | J99: ='MISC Plans Reports'!L241 -> 0 | K99: =SUM(F99:J99) -> 115 | L99: ='Form "A" Office'!J118 -> 0 | M99: =F99*L99 -> 0 | N99: =G99*L99 -> 0 | O99: =H99*L99 -> 0 | P99: =I99*L99 -> 0 | Q99: =J99*L99 -> 0
A100: Addendum Tier II | F100: ='MISC Plans Reports'!L247 -> 230 | G100: ='MISC Plans Reports'!L250 -> 132 | H100: ='MISC Plans Reports'!L253 -> 0 | I100: ='MISC Plans Reports'!L256 -> 0 | J100: ='MISC Plans Reports'!L259 -> 0 | K100: =SUM(F100:J100) -> 362 | L100: ='Form "A" Office'!J119 -> 0 | M100: =F100*L100 -> 0 | N100: =G100*L100 -> 0 | O100: =H100*L100 -> 0 | P100: =I100*L100 -> 0 | Q100: =J100*L100 -> 0
F101: =SUM(F9:F100) -> 44390 | G101: =SUM(G9:G100) -> 30492 | H101: =SUM(H9:H100) -> 47443.2 | I101: =SUM(I9:I100) -> 15046.5 | J101: =SUM(J9:J100) -> 12354.75 | K101: =SUM(F101:J101) -> 149726.45 | L101: =SUM(L9:L98) -> 0 | M101: =SUM(M9:M100) -> 0 | N101: =SUM(N9:N100) -> 0 | O101: =SUM(O9:O100)+R58 -> 0 | P101: =SUM(P9:P100) -> 0 | Q101: =SUM(Q9:Q100) -> 0 | S101: =SUM(M101:R101) -> 0
K103: =SUM(K9:K100) -> 149726.45

Sheet Initial Abatement (hidden)
A1: Initial Abatement Report (without MEME)
A3: Project Manager: | C3: Hire Subcontractors (Drillers, Waste Management, emergency | J3: ='Maximum Rates'!D5 -> 115 | K3: 7 | L3: =(J3*K3) -> 805
C4: response company, contact EMA/Fire), Contact Property
C5: owners/land owners (for drilling), Schedule internal personnel,
C6: Contact offsite property owners for drilling, Payment Request
C7: Any other incidentals/miscellaneous tasks not listed
A8: PE/PG: | C8: Review and Sign Report | J8: ='Maximum Rates'!D6 -> 132 | K8: 3 | L8: =(J8*K8) -> 396
C9: Design emergency response.
C10: Any other incidentals/miscellaneous tasks not listed
A11: Staff Geologist/ | C11: Interpret data, prepare report. | J11: ='Maximum Rates'!D7 -> 96 | K11: 7 | L11: =(J11*K11) -> 672
A12: Engineer: | C12: Any other incidentals/miscellaneous tasks not listed
A14: Draftsman: | C14: Prepare Maps, figures, to include well diagrams, site maps, | J14: ='Maximum Rates'!D10 -> 70 | K14: 3 | L14: =(J14*K14) -> 210
C15: concentration maps, flow maps, etc.
C16: Any other incidentals/miscellaneous tasks not listed
A17: Clerical: | C17: Copy, sort, mail documents, payment request | J17: ='Maximum Rates'!D11 -> 57 | K17: 2 | L17: =(J17*K17) -> 114
C18: Any other incidentals/miscellaneous tasks not listed
H19: Unit Rate Initial Abatement Report | L19: =SUM(L3:L17) -> 2197
A21: Initial Abatement Report (free product recovery only)
A23: Project Manager: | C23: Hire Subcontractors (Drillers, Waste Management, emergency | J23: ='Maximum Rates'!D5 -> 115 | K23: 1 | L23: =(J23*K23) -> 115
C24: response company, contact EMA/Fire), Contact Property
C25: owners/land owners (for drilling), Schedule internal personnel,
C26: Contact offsite property owners for drilling, Payment Request
C27: Any other incidentals/miscellaneous tasks not listed
A28: PE/PG: | C28: Review and Sign Report | J28: ='Maximum Rates'!D6 -> 132 | K28: 1 | L28: =(J28*K28) -> 132
C29: Design emergency response.
C30: Any other incidentals/miscellaneous tasks not listed
A31: Staff Geologist/ | C31: Interpret data, prepare report. | J31: ='Maximum Rates'!D7 -> 96 | K31: 1 | L31: =(J31*K31) -> 96
A32: Engineer: | C32: Any other incidentals/miscellaneous tasks not listed
A34: Draftsman: | C34: Prepare Maps, figures, to include well diagrams, site maps, | J34: ='Maximum Rates'!D10 -> 70 | K34: 1 | L34: =(J34*K34) -> 70
C35: concentration maps, flow maps, etc.
C36: Any other incidentals/miscellaneous tasks not listed
A37: Clerical: | C37: Copy, sort, mail documents, payment request | J37: ='Maximum Rates'!D11 -> 57 | K37: 2 | L37: =(J37*K37) -> 114
C38: Any other incidentals/miscellaneous tasks not listed
H39: Unit Rate Initial Abatement Report | L39: =SUM(L23:L37) -> 527
A41: Unit Rate for each field day over 2 days | H41: Unit Rate Report Time for each field day over 2 days: | L41: =SUM(D42:D45) -> 372.5
A42: PG/PE | C42: 0.5 | D42: =(C42)*('Maximum Rates'!D6) -> 66 | H42: Total Report Time to never exceed $5,650. Regardless of days of field work.
A43: Geo/Eng | C43: 0.5 | D43: =(C43)*('Maximum Rates'!D7) -> 48
A44: PM | C44: 2 | D44: =(C44)*('Maximum Rates'!D5) -> 230
A45: Clerical | C45: 0.5 | D45: =(C45)*('Maximum Rates'!D11) -> 28.5

Sheet Field Task (hidden)
A1: Well Installation Oversight time (Geologist and Tech)
A2: Porous Drilling with Development
B3: Hours | C3: Subtotal | F3: Hours | G3: Subtotal | I3: Task Total
A4: Porous material 0-10' | I4: =SUM(C5+G5) -> 227
A5: Geologist/Engineer | B5: 2 | C5: =(B5)*('Maximum Rates'!$D$7) -> 192 | E5: Technician | F5: 0.5 | G5: =(F5)*('Maximum Rates'!$D$9) -> 35
A6: Porous material 0-30' | I6: =SUM(C7+G7) -> 358
A7: Geologist/Engineer | B7: 3 | C7: =(B7)*('Maximum Rates'!$D$7) -> 288 | E7: Technician | F7: 1 | G7: =(F7)*('Maximum Rates'!$D$9) -> 70
A8: Porous material 0-50' | I8: =SUM(C9+G9) -> 777
A9: Geologist/Engineer | B9: 7 | C9: =(B9)*('Maximum Rates'!$D$7) -> 672 | E9: Technician | F9: 1.5 | G9: =(F9)*('Maximum Rates'!$D$9) -> 105
A10: Porous material 0-70' | I10: =SUM(C11+G11) -> 1004
A11: Geologist/Engineer | B11: 9 | C11: =(B11)*('Maximum Rates'!$D$7) -> 864 | E11: Technician | F11: 2 | G11: =(F11)*('Maximum Rates'!$D$9) -> 140
A12: Porous material 0-90' | I12: =SUM(C13+G13) -> 1231
A13: Geologist/Engineer | B13: 11 | C13: =(B13)*('Maximum Rates'!$D$7) -> 1056 | E13: Technician | F13: 2.5 | G13: =(F13)*('Maximum Rates'!$D$9) -> 175
A14: Porous material 0-110' | I14: =SUM(C15+G15) -> 1458
A15: Geologist/Engineer | B15: 13 | C15: =(B15)*('Maximum Rates'!$D$7) -> 1248 | E15: Technician | F15: 3 | G15: =(F15)*('Maximum Rates'!$D$9) -> 210
A17: Bedrock Drilling
A18: Bedrock 0-20' air rotary | I18: =SUM(C19+G19) -> 358
A19: Geologist/Engineer | B19: 3 | C19: =(B19)*('Maximum Rates'!$D$7) -> 288 | E19: Technician | F19: 1 | G19: =(F19)*('Maximum Rates'!$D$9) -> 70
A20: Bedrock 0-20' core | I20: =SUM(C21+G21) -> 454
A21: Geologist/Engineer | B21: 4 | C21: =(B21)*('Maximum Rates'!$D$7) -> 384 | E21: Technician | F21: 1 | G21: =(F21)*('Maximum Rates'!$D$9) -> 70
A22: Bedrock 0-40' air rotary | I22: =SUM(C23+G23) -> 489
A23: Geologist/Engineer | B23: 4 | C23: =(B23)*('Maximum Rates'!$D$7) -> 384 | E23: Technician | F23: 1.5 | G23: =(F23)*('Maximum Rates'!$D$9) -> 105
A24: Bedrock 0-40' core | I24: =SUM(C25+G25) -> 777
A25: Geologist/Engineer | B25: 7 | C25: =(B25)*('Maximum Rates'!$D$7) -> 672 | E25: Technician | F25: 1.5 | G25: =(F25)*('Maximum Rates'!$D$9) -> 105
A26: Bedrock 0-60' air rotary | I26: =SUM(C27+G27) -> 716
A27: Geologist/Engineer | B27: 6 | C27: =(B27)*('Maximum Rates'!$D$7) -> 576 | E27: Technician | F27: 2 | G27: =(F27)*('Maximum Rates'!$D$9) -> 140
A28: Bedrock 0-60' core | I28: =SUM(C29+G29) -> 908
A29: Geologist/Engineer | B29: 8 | C29: =(B29)*('Maximum Rates'!$D$7) -> 768 | E29: Technician | F29: 2 | G29: =(F29)*('Maximum Rates'!$D$9) -> 140
A30: Bedrock 0-80' air rotary | I30: =SUM(C31+G31) -> 943
A31: Geologist/Engineer | B31: 8 | C31: =(B31)*('Maximum Rates'!$D$7) -> 768 | E31: Technician | F31: 2.5 | G31: =(F31)*('Maximum Rates'!$D$9) -> 175
A32: Bedrock 0-80' core | I32: =SUM(C33+G33) -> 1135
A33: Geologist/Engineer | B33: 10 | C33: =(B33)*('Maximum Rates'!$D$7) -> 960 | E33: Technician | F33: 2.5 | G33: =(F33)*('Maximum Rates'!$D$9) -> 175
A35: Type III Porous material
A36: Total Depth 0-20' | I36: =SUM(C37+G37) -> 406
A37: Geologist/Engineer | B37: 3.5 | C37: =(B37)*('Maximum Rates'!$D$7) -> 336 | E37: Technician | F37: 1 | G37: =(F37)*('Maximum Rates'!$D$9) -> 70
A38: Total Depth 0-40' | I38: =SUM(C39+G39) -> 633
A39: Geologist/Engineer | B39: 5.5 | C39: =(B39)*('Maximum Rates'!$D$7) -> 528 | E39: Technician | F39: 1.5 | G39: =(F39)*('Maximum Rates'!$D$9) -> 105
A40: Total Depth 0-60' | I40: =SUM(C41+G41) -> 860
A41: Geologist/Engineer | B41: 7.5 | C41: =(B41)*('Maximum Rates'!$D$7) -> 720 | E41: Technician | F41: 2 | G41: =(F41)*('Maximum Rates'!$D$9) -> 140
A42: Total Depth 0-80' | I42: =SUM(C43+G43) -> 1087
A43: Geologist/Engineer | B43: 9.5 | C43: =(B43)*('Maximum Rates'!$D$7) -> 912 | E43: Technician | F43: 2.5 | G43: =(F43)*('Maximum Rates'!$D$9) -> 175
A44: Total Depth 0-100' | I44: =SUM(C45+G45) -> 1314
A45: Geologist/Engineer | B45: 11.5 | C45: =(B45)*('Maximum Rates'!$D$7) -> 1104 | E45: Technician | F45: 3 | G45: =(F45)*('Maximum Rates'!$D$9) -> 210
A57: Type III into Bedrock
A58: Total Depth 0-20' | I58: =SUM(C59+G59) -> 454
A59: Geologist/Engineer | B59: 4 | C59: =(B59)*('Maximum Rates'!$D$7) -> 384 | E59: Technician | F59: 1 | G59: =(F59)*('Maximum Rates'!$D$9) -> 70
A60: Total Depth 0-40' | I60: =SUM(C61+G61) -> 681
A61: Geologist/Engineer | B61: 6 | C61: =(B61)*('Maximum Rates'!$D$7) -> 576 | E61: Technician | F61: 1.5 | G61: =(F61)*('Maximum Rates'!$D$9) -> 105
A62: Total Depth 0-60' | I62: =SUM(C63+G63) -> 908
A63: Geologist/Engineer | B63: 8 | C63: =(B63)*('Maximum Rates'!$D$7) -> 768 | E63: Technician | F63: 2 | G63: =(F63)*('Maximum Rates'!$D$9) -> 140
A64: Total Depth 0-80' | I64: =SUM(C65+G65) -> 1135
A65: Geologist/Engineer | B65: 10 | C65: =(B65)*('Maximum Rates'!$D$7) -> 960 | E65: Technician | F65: 2.5 | G65: =(F65)*('Maximum Rates'!$D$9) -> 175
A66: Total Depth 0-100' | I66: =SUM(C67+G67) -> 1362
A67: Geologist/Engineer | B67: 12 | C67: =(B67)*('Maximum Rates'!$D$7) -> 1152 | E67: Technician | F67: 3 | G67: =(F67)*('Maximum Rates'!$D$9) -> 210
A69: Soil Boring
A70: Soil Boring porous material 0-10' | I70: =SUM(C71+G71) -> 144
A71: Geologist/Engineer | B71: 1.5 | C71: =(B71)*('Maximum Rates'!$D$7) -> 144 | E71: Technician | G71: =(F71)*('Maximum Rates'!$D$9) -> 0
A72: Soil Boring porous material 0-30' | I72: =SUM(C73+G73) -> 240
A73: Geologist/Engineer | B73: 2.5 | C73: =(B73)*('Maximum Rates'!$D$7) -> 240 | E73: Technician | G73: =(F73)*('Maximum Rates'!$D$9) -> 0
A74: Soil Boring porous material 0-50' | I74: =SUM(C75+G75) -> 336
A75: Geologist/Engineer | B75: 3.5 | C75: =(B75)*('Maximum Rates'!$D$7) -> 336 | E75: Technician | G75: =(F75)*('Maximum Rates'!$D$9) -> 0
A76: Soil Boring porous material 0-70' | I76: =SUM(C77+G77) -> 528
A77: Geologist/Engineer | B77: 5.5 | C77: =(B77)*('Maximum Rates'!$D$7) -> 528 | E77: Technician | G77: =(F77)*('Maximum Rates'!$D$9) -> 0
A79: Other Field Tasks
A80: Monitoring Well Pad Replacement | I80: =C81+G81 -> 140
A81: Geologist | B81: 0 | C81: =(B81)*('Maximum Rates'!D7) -> 0 | E81: Technician | F81: 2 | G81: =(F81)*('Maximum Rates'!$D$9) -> 140
A82: Private/Public Well Inventory (up to 5 wells) | I82: =C83+G83 -> 384
A83: Geologist | B83: 4 | C83: =(B83)*('Maximum Rates'!D7) -> 384 | E83: Technician | G83: =(F83)*('Maximum Rates'!$D$9) -> 0
A84: Site Survey | I84: =C85+G85 -> 280
A85: Geologist | B85: 0 | C85: =(B85)*('Maximum Rates'!$D$7) -> 0 | E85: Technician | F85: 4 | G85: =(F85)*('Maximum Rates'!$D$9) -> 280
A86: Slug Testing per well | I86: =C87+G87 -> 332
A87: Geologist | B87: 2 | C87: =(B87)*('Maximum Rates'!$D$7) -> 192 | E87: Technician | F87: 2 | G87: =(F87)*('Maximum Rates'!$D$9) -> 140
A88: Well Re-development/well | I88: =C89+G89 -> 105
A89: Geologist | B89: 0 | C89: =(B89)*('Maximum Rates'!$D$7) -> 0 | E89: Technician | F89: 1.5 | G89: =(F89)*('Maximum Rates'!$D$9) -> 105
A90: Well Sampling Set Up | I90: =C91+G91 -> 140
A91: Geologist | B91: 0 | C91: =(B91)*('Maximum Rates'!$D$7) -> 0 | E91: Technician | F91: 2 | G91: =(F91)*('Maximum Rates'!$D$9) -> 140
A92: *Does not apply to Operating DPVE System or Active MEME events | G92: Purge Water Disposal | I92: =C93+G93 -> 105
A93: Geologist | E93: Technician | F93: 1.5 | G93: =(F93)*('Maximum Rates'!$D$9) -> 105
A94: Well Gauging Only | I94: =C95+G95 -> 17.5
A95: Geologist | B95: 0 | C95: =(B95)*('Maximum Rates'!$D$7) -> 0 | E95: Technician | F95: 0.25 | G95: =(F95)*('Maximum Rates'!$D$9) -> 17.5
A96: Well Gauging and Sampling 2" Well | I96: =C97+G97 -> 70
A97: Geologist | B97: 0 | C97: =(B97)*('Maximum Rates'!$D$7) -> 0 | E97: Technician | F97: 1 | G97: =(F97)*('Maximum Rates'!$D$9) -> 70
A98: Well Gauging and Sampling 4" Well | I98: =C99+G99 -> 80.5
A99: Geologist | B99: 0 | C99: =(B99)*('Maximum Rates'!$D$7) -> 0 | E99: Technician | F99: 1.15 | G99: =(F99)*('Maximum Rates'!$D$9) -> 80.5
A100: Well Gauging and Sampling 6" Well | I100: =C101+G101 -> 87.5
A101: Geologist | B101: 0 | C101: =(B101)*('Maximum Rates'!$D$7) -> 0 | E101: Technician | F101: 1.25 | G101: =(F101)*('Maximum Rates'!$D$9) -> 87.5
A102: Well Sampling Public Well | I102: =C103+G103 -> 140
A103: Geologist | B103: 0 | C103: =(B103)*('Maximum Rates'!$D$7) -> 0 | E103: Technician | F103: 2 | G103: =(F103)*('Maximum Rates'!$D$9) -> 140
A104: Well Sampling Private Well | I104: =C105+G105 -> 105
A105: Geologist | B105: 0 | C105: =(B105)*('Maximum Rates'!$D$7) -> 0 | E105: Technician | F105: 1.5 | G105: =(F105)*('Maximum Rates'!$D$9) -> 105
A106: Well Sampling Per Stream (1-3 samples) | I106: =C107+G107 -> 105
A107: Geologist | B107: 0 | C107: =(B107)*('Maximum Rates'!$D$7) -> 0 | E107: Technician | F107: 1.5 | G107: =(F107)*('Maximum Rates'!$D$9) -> 105
A108: Soil Sampling Set Up | I108: =C109+G109 -> 192
A109: Geologist | B109: 2 | C109: =(B109)*('Maximum Rates'!$D$7) -> 192 | E109: Technician | F109: 0 | G109: =(F109)*('Maximum Rates'!$D$9) -> 0
A110: Soil Sampling adder for group of four | I110: =C111+G111 -> 96
A111: Geologist | B111: 1 | C111: =(B111)*('Maximum Rates'!$D$7) -> 96 | E111: Technician | F111: 0 | G111: =(F111)*('Maximum Rates'!$D$9) -> 0
A113: SVE/ AS/ Ozone Pilot Test | I113: =C114+G114 -> 864
A114: Geologist | B114: 9 | C114: =(B114)*('Maximum Rates'!$D$7) -> 864 | E114: Technician | G114: =(F114)*('Maximum Rates'!$D$9) -> 0
A115: DPVE O&M 3 months | I115: =C116+G116 -> 4280
A116: Project Manager | B116: 8 | C116: =('Maximum Rates'!D5)*B116 -> 920 | E116: Technician | F116: 48 | G116: =(F116)*('Maximum Rates'!$D$9) -> 3360
A117: Ozone, biosparge, sve, biovent and Air Sparge O&M 3 months | I117: =C118+G118 -> 2140
A118: Project Manager | B118: 4 | C118: =('Maximum Rates'!D5)*B118 -> 460 | E118: Technician | F118: 24 | G118: =(F118)*('Maximum Rates'!$D$9) -> 1680
A119: O&M 4 months | I119: =C120+G120 -> 5400
A120: Project Manager | B120: 8 | C120: =('Maximum Rates'!D5)*B120 -> 920 | E120: Technician | F120: 64 | G120: =(F120)*('Maximum Rates'!$D$9) -> 4480
A121: Ozone, biosparge, sve, biovent and Air Sparge O&M 4 months | I121: =C122+G122 -> 2700
A122: Project Manager | B122: 4 | C122: =('Maximum Rates'!D5)*B122 -> 460 | E122: Technician | F122: 32 | G122: =(F122)*('Maximum Rates'!$D$9) -> 2240
A123: Monitoring Well Abandonment Oversight Overdrilling | I123: =C124+G124 -> 288
A124: Staff Eng/Geo | B124: 3 | C124: =('Maximum Rates'!D7)*B124 -> 288 | E124: Technician | G124: =(F124)*('Maximum Rates'!$D$9) -> 0
A125: Monitoring Well Abandonment Oversight Grouting in Place | I125: =C126+G126 -> 144
A126: Staff Eng/Geo | B126: 1.5 | C126: =('Maximum Rates'!D7)*B126 -> 144 | E126: Technician | G126: =(F126)*('Maximum Rates'!$D$9) -> 0
A127: Recovery Well Vault Abandonment Oversight | I127: =C128+G128 -> 96
A128: Staff Eng/Geo | B128: 1 | C128: =('Maximum Rates'!D7)*B128 -> 96 | E128: Technician | G128: =(F128)*('Maximum Rates'!$D$9) -> 0
A130: System Install Oversight (up to 7 days) | C130: =SUM(C131:C133) -> 9616 | F130: System Startup Oversight | I130: =SUM(I131:I133) -> 1840
A131: Project Manager | B131: 16 | C131: =('Maximum Rates'!D5)*B131 -> 1840 | F131: Project Manager | H131: 16 | I131: =('Maximum Rates'!D5)*H131 -> 1840
A132: PE/PG | B132: 8 | C132: =('Maximum Rates'!D6)*B132 -> 1056 | F132: PE/PG | I132: =('Maximum Rates'!D6)*H132 -> 0
A133: Engineer/Geologist | B133: 70 | C133: =('Maximum Rates'!$D$7)*B133 -> 6720 | F133: Technician | I133: =('Maximum Rates'!D10)*H133 -> 0
A135: System Install Oversight Adder (per day) | C135: =SUM(C136:C138) -> 1075 | F135: System Decommissioning | I135: =SUM(I136:I138) -> 1141
A136: Project Manager | B136: 1 | C136: =('Maximum Rates'!D5)*B136 -> 115 | F136: Project Manager | H136: 1 | I136: =('Maximum Rates'!D5)*H136 -> 115
A137: PE/PG | C137: =('Maximum Rates'!D6)*B137 -> 0 | F137: PE/PG | H137: 0.5 | I137: =('Maximum Rates'!D6)*H137 -> 66
A138: Engineer/Geologist | B138: 10 | C138: =('Maximum Rates'!D7)*B138 -> 960 | F138: Eng/Geo | H138: 10 | I138: =('Maximum Rates'!D7)*H138 -> 960
A140: High Resolution Fieldwork and Oversight (per day) | C140: =SUM(C141:C143) -> 1356
A141: PE/PG | B141: 3 | C141: =('Maximum Rates'!D6*B141) -> 396
A142: (PE/PG in office for oversight, no travel)
A143: Engineer/Geologist | B143: 10 | C143: =('Maximum Rates'!D7*B143) -> 960

Sheet Prelm Rprt (hidden)
A1: Preliminary Investigation Report
A3: Project Manager: | C3: Hire Subcontractors (Drillers, Lab, Waste Management), | J3: ='Maximum Rates'!D5 -> 115 | K3: 10 | L3: =(J3*K3) -> 1150
C4: contact property, contact utilities/screening owners/tank owners (for drilling),
C5: schedule internal payment request
C6: Any other incidentals/miscellaneous tasks not listed
A7: PE/PG: | C7: Review and Sign Report, | J7: ='Maximum Rates'!D6 -> 132 | K7: 3 | L7: =(J7*K7) -> 396
C8: Any other incidentals/miscellaneous tasks not listed
A9: Staff Geologist/ | C9: Interpret data, prepare report, | J9: ='Maximum Rates'!D7 -> 96 | K9: 25 | L9: =(J9*K9) -> 2400
A10: Engineer | C10: Obtain Adjacent Property Owner Info
C11: Any other incidentals/miscellaneous tasks not listed
A12: Draftsman: | C12: Prepare maps, figures, to include well boring logs and diagrams, site maps, | J12: ='Maximum Rates'!D10 -> 70 | K12: 16 | L12: =(J12*K12) -> 1120
C13: concentration maps, flow maps, etc.
C14: Any other incidentals/miscellaneous tasks not listed
A15: Clerical: | C15: Copy, sort, mail documents, payment request | J15: ='Maximum Rates'!D11 -> 57 | K15: 6 | L15: =(J15*K15) -> 342
C16: Any other incidentals/miscellaneous tasks not listed
H17: Unit Rate Preliminary Report | L17: =SUM(L3:L15) -> 5408
A19: Secondary Investigation Plan
A21: Project Manager: | C21: Total Project oversight, Cost Proposal prep | J21: ='Maximum Rates'!D5 -> 115 | K21: 2 | L21: =(J21*K21) -> 230
C22: Any other incidentals/miscellaneous tasks not listed
A23: PE/PG: | C23: Review Secondary Plan for technical issues, adjust as necessary, Sign Plan | J23: ='Maximum Rates'!D6 -> 132 | K23: 1 | L23: =(J23*K23) -> 132
C24: Any other incidentals/miscellaneous tasks not listed
A25: Staff Geologist/ | C25: Prepare Secondary Plan | J25: ='Maximum Rates'!D7 -> 96 | K25: 4 | L25: =(J25*K25) -> 384
A26: Engineer | C26: Any other incidentals/miscellaneous tasks not listed
A28: Draftsman: | C28: Prepare Maps and figures for Secondary Investigation | J28: ='Maximum Rates'!D10 -> 70 | K28: 1 | L28: =(J28*K28) -> 70
C29: Any other incidentals/miscellaneous tasks not listed
A30: Clerical: | C30: Copy, sort, mail documents, Cost Proposal prep | J30: ='Maximum Rates'!D11 -> 57 | K30: 2 | L30: =(J30*K30) -> 114
C31: Any other incidentals/miscellaneous tasks not listed
H32: Unit Rate Secondary Investigation Plan | L32: =SUM(L21:L30) -> 930

Sheet Scdry additional well Plan Rpt (hidden)
A1: Secondary Investigation Report (up to 12 wells)
A3: Project Manager: | C3: Hire Subcontractors (Drillers, Waste Management), Contact Property | J3: ='Maximum Rates'!D5 -> 115 | K3: 9 | L3: =(J3*K3) -> 1035
C4: owners/land owners (for drilling), Schedule internal personnel,
C5: Obtain offsite property access for drilling, Payment Request
C6: Any other incidentals/miscellaneous tasks not listed
A7: PE/PG: | C7: Review Report for technical accuracy | J7: ='Maximum Rates'!D6 -> 132 | K7: 5 | L7: =(J7*K7) -> 660
C8: Additional Well Installation Plan oversight
C9: Any other incidentals/miscellaneous tasks not listed
A10: Staff Geologist: | C10: Interpret data, prepare report, prepare additional well installation plan | J10: ='Maximum Rates'!D7 -> 96 | K10: 32 | L10: =(J10*K10) -> 3072
A11: Engineer | C11: Any other incidentals/miscellaneous tasks not listed
A13: Draftsman: | C13: Prepare Maps, figures, to include well diagrams, site maps, | J13: ='Maximum Rates'!D10 -> 70 | K13: 16 | L13: =(J13*K13) -> 1120
C14: concentration maps, flow maps, etc.
C15: Any other incidentals/miscellaneous tasks not listed
A16: Clerical: | C16: Copy, sort, bind, mail documents, payment request | J16: ='Maximum Rates'!D11 -> 57 | K16: 6 | L16: =(J16*K16) -> 342
C17: Any other incidentals/miscellaneous tasks not listed
G18: Unit Rate Secondary Report | L18: =SUM(L3:L16) -> 6229
A20: Adder per well over twelve: | G20: Unit Rate adder per well over 12 | L20: =SUM(D21+G21) -> 166
A21: Geologist/Engineer | C21: 1 | D21: =(C21)*('Maximum Rates'!$D$7) -> 96 | E21: Draftsman | F21: 1 | G21: =(F21)*('Maximum Rates'!$D$10) -> 70
A23: Additional Well Installation Plan (Investigative phase up to 4 wells)
A25: Project Manager: | C25: Total Project oversight, Waste Management, Cost Proposal prep | J25: ='Maximum Rates'!D5 -> 115 | K25: 1 | L25: =(J25*K25) -> 115
C26: Any other incidentals/miscellaneous tasks not listed
A27: PE/PG: | C27: Review Well Installation Plan for technical issues, adjust as necessary, | J27: ='Maximum Rates'!D6 -> 132 | K27: 1 | L27: =(J27*K27) -> 132
C28: Any other incidentals/miscellaneous tasks not listed
A29: Staff Geologist: | C29: Prepare Well Installation Plan | J29: ='Maximum Rates'!D7 -> 96 | K29: 1 | L29: =(J29*K29) -> 96
A30: Engineer | C30: Any other incidentals/miscellaneous tasks not listed
A32: Draftsman: | C32: Prepare Maps and figures | J32: ='Maximum Rates'!D10 -> 70 | K32: 1 | L32: =(J32*K32) -> 70
C33: Any other incidentals/miscellaneous tasks not listed
A34: Clerical: | C34: Copy, sort, mail documents, Cost Proposal prep | J34: ='Maximum Rates'!D11 -> 57 | K34: 2 | L34: =(J34*K34) -> 114
C35: Any other incidentals/miscellaneous tasks not listed
F36: Unit Rate Additional Well Installation Plan1- 4 wells | L36: =SUM(L25:L34) -> 527
A38: Additional Well Installation Plan (Investigative phase >4 wells)(Adder to Report)
A40: Project Manager: | C40: Total Project oversight, Waste Management, Cost Proposal prep | J40: ='Maximum Rates'!D5 -> 115 | K40: 2 | L40: =(J40*K40) -> 230
C41: Any other incidentals/miscellaneous tasks not listed
A42: PE/PG: | C42: Review Well Installation Plan for technical issues, adjust as necessary, | J42: ='Maximum Rates'!D6 -> 132 | K42: 1 | L42: =(J42*K42) -> 132
C43: Sign Plan, any other incidentals/miscellaneous tasks not listed
A44: Staff Geologist: | C44: Prepare Well Installation Plan | J44: ='Maximum Rates'!D7 -> 96 | K44: 3 | L44: =(J44*K44) -> 288
A45: Engineer | C45: Any other incidentals/miscellaneous tasks not listed
A47: Draftsman: | C47: Prepare Maps and figures | J47: ='Maximum Rates'!D10 -> 70 | K47: 2 | L47: =(J47*K47) -> 140
C48: Any other incidentals/miscellaneous tasks not listed
A49: Clerical: | C49: Copy, sort, mail documents, Cost Proposal prep | J49: ='Maximum Rates'!D11 -> 57 | K49: 2 | L49: =(J49*K49) -> 114
C50: Any other incidentals/miscellaneous tasks not listed
F51: Unit Rate Additional Well Installation Plan >4 wells | L51: =SUM(L40:L49) -> 904
A53: Additional Well Installation Report (Investigative phase 1-4 wells)(Adder to Report)
A55: Project Manager: | C55: Hire Subcontractors (Drillers, Waste Management), Contact Property | J55: ='Maximum Rates'!D5 -> 115 | K55: 4 | L55: =(J55*K55) -> 460
C56: owners/land owners (for drilling), Schedule internal personnel,
C57: Contact offsite property owners for drilling
C58: Any other incidentals/miscellaneous tasks not listed
A59: PE/PG: | C59: Review Report for technical accuracy | J59: ='Maximum Rates'!D6 -> 132 | K59: 1 | L59: =(J59*K59) -> 132
C60: Offsite Secondary Plan oversight
C61: Any other incidentals/miscellaneous tasks not listed
A62: Staff Geologist: | C62: Interpret data, prepare report | J62: ='Maximum Rates'!D7 -> 96 | K62: 4 | L62: =(J62*K62) -> 384
A63: Engineer | C63: Any other incidentals/miscellaneous tasks not listed
A65: Draftsman: | C65: Prepare Maps, figures, to include well diagrams, site maps, | J65: ='Maximum Rates'!D10 -> 70 | K65: 2 | L65: =(J65*K65) -> 140
C66: concentration maps, flow maps, etc.
C67: Any other incidentals/miscellaneous tasks not listed
A68: Clerical: | C68: Copy, sort, bind, mail documents, payment request | J68: ='Maximum Rates'!D11 -> 57 | K68: 3 | L68: =(J68*K68) -> 171
C69: Any other incidentals/miscellaneous tasks not listed
F70: Unit Rate Additional Well Install Report 1-4 wells | L70: =SUM(L55:L68) -> 1287
A72: Additional Well Installation Report (Investigative phase >4 wells)
A74: Project Manager: | C74: Hire Subcontractors (Drillers, Waste Management), Contact Property | J74: ='Maximum Rates'!D5 -> 115 | K74: 5 | L74: =(J74*K74) -> 575
C75: owners/land owners (for drilling), Schedule internal personnel,
C76: Contact offsite property owners for drilling, Payment Request
C77: Any other incidentals/miscellaneous tasks not listed
A78: PE/PG: | C78: Review Report for technical accuracy | J78: ='Maximum Rates'!D6 -> 132 | K78: 1 | L78: =(J78*K78) -> 132
C79: Offsite Secondary Plan oversight
C80: Any other incidentals/miscellaneous tasks not listed
A81: Staff Geologist: | C81: Interpret data, prepare report | J81: ='Maximum Rates'!D7 -> 96 | K81: 5 | L81: =(J81*K81) -> 480
A82: Engineer | C82: Any other incidentals/miscellaneous tasks not listed
A84: Draftsman: | C84: Prepare Maps, figures, to include well diagrams, site maps, | J84: ='Maximum Rates'!D10 -> 70 | K84: 3 | L84: =(J84*K84) -> 210
C85: concentration maps, flow maps, etc.
C86: Any other incidentals/miscellaneous tasks not listed
A87: Clerical: | C87: Copy, sort, bind, mail documents, payment request | J87: ='Maximum Rates'!D11 -> 57 | K87: 3 | L87: =(J87*K87) -> 171
C88: Any other incidentals/miscellaneous tasks not listed
F89: Unit Rate Additional Well Install Report >4 wells | L89: =SUM(L74:L87) -> 1568
A91: Offsite Access ALDOT
A93: Project Manager: | C93: Management time for access, included filling out forms and other | J93: ='Maximum Rates'!D5 -> 115 | K93: 8 | L93: =(J93*K93) -> 920
C94: documents required by ALDOT
A97: PE/PG: | C97: Review time for documents | J97: ='Maximum Rates'!D6 -> 132 | K97: 1 | L97: =(J97*K97) -> 132
A100: Staff Geologist: | C100: Prepare any documentation required | J100: ='Maximum Rates'!D7 -> 96 | K100: 2 | L100: =(J100*K100) -> 192
A101: Engineer
A103: Draftsman: | C103: Prepare maps, figures or other required items | J103: ='Maximum Rates'!D10 -> 70 | K103: 4 | L103: =(J103*K103) -> 280
A106: Clerical: | C106: Copy, sort, bind, mail documents | J106: ='Maximum Rates'!D11 -> 57 | K106: 2 | L106: =(J106*K106) -> 114
F108: Unit Rate for ALDOT access | L108: =SUM(L93:L106) -> 1638
A115: Offsite Access-Commercial | G115: Unit Rate offsite access-Commercial | L115: =SUM(D116+G116) -> 287.5
A116: PM | C116: 2.5 | D116: =(C116)*('Maximum Rates'!$D$5) -> 287.5 | E116: Draftsman | G116: =(F116)*('Maximum Rates'!$D$10) -> 0
A118: Offsite Access-Residential | G118: Unit Rate offsite access-Residential | L118: =SUM(D119+G119) -> 201.25
A119: PM | C119: 1.75 | D119: =(C119)*('Maximum Rates'!$D$5) -> 201.25 | E119: Draftsman | G119: =(F119)*('Maximum Rates'!$D$10) -> 0
A121: High Resolution Imaging Plan/Report (stand alone)
A123: Project Manager: | C123: Internal scheduling, contact vendors (quotes, scheduling, | J123: ='Maximum Rates'!D5 -> 115 | K123: 5 | L123: =(J123*K123) -> 575
C124: waste management), entire project oversite, CP/PR
C125: Any other incidentals/miscellaneous tasks not listed
A127: PE/PG: | C127: Review results, correspondance and recommendations | J127: ='Maximum Rates'!D6 -> 132 | K127: 1 | L127: =(J127*K127) -> 132
A130: Staff Geologist: | C130: Interpret results, prepare correspondance, make recommendations | J130: ='Maximum Rates'!D7 -> 96 | K130: 8 | L130: =(J130*K130) -> 768
A131: Engineer
A133: Draftsman: | C133: Prepare Maps to include MWs on photos where probe points are located, | J133: ='Maximum Rates'!D10 -> 70 | K133: 8 | L133: =(J133*K133) -> 560
C134: site maps, a cross section of contamination.
A136: Clerical: | C136: Copy, sort, bind, mail documents, CP/PR | J136: ='Maximum Rates'!D11 -> 57 | K136: 2 | L136: =(J136*K136) -> 114
C137: Any other incidentals/miscellaneous tasks not listed
G138: High Resolution Plan/Report | L138: =SUM(L123:L136) -> 2149

Sheet NAMR GWM PLAN RPRT (hidden)
A1: Groundwater Monitoring Plan (CP/PR included in report amount)
A3: Project Manager: | C3: Contact Property/Tank owners, schedule internal personnel, | J3: ='Maximum Rates'!D5 -> 115 | K3: 1 | L3: =(J3*K3) -> 115
C4: select lab, waste handling/disposal
C5: Any other incidentals/miscellaneous tasks not listed
A6: PE/PG: | C6: Review/Sign Plan | J6: ='Maximum Rates'!D6 -> 132 | K6: 1 | L6: =(J6*K6) -> 132
C7: Any other incidentals/miscellaneous tasks not listed
A9: Staff Geologist: | C9: Interpret data, prepare plan, data QA/QC, sampling procedures | J9: ='Maximum Rates'!D7 -> 96 | K9: 2 | L9: =(J9*K9) -> 192
A10: Engineer | C10: Any other incidentals/miscellaneous tasks not listed
A12: Draftsman: | C12: Prepare Maps/figures, site maps, | J12: ='Maximum Rates'!D10 -> 70 | K12: 0 | L12: =(J12*K12) -> 0
C13: concentration maps, flow maps, etc.
C14: Any other incidentals/miscellaneous tasks not listed
A15: Clerical: | C15: Copy, sort, mail documents, | J15: ='Maximum Rates'!D11 -> 57 | K15: 2 | L15: =(J15*K15) -> 114
C16: Any other incidentals/miscellaneous tasks not listed
G17: Unit Rate GW Monitoring Plan | L17: =SUM(L3:L16) -> 553
A19: NAMR/Groundwater Monitoring Report (1-12 wells BTEX / MTBE / Naphthalene)
A21: Project Manager: | C21: Contact Property/Tank owners, schedule internal personnel, | J21: ='Maximum Rates'!D5 -> 115 | K21: 2 | L21: =(J21*K21) -> 230
C22: prepare CP/PR, select lab, waste handling/disposal
C24: Any other incidentals/miscellaneous tasks not listed
A25: PE/PG: | C25: Review/Sign Report | J25: ='Maximum Rates'!D6 -> 132 | K25: 1 | L25: =(J25*K25) -> 132
C26: Any other incidentals/miscellaneous tasks not listed
A28: Staff Geologist: | C28: Interpret data, prepare report, data QA/QC | J28: ='Maximum Rates'!D7 -> 96 | K28: 6 | L28: =(J28*K28) -> 576
A29: Engineer | C29: Any other incidentals/miscellaneous tasks not listed
A31: Draftsman: | C31: Prepare Maps/figures, site maps, | J31: ='Maximum Rates'!D10 -> 70 | K31: 2 | L31: =(J31*K31) -> 140
C32: concentration maps, flow maps, etc.
C33: Any other incidentals/miscellaneous tasks not listed
A34: Clerical: | C34: Copy, sort, mail documents, prepare CP/PR | J34: ='Maximum Rates'!D11 -> 57 | K34: 4 | L34: =(J34*K34) -> 228
C35: Any other incidentals/miscellaneous tasks not listed
G36: Unit Rate NAMR/ GW Report no PAHs | L36: =SUM(L21:L35) -> 1306
A38: Adder per well over twelve (reporting time): | G38: Unit Rate adder per well * over 12 | L38: =SUM(D39+G39) -> 41.5
A39: Geologist/Engineer | C39: 0.25 | D39: =(C39)*('Maximum Rates'!$D$7) -> 24 | E39: Draftsman | F39: 0.25 | G39: =(F39)*('Maximum Rates'!$D$10) -> 17.5
A41: NAMR/Groundwater Monitoring Report (1-12 wells BTEX / MTBE +PAH)
A43: Project Manager: | C43: Contact Property/Tank owners, schedule internal personnel, | J43: ='Maximum Rates'!D5 -> 115 | K43: 2 | L43: =(J43*K43) -> 230
C44: prepare CP/PR, select lab, waste handling/disposal
C46: Any other incidentals/miscellaneous tasks not listed
A47: PE/PG: | C47: Review/Sign Plan and Report | J47: ='Maximum Rates'!D6 -> 132 | K47: 1 | L47: =(J47*K47) -> 132
C48: Any other incidentals/miscellaneous tasks not listed
A50: Staff Geologist: | C50: Interpret data, prepare plan and report, data QA/QC | J50: ='Maximum Rates'!D7 -> 96 | K50: 8 | L50: =(J50*K50) -> 768
A51: Engineer | C51: Any other incidentals/miscellaneous tasks not listed
A53: Draftsman: | C53: Prepare Maps/figures, site maps, | J53: ='Maximum Rates'!D10 -> 70 | K53: 3 | L53: =(J53*K53) -> 210
C54: concentration maps, flow maps, etc.
C55: Any other incidentals/miscellaneous tasks not listed
A56: Clerical: | C56: Copy, sort, mail documents, prepare CP/PR | J56: ='Maximum Rates'!D11 -> 57 | K56: 4 | L56: =(J56*K56) -> 228
C57: Any other incidentals/miscellaneous tasks not listed
F58: Unit Rate NAMR/ GW Report with PAHs | L58: =SUM(L43:L57) -> 1568
A63: Adder per well over twelve (reporting time): | F63: Unit Rate adder per well */sample over 12 | L63: =SUM(D64+G64) -> 58.1
A64: Geologist/Engineer | C64: 0.35 | D64: =(C64)*('Maximum Rates'!$D$7) -> 33.6 | E64: Draftsman | F64: 0.35 | G64: =(F64)*('Maximum Rates'!$D$10) -> 24.5
A68: * Well-MW, RW, Injection well, water supply well, surface water, springs

Sheet FP PlanReportMEMEField (hidden)
A1: FP RECOVERY PLAN including MEME (CP/PR in Report amount)
A3: Project Manager: | C3: Hire Subcontractors (MEME Vender), Waste Disposal | J3: ='Maximum Rates'!D5 -> 115 | K3: 4 | L3: =(J3*K3) -> 460
C4: Contact ADEM Air Division, Schedule internal personnel,
C5: Any other incidentals/miscellaneous tasks not listed
A6: PE/PG: | C6: Review and Sign Plan | J6: ='Maximum Rates'!D6 -> 132 | K6: 1 | L6: =(J6*K6) -> 132
C7: Any other incidentals/miscellaneous tasks not listed
A9: Staff Geologist/ | C9: Develop Plan, prepare Plan | J9: ='Maximum Rates'!D7 -> 96 | K9: 1 | L9: =(J9*K9) -> 96
A10: Engineer: | C10: Any other incidentals/miscellaneous tasks not listed
A12: Draftsman: | C12: Prepare appropriate Maps and figures | J12: ='Maximum Rates'!D10 -> 70 | K12: 1 | L12: =(J12*K12) -> 70
C13: Any other incidentals/miscellaneous tasks not listed
A15: Clerical: | C15: Copy, sort, mail documents, | J15: ='Maximum Rates'!D11 -> 57 | K15: 2 | L15: =(J15*K15) -> 114
C16: Any other incidentals/miscellaneous tasks not listed
G17: Unit Rate Free Product Recovery/MEME Plan | L17: =SUM(L3:L15) -> 872
A19: FP RECOVERY PLAN MEME (CP/PR amount in Report amount)
A21: Project Manager: | C21: Hire Subcontractors (MEME Vender), Waste Disposal | J21: ='Maximum Rates'!D5 -> 115 | K21: 1 | L21: =(J21*K21) -> 115
C22: Contact ADEM Air Division, Schedule internal personnel,
A24: PE/PG: | C24: Review and Sign Plan | J24: ='Maximum Rates'!D6 -> 132 | K24: 1 | L24: =(J24*K24) -> 132
A27: Staff Geologist/Engineer: | C27: Contact MEME vendor. | J27: ='Maximum Rates'!D7 -> 96 | K27: 1 | L27: =(J27*K27) -> 96
A30: Draftsman: | C30: Prepare appropriate Maps and figures | J30: ='Maximum Rates'!D10 -> 70 | K30: 1 | L30: =(J30*K30) -> 70
A33: Clerical: | C33: Copy, sort, mail documents | J33: ='Maximum Rates'!D11 -> 57 | K33: 2 | L33: =(J33*K33) -> 114
G35: Unit Rate Free Product/MEME Plan | L35: =SUM(L21:L33) -> 527
A63: FREE PRODUCT RECOVERY REPORT (not MEME)
A65: Project Manager: | C65: Hire Subcontractors, Waste Disposal | J65: ='Maximum Rates'!D5 -> 115 | K65: 4 | L65: =(J65*K65) -> 460
C66: Contact ADEM Air Division, Schedule internal personnel,
C67: Cost Proposal/Payment Request Preparation
C68: Any other incidentals/miscellaneous tasks not listed
A69: PE/PG: | C69: Review and Sign Report | J69: ='Maximum Rates'!D6 -> 132 | K69: 1 | L69: =(J69*K69) -> 132
C70: Any other incidentals/miscellaneous tasks not listed
A72: Staff Geologist/ | C72: Interpret data, prepare report. | J72: ='Maximum Rates'!D7 -> 96 | K72: 2 | L72: =(J72*K72) -> 192
A73: Engineer: | C73: Any other incidentals/miscellaneous tasks not listed
A75: Draftsman: | C75: Prepare Free Product Maps | J75: ='Maximum Rates'!D10 -> 70 | K75: 1 | L75: =(J75*K75) -> 70
C76: Any other incidentals/miscellaneous tasks not listed
A78: Clerical: | C78: Copy, sort, mail documents, payment request | J78: ='Maximum Rates'!D11 -> 57 | K78: 4 | L78: =(J78*K78) -> 228
C79: Any other incidentals/miscellaneous tasks not listed
G80: Unit Rate Free Product Recovery Report | L80: =SUM(L65:L78) -> 1082
A82: FREE PRODUCT RECOVERY MEME REPORT
A84: Project Manager: | C84: Hire Subcontractors (MEME Vender), Waste Disposal | J84: ='Maximum Rates'!D5 -> 115 | K84: 4 | L84: =(J84*K84) -> 460
C85: Contact ADEM Air Division, Schedule internal personnel,
C86: Cost Proposal/Payment Request Preparation
C87: Any other incidentals/miscellaneous tasks not listed
A88: PE/PG: | C88: Review and Sign Report | J88: ='Maximum Rates'!D6 -> 132 | K88: 1 | L88: =(J88*K88) -> 132
C89: Any other incidentals/miscellaneous tasks not listed
A91: Staff Geologist/ | C91: Interpret data, prepare report. | J91: ='Maximum Rates'!D7 -> 96 | K91: 3 | L91: =(J91*K91) -> 288
A92: Engineer: | C92: Any other incidentals/miscellaneous tasks not listed
A94: Draftsman: | C94: Prepare Free Product Maps | J94: ='Maximum Rates'!D10 -> 70 | K94: 1 | L94: =(J94*K94) -> 70
C95: Any other incidentals/miscellaneous tasks not listed
A97: Clerical: | C97: Copy, sort, mail documents,cost proposal/ payment request | J97: ='Maximum Rates'!D11 -> 57 | K97: 4 | L97: =(J97*K97) -> 228
C98: Any other incidentals/miscellaneous tasks not listed
G99: Unit Rate Free Product Removal MEME Report | L99: =SUM(L84:L97) -> 1178
A125: MEME/Injection Events (Adder amount to GW Monitoring Report)
A127: Project Manager: | C127: Hire Subcontractors (MEME Vender), Waste Disposal | J127: ='Maximum Rates'!D5 -> 115 | K127: 2 | L127: =(J127*K127) -> 230
C128: Contact ADEM Air Division, Schedule internal personnel,
C129: Cost Proposal/Payment Request Preparation
C130: Any other incidentals/miscellaneous tasks not listed
A131: PE/PG: | C131: Review and Sign Report | J131: ='Maximum Rates'!D6 -> 132 | K131: 1 | L131: =(J131*K131) -> 132
C132: Any other incidentals/miscellaneous tasks not listed
A134: Staff Geologist/ | C134: Interpret data, prepare report. | J134: ='Maximum Rates'!D7 -> 96 | K134: 3 | L134: =(J134*K134) -> 288
A135: Engineer: | C135: Any other incidentals/miscellaneous tasks not listed
A137: Draftsman: | C137: Prepare Free Product Maps | J137: ='Maximum Rates'!D10 -> 70 | K137: 1 | L137: =(J137*K137) -> 70
C138: Any other incidentals/miscellaneous tasks not listed
A140: Clerical: | C140: Copy, sort, mail documents,cost proposal/ payment request | J140: ='Maximum Rates'!D11 -> 57 | K140: 2 | L140: =(J140*K140) -> 114
C141: Any other incidentals/miscellaneous tasks not listed
G142: Unit Rate Free Product Removal MEME Report | L142: =SUM(L127:L140) -> 834
A144: Additional MEME/Injection Events (Adder for Groups of >3 Events)
A146: Project Manager: | C146: Additional effort involved with Injection Extraction events over | J146: ='Maximum Rates'!D5 -> 115 | K146: 2 | L146: =(J146*K146) -> 230
C147: three per SOW
A150: PE/PG: | J150: ='Maximum Rates'!D6 -> 132 | L150: =(J150*K150) -> 0
A153: Staff Geologist/ | C153: Additional effort involved with Injection Extraction events over | J153: ='Maximum Rates'!D7 -> 96 | K153: 1 | L153: =(J153*K153) -> 96
A154: Engineer: | C154: three per SOW
A156: Draftsman: | J156: ='Maximum Rates'!D10 -> 70 | L156: =(J156*K156) -> 0
A159: Clerical: | J159: ='Maximum Rates'!D11 -> 57 | L159: =(J159*K159) -> 0
G161: Unit Rate Free Product Removal MEME Report | L161: =SUM(L146:L159) -> 326

Sheet ARBCA (hidden)
A1: ARBCA Tier I without PAHs (1-12 wells)
A3: Project Manager: | C3: Schedule internal personnel, | J3: ='Maximum Rates'!D5 -> 115 | K3: 5 | L3: =(J3*K3) -> 575
C4: prepare cost proposal/payment request,
C5: Any other incidentals/miscellaneous tasks not listed
A6: PE/PG: | C6: Review/Sign Report | J6: ='Maximum Rates'!D6 -> 132 | K6: 6 | L6: =(J6*K6) -> 792
C7: Any other incidentals/miscellaneous tasks not listed
A9: Staff Geologist: | C9: Data Input, Prepare Evaluation | J9: ='Maximum Rates'!D7 -> 96 | K9: 24 | L9: =(J9*K9) -> 2304
A10: Engineer | C10: Any other incidentals/miscellaneous tasks not listed
A12: Draftsman: | C12: Prepare appropriate Maps/figures, site maps, | J12: ='Maximum Rates'!D10 -> 70 | K12: 7 | L12: =(J12*K12) -> 490
C13: concentration maps, flow maps, etc.
C14: Any other incidentals/miscellaneous tasks not listed
A15: Clerical: | C15: Copy, sort, mail documents, cost proposal/payment request | J15: ='Maximum Rates'!D11 -> 57 | K15: 4 | L15: =(J15*K15) -> 228
C16: Any other incidentals/miscellaneous tasks not listed
G17: Unit Rate Tier I NO PAHs | L17: =SUM(L3:L16) -> 4389
A19: ARBCA Tier I with PAHs (1-12 wells)
A21: Project Manager: | C21: Schedule internal personnel, | J21: ='Maximum Rates'!D5 -> 115 | K21: 5 | L21: =(J21*K21) -> 575
C22: prepare cost proposal/payment request,
C23: Any other incidentals/miscellaneous tasks not listed
A24: PE/PG: | C24: Review/Sign Report | J24: ='Maximum Rates'!D6 -> 132 | K24: 6 | L24: =(J24*K24) -> 792
C25: Any other incidentals/miscellaneous tasks not listed
A27: Staff Geologist: | C27: Data Input, Prepare Evaluation | J27: ='Maximum Rates'!D7 -> 96 | K27: 26 | L27: =(J27*K27) -> 2496
A28: Engineer | C28: Any other incidentals/miscellaneous tasks not listed
A30: Draftsman: | C30: Prepare appropriate Maps/figures, site maps, | J30: ='Maximum Rates'!D10 -> 70 | K30: 8 | L30: =(J30*K30) -> 560
C31: concentration maps, flow maps, etc.
C32: Any other incidentals/miscellaneous tasks not listed
A33: Clerical: | C33: Copy, sort, mail documents, cost proposal/payment request | J33: ='Maximum Rates'!D11 -> 57 | K33: 4 | L33: =(J33*K33) -> 228
C34: Any other incidentals/miscellaneous tasks not listed
G35: Unit Rate Tier I PAHs | L35: =SUM(L21:L34) -> 4651
A37: ARBCA Tier II without PAHs (1-12 wells)
A39: Project Manager: | C39: Schedule internal personnel, cost proposal | J39: ='Maximum Rates'!D5 -> 115 | K39: 5 | L39: =(J39*K39) -> 575
C40: prepare payment request,
C41: Any other incidentals/miscellaneous tasks not listed
A42: PE/PG: | C42: Review/Sign Report | J42: ='Maximum Rates'!D6 -> 132 | K42: 6 | L42: =(J42*K42) -> 792
C43: Any other incidentals/miscellaneous tasks not listed
A45: Staff Geologist: | C45: Data Input, Prepare Evaluation | J45: ='Maximum Rates'!D7 -> 96 | K45: 24 | L45: =(J45*K45) -> 2304
A46: Engineer | C46: Any other incidentals/miscellaneous tasks not listed
A48: Draftsman: | C48: Prepare appropriate Maps/figures, site maps, | J48: ='Maximum Rates'!D10 -> 70 | K48: 7 | L48: =(J48*K48) -> 490
C49: concentration maps, flow maps, etc.
C50: Any other incidentals/miscellaneous tasks not listed
A51: Clerical: | C51: Copy, sort, mail documents, cost proposal payment request | J51: ='Maximum Rates'!D11 -> 57 | K51: 4 | L51: =(J51*K51) -> 228
C52: Any other incidentals/miscellaneous tasks not listed
G53: Unit Rate Tier II NO PAHs | L53: =SUM(L39:L52) -> 4389
A62: ARBCA Tier II with PAHs (1-12 wells)
A64: Project Manager: | C64: Schedule internal personnel, cost proposal | J64: ='Maximum Rates'!D5 -> 115 | K64: 5 | L64: =(J64*K64) -> 575
C65: prepare payment request,
C66: Any other incidentals/miscellaneous tasks not listed
A67: PE/PG: | C67: Review/Sign Report | J67: ='Maximum Rates'!D6 -> 132 | K67: 6 | L67: =(J67*K67) -> 792
C68: Any other incidentals/miscellaneous tasks not listed
A70: Staff Geologist: | C70: Data Input, Prepare Evaluation | J70: ='Maximum Rates'!D7 -> 96 | K70: 26 | L70: =(J70*K70) -> 2496
A71: Engineer | C71: Any other incidentals/miscellaneous tasks not listed
A73: Draftsman: | C73: Prepare appropriate Maps/figures, site maps, | J73: ='Maximum Rates'!D10 -> 70 | K73: 8 | L73: =(J73*K73) -> 560
C74: concentration maps, flow maps, etc.
C75: Any other incidentals/miscellaneous tasks not listed
A76: Clerical: | C76: Copy, sort, mail documents, cost proposal/payment request | J76: ='Maximum Rates'!D11 -> 57 | K76: 4 | L76: =(J76*K76) -> 228
C77: Any other incidentals/miscellaneous tasks not listed
G78: Unit Rate Tier II PAHs | L78: =SUM(L64:L77) -> 4651
A81: Adder per well over twelve: | G81: Unit Rate adder per well over twelve no PAH | L81: =SUM(D82+G82) -> 41.5
A82: Geologist/Engineer | C82: 0.25 | D82: =(C82)*('Maximum Rates'!$D$7) -> 24 | E82: Draftsman | F82: 0.25 | G82: =(F82)*('Maximum Rates'!$D$10) -> 17.5
A84: Adder per well over twelve: | F84: Unit Rate adder per well over twelve PAH | L84: =SUM(D85+G85) -> 49.8
A85: Geologist/Engineer | C85: 0.3 | D85: =(C85)*('Maximum Rates'!$D$7) -> 28.8 | E85: Draftsman | F85: 0.3 | G85: =(F85)*('Maximum Rates'!$D$10) -> 21
A87: Adder Tier II with Decay: | G87: Unit Rate adder Tier II WITH DECAY | L87: =D88+G88 -> 2514
A88: Geologist/Engineer | C88: 24 | D88: =(C88)*('Maximum Rates'!$D$7) -> 2304 | E88: Draftsman | F88: 3 | G88: =(F88)*('Maximum Rates'!$D$10) -> 210
A90: ARBCA with Decay (stand alone after original ARBCA has been completed)
A92: Project Manager: | C92: Schedule internal personnel, cost proposal | J92: ='Maximum Rates'!D5 -> 115 | K92: 7 | L92: =(J92*K92) -> 805
C93: prepare payment request,
C94: Any other incidentals/miscellaneous tasks not listed
A95: PE/PG: | C95: Review/Sign Report | J95: ='Maximum Rates'!D6 -> 132 | K95: 3 | L95: =(J95*K95) -> 396
C96: Any other incidentals/miscellaneous tasks not listed
A98: Staff Geologist: | C98: Data Input, Prepare Evaluation with Decay forms | J98: ='Maximum Rates'!D7 -> 96 | K98: 24 | L98: =(J98*K98) -> 2304
A99: Engineer | C99: Any other incidentals/miscellaneous tasks not listed
A101: Draftsman: | C101: Prepare appropriate Maps/figures, site maps, | J101: ='Maximum Rates'!D10 -> 70 | K101: 1 | L101: =(J101*K101) -> 70
C102: concentration maps, flow maps, etc.
C103: Any other incidentals/miscellaneous tasks not listed
A104: Clerical: | C104: Copy, sort, mail documents, cost proposal/payment request | J104: ='Maximum Rates'!D11 -> 57 | K104: 4 | L104: =(J104*K104) -> 228
C105: Any other incidentals/miscellaneous tasks not listed
G106: Unit Rate Decay Stand Alone | L106: =SUM(L92:L105) -> 3803
A108: ARBCA GRP Re Assessment (1-4 wells, Gas)
A110: Project Manager: | C110: Project oversight | J110: ='Maximum Rates'!D5 -> 115 | K110: 1 | L110: =(J110*K110) -> 115
A113: PE/PG: | C113: Project Review | J113: ='Maximum Rates'!D6 -> 132 | K113: 1 | L113: =(J113*K113) -> 132
A116: Staff Geologist: | C116: Assesment Report data entry | J116: ='Maximum Rates'!D7 -> 96 | K116: 2 | L116: =(J116*K116) -> 192
A117: Engineer
A119: Draftsman: | C119: Prepare appropriate Maps/figures, site maps, | J119: ='Maximum Rates'!D10 -> 70 | K119: 1 | L119: =(J119*K119) -> 70
C120: concentration maps, flow maps, etc.
C121: Any other incidentals/miscellaneous tasks not listed
A122: Clerical: | C122: Copy, sort, mail documents, cost proposal/payment request | J122: ='Maximum Rates'!D11 -> 57 | K122: 1 | L122: =(J122*K122) -> 57
C123: Any other incidentals/miscellaneous tasks not listed
G124: Unit Rate GRP Re Assessment | L124: =SUM(L110:L123) -> 566
A126: ARBCA GRP Re Assessment (1-4 wells, Diesel)
A128: Project Manager: | C128: Project oversight | J128: ='Maximum Rates'!D5 -> 115 | K128: 1 | L128: =(J128*K128) -> 115
A131: PE/PG: | C131: Project Review | J131: ='Maximum Rates'!D6 -> 132 | K131: 2 | L131: =(J131*K131) -> 264
A134: Staff Geologist: | C134: Assessment Report data entry | J134: ='Maximum Rates'!D7 -> 96 | K134: 4 | L134: =(J134*K134) -> 384
A135: Engineer
A137: Draftsman: | C137: Prepare appropriate Maps/figures, site maps, | J137: ='Maximum Rates'!D10 -> 70 | K137: 1 | L137: =(J137*K137) -> 70
C138: concentration maps, flow maps, etc.
C139: Any other incidentals/miscellaneous tasks not listed
A140: Clerical: | C140: Copy, sort, mail documents, cost proposal/payment request | J140: ='Maximum Rates'!D11 -> 57 | K140: 1 | L140: =(J140*K140) -> 57
C141: Any other incidentals/miscellaneous tasks not listed
G142: Unit Rate GRP Additional Wells 1-4 | L142: =SUM(L128:L141) -> 890

Sheet Corrective Action Plans (hidden)
A1: CAP Development- Corrective Action Evaluation
A3: Project Manager: | C3: Schedule internal personnel, cost proposal | J3: ='Maximum Rates'!D5 -> 115 | K3: 12 | L3: =(J3*K3) -> 1380
C4: Any other incidentals/miscellaneous tasks not listed
C5: Conference call/communication with ADEM
A6: PE/PG: | C6: Review/Sign Plan, discuss and evaluate Corrective Action | J6: ='Maximum Rates'!D6 -> 132 | K6: 9 | L6: =(J6*K6) -> 1188
C7: Options
C8: Any other incidentals/miscellaneous tasks not listed
A9: Staff Geologist: | C9: Evaluate Corrective Action Options, compile data, history | J9: ='Maximum Rates'!D7 -> 96 | K9: 8 | L9: =(J9*K9) -> 768
A10: Engineer | C10: Any other incidentals/miscellaneous tasks not listed
C11: Conference call/communication with ADEM
A12: Draftsman: | C12: Concept/minor maps | J12: ='Maximum Rates'!D10 -> 70 | K12: 2 | L12: =(J12*K12) -> 140
A15: Clerical: | C15: Cost proposal/payment request | J15: ='Maximum Rates'!D11 -> 57 | K15: 5 | L15: =(J15*K15) -> 285
G17: Unit Rate CAP Evaluation | L17: =SUM(L3:L16) -> 3761
A19: CAP Development-RNA
A21: Project Manager: | C21: Schedule internal personnel, | J21: ='Maximum Rates'!D5 -> 115 | K21: 3 | L21: =(J21*K21) -> 345
C22: prepare payment request,
C23: Any other incidentals/miscellaneous tasks not listed
A24: PE/PG: | C24: Review/Sign Plan | J24: ='Maximum Rates'!D6 -> 132 | K24: 2 | L24: =(J24*K24) -> 264
C25: Any other incidentals/miscellaneous tasks not listed
A27: Staff Geologist: | C27: Prepare CAP, estimate time to completion | J27: ='Maximum Rates'!D7 -> 96 | K27: 8 | L27: =(J27*K27) -> 768
A28: Engineer | C28: Any other incidentals/miscellaneous tasks not listed
A30: Draftsman: | C30: Prepare appropriate Maps/figures, site maps, | J30: ='Maximum Rates'!D10 -> 70 | K30: 2 | L30: =(J30*K30) -> 140
C31: concentration maps, flow maps, etc.
C32: Any other incidentals/miscellaneous tasks not listed
A33: Clerical: | C33: Copy, sort, mail documents, cost proposal/ payment request | J33: ='Maximum Rates'!D11 -> 57 | K33: 4 | L33: =(J33*K33) -> 228
C34: Any other incidentals/miscellaneous tasks not listed
G35: Unit Rate CAP RNA | L35: =SUM(L21:L34) -> 1745
A37: CAP Development-RNA with MEME
A39: Project Manager: | C39: Schedule internal personnel, | J39: ='Maximum Rates'!D5 -> 115 | K39: 4 | L39: =(J39*K39) -> 460
C40: prepare payment request,
C41: Any other incidentals/miscellaneous tasks not listed
A42: PE/PG: | C42: Review/Sign Plan | J42: ='Maximum Rates'!D6 -> 132 | K42: 2 | L42: =(J42*K42) -> 264
C43: Any other incidentals/miscellaneous tasks not listed
A45: Staff Geologist: | C45: Prepare Plan | J45: ='Maximum Rates'!D7 -> 96 | K45: 8 | L45: =(J45*K45) -> 768
A46: Engineer | C46: Any other incidentals/miscellaneous tasks not listed
A48: Draftsman: | C48: Prepare appropriate Maps/figures, site maps, | J48: ='Maximum Rates'!D10 -> 70 | K48: 2 | L48: =(J48*K48) -> 140
C49: concentration maps, flow maps, etc.
C50: Any other incidentals/miscellaneous tasks not listed
A51: Clerical: | C51: Copy, sort, mail documents, cost proposal /payment request | J51: ='Maximum Rates'!D11 -> 57 | K51: 4 | L51: =(J51*K51) -> 228
C52: Any other incidentals/miscellaneous tasks not listed
G53: Unit Rate CAP RNA with MEME | L53: =SUM(L39:L52) -> 1860
A62: CAP Development-Excavation (small source or under 100 yds)
A64: Project Manager: | C64: Schedule internal personnel, solicit/collect bids | J64: ='Maximum Rates'!D5 -> 115 | K64: 7 | L64: =(J64*K64) -> 805
C65: prepare payment request,
C66: Any other incidentals/miscellaneous tasks not listed
A67: PE/PG: | C67: Review/Sign Plan | J67: ='Maximum Rates'!D6 -> 132 | K67: 2 | L67: =(J67*K67) -> 264
C68: Any other incidentals/miscellaneous tasks not listed
A70: Staff Geologist: | C70: Prepare Plan | J70: ='Maximum Rates'!D7 -> 96 | K70: 4 | L70: =(J70*K70) -> 384
A71: Engineer | C71: Any other incidentals/miscellaneous tasks not listed
A73: Draftsman: | C73: Prepare appropriate Maps/figures, site maps, | J73: ='Maximum Rates'!D10 -> 70 | K73: 2 | L73: =(J73*K73) -> 140
C74: concentration maps, flow maps, etc.
C75: Any other incidentals/miscellaneous tasks not listed
A76: Clerical: | C76: Copy, sort, mail documents, cost proposal/ payment request | J76: ='Maximum Rates'!D11 -> 57 | K76: 4 | L76: =(J76*K76) -> 228
C77: Any other incidentals/miscellaneous tasks not listed
G78: Unit Rate CAP Excavation | L78: =SUM(L64:L77) -> 1821
A80: CAP Development-Surfactant Injection INSITU-liquid Chemox/BIOX
A82: Project Manager: | C82: Schedule internal personnel, organize project details | J82: ='Maximum Rates'!D5 -> 115 | K82: 16 | L82: =(J82*K82) -> 1840
C83: prepare payment request, assist in plan prep
C84: Any other incidentals/miscellaneous tasks not listed
A85: PE/PG: | C85: Review/Sign Plan, assist in plan prep | J85: ='Maximum Rates'!D6 -> 132 | K85: 16 | L85: =(J85*K85) -> 2112
C86: Any other incidentals/miscellaneous tasks not listed
A88: Staff Geologist: | C88: Prepare Plan | J88: ='Maximum Rates'!D7 -> 96 | K88: 7 | L88: =(J88*K88) -> 672
A89: Engineer | C89: Any other incidentals/miscellaneous tasks not listed
A91: Draftsman: | C91: Prepare appropriate Maps/figures, site maps, | J91: ='Maximum Rates'!D10 -> 70 | K91: 4 | L91: =(J91*K91) -> 280
C92: concentration maps, flow maps, etc.
C93: Any other incidentals/miscellaneous tasks not listed
A94: Clerical: | C94: Copy, sort, mail documents, cost proposal /payment request | J94: ='Maximum Rates'!D11 -> 57 | K94: 4 | L94: =(J94*K94) -> 228
C95: Any other incidentals/miscellaneous tasks not listed
G96: Unit Rate Surfactant Injection | L96: =SUM(L82:L95) -> 5132
A98: CAP Development-(Class 1)- DPVE, P&T
A100: Project Manager: | C100: Schedule internal personnel, communications with utilities/ | J100: ='Maximum Rates'!D5 -> 115 | K100: 16 | L100: =(J100*K100) -> 1840
C101: municipalities, prepare payment request, notify air division
C102: Any other incidentals/miscellaneous tasks not listed
A103: PE/PG: | C103: Review/Sign Plan, assist prepare plan, clean up time calculation | J103: ='Maximum Rates'!D6 -> 132 | K103: 24 | L103: =(J103*K103) -> 3168
C104: Any other incidentals/miscellaneous tasks not listed
A106: Staff Geologist: | C106: Prepare Plan | J106: ='Maximum Rates'!D7 -> 96 | K106: 8 | L106: =(J106*K106) -> 768
A107: Engineer | C107: Any other incidentals/miscellaneous tasks not listed
A109: Draftsman: | C109: Prepare appropriate Maps/figures, site maps, | J109: ='Maximum Rates'!D10 -> 70 | K109: 24 | L109: =(J109*K109) -> 1680
C110: concentration maps, flow maps, etc.
C111: Any other incidentals/miscellaneous tasks not listed
A112: Clerical: | C112: Copy, sort, mail documents, cost proposal/payment request | J112: ='Maximum Rates'!D11 -> 57 | K112: 4 | L112: =(J112*K112) -> 228
C113: Any other incidentals/miscellaneous tasks not listed
G114: Unit Rate CAP (Class I) | L114: =SUM(L100:L113) -> 7684
A123: CAP Development- (Class 2) - Ozone/SVE, AS/SVE
A125: Project Manager: | C125: Schedule internal personnel, assist in preparing plan | J125: ='Maximum Rates'!D5 -> 115 | K125: 16 | L125: =(J125*K125) -> 1840
C126: prepare payment request,
C127: Any other incidentals/miscellaneous tasks not listed
A128: PE/PG: | C128: Review/Sign Plan | J128: ='Maximum Rates'!D6 -> 132 | K128: 20 | L128: =(J128*K128) -> 2640
C129: Any other incidentals/miscellaneous tasks not listed
A131: Staff Geologist: | C131: Prepare Plan, assist in preparing plan | J131: ='Maximum Rates'!D7 -> 96 | K131: 7 | L131: =(J131*K131) -> 672
A132: Engineer | C132: Any other incidentals/miscellaneous tasks not listed
A134: Draftsman: | C134: Prepare appropriate Maps/figures, site maps, | J134: ='Maximum Rates'!D10 -> 70 | K134: 20 | L134: =(J134*K134) -> 1400
C135: concentration maps, flow maps, etc.
C136: Any other incidentals/miscellaneous tasks not listed
A137: Clerical: | C137: Copy, sort, mail documents, cost proposal/payment request | J137: ='Maximum Rates'!D11 -> 57 | K137: 4 | L137: =(J137*K137) -> 228
C138: Any other incidentals/miscellaneous tasks not listed
G139: Unit Rate CAP (Class II) | L139: =SUM(L125:L138) -> 6780
A141: CAP Development-(Class 3) - Ozone, AS, SVE
A143: Project Manager: | C143: Schedule internal personnel, | J143: ='Maximum Rates'!D5 -> 115 | K143: 16 | L143: =(J143*K143) -> 1840
C144: prepare payment request,
C145: Any other incidentals/miscellaneous tasks not listed
A146: PE/PG: | C146: Review/Sign Plan | J146: ='Maximum Rates'!D6 -> 132 | K146: 16 | L146: =(J146*K146) -> 2112
C147: Any other incidentals/miscellaneous tasks not listed
A149: Staff Geologist: | C149: Prepare Plan | J149: ='Maximum Rates'!D7 -> 96 | K149: 7 | L149: =(J149*K149) -> 672
A150: Engineer | C150: Any other incidentals/miscellaneous tasks not listed
A152: Draftsman: | C152: Prepare appropriate Maps/figures, site maps, | J152: ='Maximum Rates'!D10 -> 70 | K152: 20 | L152: =(J152*K152) -> 1400
C153: concentration maps, flow maps, etc.
C154: Any other incidentals/miscellaneous tasks not listed
A155: Clerical: | C155: Copy, sort, mail documents, cost proposal/payment request | J155: ='Maximum Rates'!D11 -> 57 | K155: 4 | L155: =(J155*K155) -> 228
C156: Any other incidentals/miscellaneous tasks not listed
G157: Unit Rate CAP (Class III) | L157: =SUM(L143:L156) -> 6252
A159: CAP Development Site Visit
A161: Project Manager: | J161: ='Maximum Rates'!D5 -> 115 | L161: =(J161*K161) -> 0
A164: PE/PG: | C164: Visit Site for specific placement details | J164: ='Maximum Rates'!D6 -> 132 | K164: 8 | L164: =(J164*K164) -> 1056
C165: Any other incidentals/miscellaneous tasks not listed
A167: Staff Geologist: | J167: ='Maximum Rates'!D7 -> 96 | L167: =(J167*K167) -> 0
A168: Engineer
A170: Draftsman: | J170: ='Maximum Rates'!D10 -> 70 | L170: =(J170*K170) -> 0
A173: Clerical: | J173: ='Maximum Rates'!D11 -> 57 | L173: =(J173*K173) -> 0
F175: Unit Rate CAP Development Site Visit | L175: =SUM(L161:L174) -> 1056

Sheet Corrective Action Reports Eng (hidden)
A1: CAP Implementation- Excavation Report (Small source or under 100yds)
A3: Project Manager: | C3: Schedule internal personnel, contractors, landfill, | J3: ='Maximum Rates'!D5 -> 115 | K3: 8 | L3: =(J3*K3) -> 920
C4: handle manifest, prepare payment request,
C5: Any other incidentals/miscellaneous tasks not listed
A6: PE/PG: | C6: Review/Sign Report | J6: ='Maximum Rates'!D6 -> 132 | K6: 4 | L6: =(J6*K6) -> 528
C7: Any other incidentals/miscellaneous tasks not listed
A9: Staff Geologist: | C9: Data Input, | J9: ='Maximum Rates'!D7 -> 96 | K9: 6 | L9: =(J9*K9) -> 576
A10: Engineer | C10: Any other incidentals/miscellaneous tasks not listed
A12: Draftsman: | C12: Prepare appropriate Maps/figures, site maps, | J12: ='Maximum Rates'!D10 -> 70 | K12: 2 | L12: =(J12*K12) -> 140
C13: concentration maps, flow maps, etc.
C14: Any other incidentals/miscellaneous tasks not listed
A15: Clerical: | C15: Copy, sort, mail documents, payment request | J15: ='Maximum Rates'!D11 -> 57 | K15: 2 | L15: =(J15*K15) -> 114
C16: Any other incidentals/miscellaneous tasks not listed
E17: Unit Rate CAP Excavation Report (small source) | L17: =SUM(L3:L16) -> 2278
A19: CAP Implementation-Liquid Injection Report
A21: Project Manager: | C21: Schedule internal personnel, contractors, vendors, | J21: ='Maximum Rates'!D5 -> 115 | K21: 10 | L21: =(J21*K21) -> 1150
C22: drillers, prepare payment request,
C23: Any other incidentals/miscellaneous tasks not listed
A24: PE/PG: | C24: Review/Sign Report | J24: ='Maximum Rates'!D6 -> 132 | K24: 8 | L24: =(J24*K24) -> 1056
C25: Any other incidentals/miscellaneous tasks not listed
A27: Staff Geologist: | C27: Produce injection report from field data | J27: ='Maximum Rates'!D7 -> 96 | K27: 4 | L27: =(J27*K27) -> 384
A28: Engineer | C28: Any other incidentals/miscellaneous tasks not listed
A30: Draftsman: | C30: Prepare appropriate Maps/figures, site maps, | J30: ='Maximum Rates'!D10 -> 70 | K30: 2 | L30: =(J30*K30) -> 140
C31: concentration maps, flow maps, etc.
C32: Any other incidentals/miscellaneous tasks not listed
A33: Clerical: | C33: Copy, sort, mail documents, payment request | J33: ='Maximum Rates'!D11 -> 57 | K33: 3 | L33: =(J33*K33) -> 171
C34: Any other incidentals/miscellaneous tasks not listed
G35: Unit Rate CAP Injection Report | L35: =SUM(L21:L34) -> 2901
A37: CA System Purchase Letter
A39: Project Manager: | C39: Purchase system, solicit bids for systems | J39: ='Maximum Rates'!D5 -> 115 | K39: 9 | L39: =(J39*K39) -> 1035
C40: prepare payment request,
C41: Any other incidentals/miscellaneous tasks not listed
A42: PE/PG: | C42: Review/Sign Report | J42: ='Maximum Rates'!D6 -> 132 | K42: 1 | L42: =(J42*K42) -> 132
C43: Any other incidentals/miscellaneous tasks not listed
A45: Staff Geologist: | C45: Data Input, | J45: ='Maximum Rates'!D7 -> 96 | K45: 0 | L45: =(J45*K45) -> 0
A46: Engineer | C46: Any other incidentals/miscellaneous tasks not listed
A48: Draftsman: | C48: Prepare appropriate Maps/figures, site maps, | J48: ='Maximum Rates'!D10 -> 70 | K48: 0 | L48: =(J48*K48) -> 0
C49: concentration maps, flow maps, etc.
C50: Any other incidentals/miscellaneous tasks not listed
A51: Clerical: | C51: Copy, sort, mail documents, cp/pr | J51: ='Maximum Rates'!D11 -> 57 | K51: 5 | L51: =(J51*K51) -> 285
C52: Any other incidentals/miscellaneous tasks not listed
F53: Unit Rate CA System Purchase Letter | L53: =SUM(L39:L52) -> 1452
A62: CAP Implementation-Installation/Start Up Report
A64: Project Manager: | C64: Schedule internal personnel and vendors for install, baseline sampling | J64: ='Maximum Rates'!D5 -> 115 | K64: 26 | L64: =(J64*K64) -> 2990
C65: prepare payment request, UIC reporting, cost proposal
C66: Any other incidentals/miscellaneous tasks not listed
A67: PE/PG: | C67: Review/Sign Report | J67: ='Maximum Rates'!D6 -> 132 | K67: 16 | L67: =(J67*K67) -> 2112
C68: Any other incidentals/miscellaneous tasks not listed
A70: Staff Geologist: | C70: Field notes logged into report, installation, start up, baseline sampling | J70: ='Maximum Rates'!D7 -> 96 | K70: 22 | L70: =(J70*K70) -> 2112
A71: Engineer | C71: UIC Reporting, Any other incidentals/miscellaneous tasks not listed
A73: Draftsman: | C73: Prepare appropriate Maps/figures (site layout), site maps, | J73: ='Maximum Rates'!D10 -> 70 | K73: 8 | L73: =(J73*K73) -> 560
C74: concentration maps, flow maps, etc.
C75: Any other incidentals/miscellaneous tasks not listed
A76: Clerical: | C76: Copy, sort, mail documents, payment request | J76: ='Maximum Rates'!D11 -> 57 | K76: 10 | L76: =(J76*K76) -> 570
C77: Any other incidentals/miscellaneous tasks not listed
G78: Unit Rate CAP Installation Report | L78: =SUM(L64:L77) -> 8344
A80: SEMR Class I Report NO PAHs (up to 12 wells)
A82: Project Manager: | C82: Schedule internal personnel, DMR for NPDES | J82: ='Maximum Rates'!D5 -> 115 | K82: 14 | L82: =(J82*K82) -> 1610
C83: prepare payment request, UIC reporting, Cost Proposal
C84: Any other incidentals/miscellaneous tasks not listed
A85: PE/PG: | C85: Review/Sign Report | J85: ='Maximum Rates'!D6 -> 132 | K85: 8 | L85: =(J85*K85) -> 1056
C86: Any other incidentals/miscellaneous tasks not listed
A88: Staff Geologist: | C88: Data Input, write report, DMR preparation, UIC reporting | J88: ='Maximum Rates'!D7 -> 96 | K88: 22 | L88: =(J88*K88) -> 2112
A89: Engineer | C89: Any other incidentals/miscellaneous tasks not listed
A91: Draftsman: | C91: Prepare appropriate Maps/figures, site maps, | J91: ='Maximum Rates'!D10 -> 70 | K91: 3 | L91: =(J91*K91) -> 210
C92: concentration maps, flow maps, etc.
C93: Any other incidentals/miscellaneous tasks not listed
A94: Clerical: | C94: Copy, sort, mail documents, PR/CP | J94: ='Maximum Rates'!D11 -> 57 | K94: 8 | L94: =(J94*K94) -> 456
C95: Any other incidentals/miscellaneous tasks not listed
F96: Unit Rate CAIPR Class I subsequent reports | L96: =SUM(L82:L95) -> 5444
A98: SEMR Class I Report WITH PAHs (up to 12 wells)
A100: Project Manager: | C100: Schedule internal personnel, DMR for NPDES | J100: ='Maximum Rates'!D5 -> 115 | K100: 14 | L100: =(J100*K100) -> 1610
C101: UIC reporting, prepare payment request,
C102: Any other incidentals/miscellaneous tasks not listed
A103: PE/PG: | C103: Review/Sign Report | J103: ='Maximum Rates'!D6 -> 132 | K103: 8 | L103: =(J103*K103) -> 1056
C104: Any other incidentals/miscellaneous tasks not listed
A106: Staff Geologist: | C106: Data Input, write report, DMR preparation | J106: ='Maximum Rates'!D7 -> 96 | K106: 24 | L106: =(J106*K106) -> 2304
A107: Engineer | C107: UIC Reporting, Any other incidentals/miscellaneous tasks not listed
A109: Draftsman: | C109: Prepare appropriate Maps/figures, site maps, | J109: ='Maximum Rates'!D10 -> 70 | K109: 4 | L109: =(J109*K109) -> 280
C110: concentration maps, flow maps, etc.
C111: Any other incidentals/miscellaneous tasks not listed
A112: Clerical: | C112: Copy, sort, mail documents, payment request | J112: ='Maximum Rates'!D11 -> 57 | K112: 8 | L112: =(J112*K112) -> 456
C113: Any other incidentals/miscellaneous tasks not listed
E114: Unit Rate CAIPR Class I subsequent reports w/PAH | L114: =SUM(L100:L113) -> 5706
A116: SEMR Class II or III Report NO PAHs (up to 12 wells)
A118: Project Manager: | C118: Schedule internal personnel, DMR for NPDES | J118: ='Maximum Rates'!D5 -> 115 | K118: 12 | L118: =(J118*K118) -> 1380
C119: UIC Reporting, prepare payment request, cost proposal
C120: Any other incidentals/miscellaneous tasks not listed
A121: PE/PG: | C121: Review/Sign Report | J121: ='Maximum Rates'!D6 -> 132 | K121: 8 | L121: =(J121*K121) -> 1056
C122: Any other incidentals/miscellaneous tasks not listed
A124: Staff Geologist: | C124: Data Input, write report, DMR preparation | J124: ='Maximum Rates'!D7 -> 96 | K124: 18 | L124: =(J124*K124) -> 1728
A125: Engineer | C125: UIC Reporting, Any other incidentals/miscellaneous tasks not listed
A127: Draftsman: | C127: Prepare appropriate Maps/figures, site maps, | J127: ='Maximum Rates'!D10 -> 70 | K127: 3 | L127: =(J127*K127) -> 210
C128: concentration maps, flow maps, etc.
C129: Any other incidentals/miscellaneous tasks not listed
A130: Clerical: | C130: Copy, sort, mail documents, CP/PR | J130: ='Maximum Rates'!D11 -> 57 | K130: 8 | L130: =(J130*K130) -> 456
C131: Any other incidentals/miscellaneous tasks not listed
E132: Unit Rate CAIPR Class II/III subsequent reports | L132: =SUM(L118:L131) -> 4830
A134: SEMR Class II or III Report WITH PAHs (up to 12 wells)
A136: Project Manager: | C136: Schedule internal personnel, DMR for NPDES, UIC reporting | J136: ='Maximum Rates'!D5 -> 115 | K136: 12 | L136: =(J136*K136) -> 1380
C137: prepare payment request, cost proposal
C138: Any other incidentals/miscellaneous tasks not listed
A139: PE/PG: | C139: Review/Sign Report | J139: ='Maximum Rates'!D6 -> 132 | K139: 8 | L139: =(J139*K139) -> 1056
C140: Any other incidentals/miscellaneous tasks not listed
A142: Staff Geologist: | C142: Data Input, write report, DMR preparation, UIC reporting | J142: ='Maximum Rates'!D7 -> 96 | K142: 20 | L142: =(J142*K142) -> 1920
A143: Engineer | C143: Any other incidentals/miscellaneous tasks not listed
A145: Draftsman: | C145: Prepare appropriate Maps/figures, site maps, | J145: ='Maximum Rates'!D10 -> 70 | K145: 4 | L145: =(J145*K145) -> 280
C146: concentration maps, flow maps, etc.
C147: Any other incidentals/miscellaneous tasks not listed
A148: Clerical: | C148: Copy, sort, mail documents, CP/PR | J148: ='Maximum Rates'!D11 -> 57 | K148: 8 | L148: =(J148*K148) -> 456
C149: Any other incidentals/miscellaneous tasks not listed
E150: Unit Rate CAIPR Class II/III subsequent reports w/PAH | L150: =SUM(L136:L149) -> 5092
A152: Adder per well over twelve: | E152: Unit Rate adder per well over twelve no PAH | L152: =SUM(D153+G153) -> 41.5
A153: Geologist/Engineer | C153: 0.25 | D153: =(C153)*('Maximum Rates'!$D$7) -> 24 | E153: Draftsman | F153: 0.25 | G153: =(F153)*('Maximum Rates'!$D$10) -> 17.5
A155: Adder per well over twelve: | E155: Unit Rate adder per well over twelve PAH | L155: =SUM(D156+G156) -> 49.8
A156: Geologist/Engineer | C156: 0.3 | D156: =(C156)*('Maximum Rates'!$D$7) -> 28.8 | E156: Draftsman | F156: 0.3 | G156: =(F156)*('Maximum Rates'!$D$10) -> 21

Sheet MW Abandon Plan Report Field (hidden)
A1: MW Abandonment Plan (CP/PR in Report amount)
A3: Project Manager: | C3: Schedule internal personnel, | J3: ='Maximum Rates'!D5 -> 115 | K3: 1 | L3: =(J3*K3) -> 115
C5: Any other incidentals/miscellaneous tasks not listed
A6: PE/PG: | C6: Review/Sign Plan | J6: ='Maximum Rates'!D6 -> 132 | K6: 0.5 | L6: =(J6*K6) -> 66
C7: Any other incidentals/miscellaneous tasks not listed
A9: Staff Geologist: | C9: Prepare Plan | J9: ='Maximum Rates'!D7 -> 96 | K9: 2 | L9: =(J9*K9) -> 192
A10: Engineer | C10: Any other incidentals/miscellaneous tasks not listed
A12: Draftsman: | J12: ='Maximum Rates'!D10 -> 70 | K12: 0 | L12: =(J12*K12) -> 0
A15: Clerical: | C15: Copy, sort, mail documents, payment request | J15: ='Maximum Rates'!D11 -> 57 | K15: 2 | L15: =(J15*K15) -> 114
C16: Any other incidentals/miscellaneous tasks not listed
E17: Unit Rate MW Abandonment Plan | L17: =SUM(L3:L16) -> 487
A19: MW Abandonment Report
A21: Project Manager: | C21: Schedule internal personnel, obtain access | J21: ='Maximum Rates'!D5 -> 115 | K21: 4 | L21: =(J21*K21) -> 460
C22: cost proposal/prepare payment request,
C23: Any other incidentals/miscellaneous tasks not listed
A24: PE/PG: | C24: Review/Sign Report | J24: ='Maximum Rates'!D6 -> 132 | K24: 1 | L24: =(J24*K24) -> 132
C25: Any other incidentals/miscellaneous tasks not listed
A27: Staff Geologist: | C27: Prepare Report | J27: ='Maximum Rates'!D7 -> 96 | K27: 2 | L27: =(J27*K27) -> 192
A28: Engineer | C28: Any other incidentals/miscellaneous tasks not listed
A30: Draftsman: | C30: associated map/diagram | J30: ='Maximum Rates'!D10 -> 70 | K30: 1 | L30: =(J30*K30) -> 70
A33: Clerical: | C33: Copy, sort, mail documents, payment request | J33: ='Maximum Rates'!D11 -> 57 | K33: 4 | L33: =(J33*K33) -> 228
C34: Any other incidentals/miscellaneous tasks not listed
E35: Unit Rate MW Abandonment Report | L35: =SUM(L21:L34) -> 1082
A37: System Decommissioning Plan (CP/PR in Report amount)
A39: Project Manager: | C39: Schedule internal personnel, solicit quotes | J39: ='Maximum Rates'!D5 -> 115 | K39: 4 | L39: =(J39*K39) -> 460
C40: cancel permits
C41: Any other incidentals/miscellaneous tasks not listed
A42: PE/PG: | C42: Review/Sign Plan | J42: ='Maximum Rates'!D6 -> 132 | K42: 1 | L42: =(J42*K42) -> 132
C43: Any other incidentals/miscellaneous tasks not listed
A45: Staff Geologist: | C45: Prepare Plan | J45: ='Maximum Rates'!D7 -> 96 | K45: 2 | L45: =(J45*K45) -> 192
A46: Engineer | C46: Any other incidentals/miscellaneous tasks not listed
A48: Draftsman: | C48: Map/Diagram | J48: ='Maximum Rates'!D10 -> 70 | K48: 1 | L48: =(J48*K48) -> 70
A51: Clerical: | C51: Copy, sort, mail documents, | J51: ='Maximum Rates'!D11 -> 57 | K51: 2 | L51: =(J51*K51) -> 114
C52: Any other incidentals/miscellaneous tasks not listed
E53: Unit Rate System Decommissioning Plan | L53: =SUM(L39:L52) -> 968
A62: System Decommissioning Report
A64: Project Manager: | C64: Schedule internal personnel, subcontractors | J64: ='Maximum Rates'!D5 -> 115 | K64: 8 | L64: =(J64*K64) -> 920
C65: utility companies, etc., CP/PR,
C66: Any other incidentals/miscellaneous tasks not listed
A67: PE/PG: | C67: Review/Sign Report | J67: ='Maximum Rates'!D6 -> 132 | K67: 1 | L67: =(J67*K67) -> 132
C68: Any other incidentals/miscellaneous tasks not listed
A70: Staff Geologist: | C70: Prepare Report | J70: ='Maximum Rates'!D7 -> 96 | K70: 6 | L70: =(J70*K70) -> 576
A71: Engineer | C71: Any other incidentals/miscellaneous tasks not listed
A73: Draftsman: | C73: Map/Diagram/Photo | J73: ='Maximum Rates'!D10 -> 70 | K73: 1 | L73: =(J73*K73) -> 70
A76: Clerical: | C76: Copy, sort, mail documents, CP/PR | J76: ='Maximum Rates'!D11 -> 57 | K76: 4 | L76: =(J76*K76) -> 228
C77: Any other incidentals/miscellaneous tasks not listed
E78: Unit Rate System Decommissioning Report | L78: =SUM(L64:L77) -> 1926
A80: Environmental Covenant
A82: Project Manager: | C82: Oversight | J82: ='Maximum Rates'!D5 -> 115 | K82: 2 | L82: =(J82*K82) -> 230
A85: PE/PG: | C85: Senior Review | J85: ='Maximum Rates'!D6 -> 132 | K85: 1 | L85: =(J85*K85) -> 132
A88: Staff Geologist: | C88: Prepare Covenant | J88: ='Maximum Rates'!D7 -> 96 | K88: 2 | L88: =(J88*K88) -> 192
A89: Engineer
A91: Draftsman: | J91: ='Maximum Rates'!D10 -> 70 | K91: 0 | L91: =(J91*K91) -> 0
A94: Clerical: | C94: Copy, sort, mail documents, | J94: ='Maximum Rates'!D11 -> 57 | K94: 1 | L94: =(J94*K94) -> 57
C95: Any other incidentals/miscellaneous tasks not listed
E96: Unit Rate Environmental Covenant | L96: =SUM(L82:L95) -> 611

Sheet Aquifer Pilot Pl Rpt Fld (hidden)
A1: Specific Capacity Plan (CP/PR in Report amount)
A3: Project Manager: | C3: Schedule internal personnel, | J3: ='Maximum Rates'!D5 -> 115 | K3: 1 | L3: =(J3*K3) -> 115
C5: Any other incidentals/miscellaneous tasks not listed
A6: PE/PG: | C6: Review/Sign Plan | J6: ='Maximum Rates'!D6 -> 132 | K6: 1 | L6: =(J6*K6) -> 132
C7: Any other incidentals/miscellaneous tasks not listed
A9: Staff Geologist: | C9: Prepare Plan | J9: ='Maximum Rates'!D7 -> 96 | K9: 1 | L9: =(J9*K9) -> 96
A10: Engineer | C10: Any other incidentals/miscellaneous tasks not listed
A12: Draftsman: | J12: ='Maximum Rates'!D10 -> 70 | K12: 0 | L12: =(J12*K12) -> 0
A15: Clerical: | C15: Copy, sort, mail documents, | J15: ='Maximum Rates'!D11 -> 57 | K15: 1 | L15: =(J15*K15) -> 57
C16: Any other incidentals/miscellaneous tasks not listed
G17: Unit Rate Specific Capacity Plan | L17: =SUM(L3:L16) -> 400
A19: Specific Capacity Report
A21: Project Manager: | C21: Schedule internal personnel, | J21: ='Maximum Rates'!D5 -> 115 | K21: 4 | L21: =(J21*K21) -> 460
C22: prepare payment request, and cost proposal
C23: Any other incidentals/miscellaneous tasks not listed
A24: PE/PG: | C24: Review/Sign Report | J24: ='Maximum Rates'!D6 -> 132 | K24: 1 | L24: =(J24*K24) -> 132
C25: Any other incidentals/miscellaneous tasks not listed
A27: Staff Geologist: | C27: Prepare Report | J27: ='Maximum Rates'!D7 -> 96 | K27: 6 | L27: =(J27*K27) -> 576
A28: Engineer | C28: Any other incidentals/miscellaneous tasks not listed
A30: Draftsman: | C30: Prepare any figures as necessary | J30: ='Maximum Rates'!D10 -> 70 | K30: 2 | L30: =(J30*K30) -> 140
C31: Any other incidentals/miscellaneous tasks not listed
A33: Clerical: | C33: Copy, sort, mail documents, CP/PR | J33: ='Maximum Rates'!D11 -> 57 | K33: 4 | L33: =(J33*K33) -> 228
C34: Any other incidentals/miscellaneous tasks not listed
G35: Unit Rate Specific Capacity Report | L35: =SUM(L21:L34) -> 1536
A37: DPVE Pilot Test Plan (Does not include well installation)(CP/PR in Report amount)
A39: Project Manager: | C39: Schedule internal personnel, vendor quotes | J39: ='Maximum Rates'!D5 -> 115 | K39: 5 | L39: =(J39*K39) -> 575
C41: Any other incidentals/miscellaneous tasks not listed
A42: PE/PG: | C42: Review/Sign Plan, Plan input | J42: ='Maximum Rates'!D6 -> 132 | K42: 1 | L42: =(J42*K42) -> 132
C43: Any other incidentals/miscellaneous tasks not listed
A45: Staff Geologist: | C45: Prepare Plan | J45: ='Maximum Rates'!D7 -> 96 | K45: 3 | L45: =(J45*K45) -> 288
A46: Engineer | C46: Any other incidentals/miscellaneous tasks not listed
A48: Draftsman: | C48: Maps and figures as needed | J48: ='Maximum Rates'!D10 -> 70 | K48: 1 | L48: =(J48*K48) -> 70
A51: Clerical: | C51: Copy, sort, mail documents, | J51: ='Maximum Rates'!D11 -> 57 | K51: 2 | L51: =(J51*K51) -> 114
C52: Any other incidentals/miscellaneous tasks not listed
G53: Unit Rate Aquifer Pilot Test Plan | L53: =SUM(L39:L52) -> 1179
A55: DPVE Pilot Test Report (does not include well installation)
A57: Project Manager: | C57: Schedule internal personnel and | J57: ='Maximum Rates'!D5 -> 115 | K57: 5 | L57: =(J57*K57) -> 575
C58: sub contractors, prepare payment request, cost proposal
C59: Any other incidentals/miscellaneous tasks not listed
A60: PE/PG: | C60: Review/Sign Report | J60: ='Maximum Rates'!D6 -> 132 | K60: 2 | L60: =(J60*K60) -> 264
C61: Any other incidentals/miscellaneous tasks not listed
A63: Staff Geologist: | C63: Prepare Report | J63: ='Maximum Rates'!D7 -> 96 | K63: 6 | L63: =(J63*K63) -> 576
A64: Engineer | C64: Any other incidentals/miscellaneous tasks not listed
A66: Draftsman: | C66: Prepare any figures, maps as necessary | J66: ='Maximum Rates'!D10 -> 70 | K66: 3 | L66: =(J66*K66) -> 210
C67: Any other incidentals/miscellaneous tasks not listed
A69: Clerical: | C69: Copy, sort, mail documents, CP/PR | J69: ='Maximum Rates'!D11 -> 57 | K69: 4 | L69: =(J69*K69) -> 228
C70: Any other incidentals/miscellaneous tasks not listed
F71: Unit Rate Aquifer Pilot Test Report | L71: =SUM(L57:L70) -> 1853
A73: AS/SVE or Ozone Pilot Test Plan
A75: Project Manager: | C75: Schedule internal personnel, vendor quotes | J75: ='Maximum Rates'!D5 -> 115 | K75: 5 | L75: =(J75*K75) -> 575
C77: Any other incidentals/miscellaneous tasks not listed
A78: PE/PG: | C78: Review/Sign Plan, Plan input | J78: ='Maximum Rates'!D6 -> 132 | K78: 1 | L78: =(J78*K78) -> 132
C79: Any other incidentals/miscellaneous tasks not listed
A81: Staff Geologist: | C81: Prepare Plan | J81: ='Maximum Rates'!D7 -> 96 | K81: 3 | L81: =(J81*K81) -> 288
A82: Engineer | C82: Any other incidentals/miscellaneous tasks not listed
A84: Draftsman: | C84: Maps and figures as needed | J84: ='Maximum Rates'!D10 -> 70 | K84: 1 | L84: =(J84*K84) -> 70
A87: Clerical: | C87: Copy, sort, mail documents, | J87: ='Maximum Rates'!D11 -> 57 | K87: 2 | L87: =(J87*K87) -> 114
C88: Any other incidentals/miscellaneous tasks not listed
G89: Unit Rate Aquifer Pilot Test Plan | L89: =SUM(L75:L88) -> 1179
A91: AS/SVE or Ozone Pilot Test Report
A93: Project Manager: | C93: Schedule internal personnel and | J93: ='Maximum Rates'!D5 -> 115 | K93: 5 | L93: =(J93*K93) -> 575
C94: sub contractors, prepare payment request, cost proposal
C95: Any other incidentals/miscellaneous tasks not listed
A96: PE/PG: | C96: Review/Sign Report | J96: ='Maximum Rates'!D6 -> 132 | K96: 2 | L96: =(J96*K96) -> 264
C97: Any other incidentals/miscellaneous tasks not listed
A99: Staff Geologist: | C99: Prepare Report | J99: ='Maximum Rates'!D7 -> 96 | K99: 6 | L99: =(J99*K99) -> 576
A100: Engineer | C100: Any other incidentals/miscellaneous tasks not listed
A102: Draftsman: | C102: Prepare any figures, maps as necessary | J102: ='Maximum Rates'!D10 -> 70 | K102: 3 | L102: =(J102*K102) -> 210
C103: Any other incidentals/miscellaneous tasks not listed
A105: Clerical: | C105: Copy, sort, mail documents, CP/PR | J105: ='Maximum Rates'!D11 -> 57 | K105: 4 | L105: =(J105*K105) -> 228
C106: Any other incidentals/miscellaneous tasks not listed
F107: Unit Rate Aquifer Pilot Test Report | L107: =SUM(L93:L106) -> 1853
A109: ISCO/ Bio-Remediation Pilot Test Plan (CP/PR in Report amount)
A111: Project Manager: | C111: Schedule internal personnel, vendor quotes | J111: ='Maximum Rates'!D5 -> 115 | K111: 5 | L111: =(J111*K111) -> 575
C113: Any other incidentals/miscellaneous tasks not listed
A114: PE/PG: | C114: Review/Sign Plan, Plan input | J114: ='Maximum Rates'!D6 -> 132 | K114: 1 | L114: =(J114*K114) -> 132
C115: Any other incidentals/miscellaneous tasks not listed
A117: Staff Geologist: | C117: Prepare Plan | J117: ='Maximum Rates'!D7 -> 96 | K117: 3 | L117: =(J117*K117) -> 288
A118: Engineer | C118: Any other incidentals/miscellaneous tasks not listed
A120: Draftsman: | C120: Maps and figures as needed | J120: ='Maximum Rates'!D10 -> 70 | K120: 1 | L120: =(J120*K120) -> 70
A123: Clerical: | C123: Copy, sort, mail documents, | J123: ='Maximum Rates'!D11 -> 57 | K123: 2 | L123: =(J123*K123) -> 114
C124: Any other incidentals/miscellaneous tasks not listed
G125: Unit Rate Aquifer Pilot Test Plan | L125: =SUM(L111:L124) -> 1179
A127: ISCO/ Bio-Remediation Pilot Test Report
A129: Project Manager: | C129: Schedule internal personnel and | J129: ='Maximum Rates'!D5 -> 115 | K129: 5 | L129: =(J129*K129) -> 575
C130: sub contractors, prepare payment request, cost proposal
C131: Any other incidentals/miscellaneous tasks not listed
A132: PE/PG: | C132: Review/Sign Report | J132: ='Maximum Rates'!D6 -> 132 | K132: 2 | L132: =(J132*K132) -> 264
C133: Any other incidentals/miscellaneous tasks not listed
A135: Staff Geologist: | C135: Prepare Report | J135: ='Maximum Rates'!D7 -> 96 | K135: 8 | L135: =(J135*K135) -> 768
A136: Engineer | C136: Any other incidentals/miscellaneous tasks not listed
A138: Draftsman: | C138: Prepare any figures, maps as necessary | J138: ='Maximum Rates'!D10 -> 70 | K138: 3 | L138: =(J138*K138) -> 210
C139: Any other incidentals/miscellaneous tasks not listed
A141: Clerical: | C141: Copy, sort, mail documents, CP/PR | J141: ='Maximum Rates'!D11 -> 57 | K141: 4 | L141: =(J141*K141) -> 228
C142: Any other incidentals/miscellaneous tasks not listed
F143: Unit Rate Aquifer Pilot Test Report | L143: =SUM(L129:L142) -> 2045

Sheet MISC Plans Reports (hidden)
A1: Investigation Derived Waste Plan (Stand alone)(CP/PR in Report amount)
A3: Project Manager: | C3: Schedule internal personnel, gather quotes, landfill contact | J3: ='Maximum Rates'!D5 -> 115 | K3: 3 | L3: =(J3*K3) -> 345
C5: Any other incidentals/miscellaneous tasks not listed
A6: PE/PG: | C6: Review/Sign Plan | J6: ='Maximum Rates'!D6 -> 132 | K6: 1 | L6: =(J6*K6) -> 132
C7: Any other incidentals/miscellaneous tasks not listed
A9: Staff Geologist: | C9: Prepare Plan | J9: ='Maximum Rates'!D7 -> 96 | K9: 1 | L9: =(J9*K9) -> 96
A10: Engineer | C10: Any other incidentals/miscellaneous tasks not listed
A12: Draftsman: | J12: ='Maximum Rates'!D10 -> 70 | K12: 0 | L12: =(J12*K12) -> 0
A15: Clerical: | C15: Copy, sort, mail document | J15: ='Maximum Rates'!D11 -> 57 | K15: 1 | L15: =(J15*K15) -> 57
C16: Any other incidentals/miscellaneous tasks not listed
F17: Unit Rate IDW Plan | L17: =SUM(L3:L16) -> 630
A19: Investigation Derived Waste Report (Stand alone)
A21: Project Manager: | C21: Schedule internal personnel, | J21: ='Maximum Rates'!D5 -> 115 | K21: 4 | L21: =(J21*K21) -> 460
C22: Prepare Cost Proposal, prepare payment request,
C23: Any other incidentals/miscellaneous tasks not listed
A24: PE/PG: | C24: Review/Sign Report | J24: ='Maximum Rates'!D6 -> 132 | K24: 1 | L24: =(J24*K24) -> 132
C25: Any other incidentals/miscellaneous tasks not listed
A27: Staff Geologist: | C27: Prepare Report | J27: ='Maximum Rates'!D7 -> 96 | K27: 2 | L27: =(J27*K27) -> 192
A28: Engineer | C28: Any other incidentals/miscellaneous tasks not listed
A30: Draftsman: | J30: ='Maximum Rates'!D10 -> 70 | K30: 0 | L30: =(J30*K30) -> 0
A33: Clerical: | C33: Copy, sort, mail documents, CP/PR | J33: ='Maximum Rates'!D11 -> 57 | K33: 4 | L33: =(J33*K33) -> 228
C34: Any other incidentals/miscellaneous tasks not listed
F35: Unit Rate IDW Report | L35: =SUM(L21:L34) -> 1012
A37: Alternate Water Supply Plan (connect to public water)(CP/PR in Report amount)
A39: Project Manager: | C39: water system contact, contact plumber | J39: ='Maximum Rates'!D5 -> 115 | K39: 3 | L39: =(J39*K39) -> 345
C41: Any other incidentals/miscellaneous tasks not listed
A42: PE/PG: | C42: Review/Sign Report | J42: ='Maximum Rates'!D6 -> 132 | K42: 1 | L42: =(J42*K42) -> 132
C43: Any other incidentals/miscellaneous tasks not listed
A45: Staff Geologist: | C45: develop plan | J45: ='Maximum Rates'!D7 -> 96 | K45: 1 | L45: =(J45*K45) -> 96
A46: Engineer | C46: Any other incidentals/miscellaneous tasks not listed
A48: Draftsman: | C48: Prepare appropriate Maps/figures, site maps, | J48: ='Maximum Rates'!D10 -> 70 | K48: 1 | L48: =(J48*K48) -> 70
C50: Any other incidentals/miscellaneous tasks not listed
A51: Clerical: | C51: Copy, sort, mail documents | J51: ='Maximum Rates'!D11 -> 57 | K51: 2 | L51: =(J51*K51) -> 114
C52: Any other incidentals/miscellaneous tasks not listed
F53: Unit Rate Alternate Water Supply Plan | L53: =SUM(L39:L52) -> 757
A62: Alternate Water Supply Report (connect to public water)
A64: Project Manager: | C64: Schedule internal personnel, water system contact, | J64: ='Maximum Rates'!D5 -> 115 | K64: 4 | L64: =(J64*K64) -> 460
C65: prepare CP/PR, subcontractor contact
C66: Any other incidentals/miscellaneous tasks not listed
A67: PE/PG: | C67: Review/Sign Report | J67: ='Maximum Rates'!D6 -> 132 | K67: 1 | L67: =(J67*K67) -> 132
C68: Any other incidentals/miscellaneous tasks not listed
A70: Staff Geologist: | C70: Prepare Report | J70: ='Maximum Rates'!D7 -> 96 | K70: 3 | L70: =(J70*K70) -> 288
A71: Engineer | C71: Any other incidentals/miscellaneous tasks not listed
A73: Draftsman: | C73: appropriate map or figure | J73: ='Maximum Rates'!D10 -> 70 | K73: 1 | L73: =(J73*K73) -> 70
A76: Clerical: | C76: Copy, sort, mail documents, CP/PR | J76: ='Maximum Rates'!D11 -> 57 | K76: 4 | L76: =(J76*K76) -> 228
C77: Any other incidentals/miscellaneous tasks not listed
F78: Unit Rate Alternate Water Supply Report | L78: =SUM(L64:L77) -> 1178
A80: UIC Permit Application Preparation
A82: Project Manager: | C82: Review Permit CP/PR | J82: ='Maximum Rates'!D5 -> 115 | K82: 1 | L82: =(J82*K82) -> 115
C84: Any other incidentals/miscellaneous tasks not listed
A85: PE/PG: | C85: Review/sign Permit | J85: ='Maximum Rates'!D6 -> 132 | K85: 2 | L85: =(J85*K85) -> 264
A88: Staff Geologist: | C88: Prepare Permit | J88: ='Maximum Rates'!D7 -> 96 | K88: 8 | L88: =(J88*K88) -> 768
A89: Engineer | C89: Any other incidentals/miscellaneous tasks not listed
A91: Draftsman: | C91: site map | J91: ='Maximum Rates'!D10 -> 70 | K91: 1 | L91: =(J91*K91) -> 70
A94: Clerical: | C94: Copy, sort, mail documents, | J94: ='Maximum Rates'!D11 -> 57 | K94: 2 | L94: =(J94*K94) -> 114
C95: Any other incidentals/miscellaneous tasks not listed
F96: Unit Rate UIC Permit Preparation | L96: =SUM(L82:L95) -> 1331
A98: General NPDES/UIC Permit Application
A100: Project Manager: | C100: Review Permit, notify local authority CP/PR | J100: ='Maximum Rates'!D5 -> 115 | K100: 3 | L100: =(J100*K100) -> 345
C101: Any other incidentals/miscellaneous tasks not listed
A103: PE/PG: | C103: Review and sign Permit | J103: ='Maximum Rates'!D6 -> 132 | K103: 1 | L103: =(J103*K103) -> 132
C104: Any other incidentals/miscellaneous tasks not listed
A106: Staff Geologist: | C106: Prepare permit | J106: ='Maximum Rates'!D7 -> 96 | K106: 2 | L106: =(J106*K106) -> 192
A107: Engineer | C107: Any other incidentals/miscellaneous tasks not listed
A109: Draftsman: | C109: appropriate map/figure | J109: ='Maximum Rates'!D10 -> 70 | K109: 1 | L109: =(J109*K109) -> 70
A112: Clerical: | C112: Copies, sort, mail documents, | J112: ='Maximum Rates'!D11 -> 57 | K112: 2 | L112: =(J112*K112) -> 114
C113: Any other incidentals/miscellaneous tasks not listed
F114: Unit Rate NPDES/UIC Permit Preparation | L114: =SUM(L100:L113) -> 853
A116: ADEM Solid Waste Profile
A118: Project Manager: | C118: Profile handling | J118: ='Maximum Rates'!D5 -> 115 | K118: 1 | L118: =(J118*K118) -> 115
C119: Any other incidentals/miscellaneous tasks not listed
A121: PE/PG: | J121: ='Maximum Rates'!D6 -> 132 | K121: 0 | L121: =(J121*K121) -> 0
A124: Staff Geologist: | C124: Prepare Profile | J124: ='Maximum Rates'!D7 -> 96 | K124: 1 | L124: =(J124*K124) -> 96
A125: Engineer | C125: Any other incidentals/miscellaneous tasks not listed
A127: Draftsman: | J127: ='Maximum Rates'!D10 -> 70 | K127: 0 | L127: =(J127*K127) -> 0
A130: Clerical: | C130: Copies, sort, mail documents | J130: ='Maximum Rates'!D11 -> 57 | K130: 0.5 | L130: =(J130*K130) -> 28.5
C131: Any other incidentals/miscellaneous tasks not listed
F132: Unit Rate Solid Waste Profile Preparation | L132: =SUM(L118:L131) -> 239.5
A134: Adjacent Property Ownership Information (up to 12 parcels)(additional effort)
A136: Project Manager: | C136: Review information for accuracy | J136: ='Maximum Rates'!D5 -> 115 | K136: 0.5 | L136: =(J136*K136) -> 57.5
C137: Any other incidentals/miscellaneous tasks not listed
A138: PE/PG: | J138: ='Maximum Rates'!D6 -> 132 | L138: =(J138*K138) -> 0
A140: Staff Geologist: | C140: Visit Court house or search for records online | J140: ='Maximum Rates'!D7 -> 96 | K140: 1.5 | L140: =(J140*K140) -> 144
A141: Engineer | C141: Any other incidentals/miscellaneous tasks not listed
A143: Draftsman: | C143: create and label map/table, etc. | J143: ='Maximum Rates'!D10 -> 70 | K143: 1 | L143: =(J143*K143) -> 70
C144: Any other incidentals/miscellaneous tasks not listed
A145: Clerical: | C145: ship/mail documents to the ADEM | J145: ='Maximum Rates'!D11 -> 57 | K145: 1 | L145: =(J145*K145) -> 57
C146: Any other incidentals/miscellaneous tasks not listed
F147: Unit Rate Adjacent Property Ownership Information | L147: =SUM(L136:L145) -> 328.5
A149: Municipal Sewer Application Process (ADEM or otherwise)
A151: Project Manager: | C151: Contact local municipalities, | J151: ='Maximum Rates'!D5 -> 115 | K151: 4 | L151: =(J151*K151) -> 460
C152: Any other incidentals/miscellaneous tasks not listed
A154: PE/PG: | J154: ='Maximum Rates'!D6 -> 132 | K154: 0 | L154: =(J154*K154) -> 0
A157: Staff Geologist: | J157: ='Maximum Rates'!D7 -> 96 | K157: 0 | L157: =(J157*K157) -> 0
A158: Engineer
A160: Draftsman: | J160: ='Maximum Rates'!D10 -> 70 | K160: 0 | L160: =(J160*K160) -> 0
A163: Clerical: | C163: Copies, sort, mail documents | J163: ='Maximum Rates'!D11 -> 57 | K163: 1 | L163: =(J163*K163) -> 57
C164: Any other incidentals/miscellaneous tasks not listed
F165: Unit Rate Application Preparation | L165: =SUM(L151:L164) -> 517
A167: Replace Public Water Line Plan (public water main is damaged)(CP/PR in Report amount)
A169: Project Manager: | C169: water system contact, contact plumber | J169: ='Maximum Rates'!D5 -> 115 | K169: 6 | L169: =(J169*K169) -> 690
C171: Any other incidentals/miscellaneous tasks not listed
A172: PE/PG: | C172: Review/Sign Report | J172: ='Maximum Rates'!D6 -> 132 | K172: 1 | L172: =(J172*K172) -> 132
C173: Any other incidentals/miscellaneous tasks not listed
A175: Staff Geologist: | C175: develop plan | J175: ='Maximum Rates'!D7 -> 96 | K175: 1 | L175: =(J175*K175) -> 96
A176: Engineer | C176: Any other incidentals/miscellaneous tasks not listed
A178: Draftsman: | C178: Prepare appropriate Maps/figures, site maps, | J178: ='Maximum Rates'!D10 -> 70 | K178: 1 | L178: =(J178*K178) -> 70
C180: Any other incidentals/miscellaneous tasks not listed
A181: Clerical: | C181: Copy, sort, mail documents | J181: ='Maximum Rates'!D11 -> 57 | K181: 2 | L181: =(J181*K181) -> 114
C182: Any other incidentals/miscellaneous tasks not listed
F183: Unit Rate Replace Damaged Water Main Plan | L183: =SUM(L169:L182) -> 1102
A185: Replace Public Water Line Report (public water main is damaged)
A187: Project Manager: | C187: Schedule internal personnel, water system contact, | J187: ='Maximum Rates'!D5 -> 115 | K187: 8 | L187: =(J187*K187) -> 920
C188: prepare CP/PR, subcontractor contact
C189: Any other incidentals/miscellaneous tasks not listed
A190: PE/PG: | C190: Review/Sign Report | J190: ='Maximum Rates'!D6 -> 132 | K190: 1 | L190: =(J190*K190) -> 132
C191: Any other incidentals/miscellaneous tasks not listed
A193: Staff Geologist: | C193: Prepare Report | J193: ='Maximum Rates'!D7 -> 96 | K193: 3 | L193: =(J193*K193) -> 288
A194: Engineer | C194: Any other incidentals/miscellaneous tasks not listed
A196: Draftsman: | C196: appropriate map or figure | J196: ='Maximum Rates'!D10 -> 70 | K196: 1 | L196: =(J196*K196) -> 70
A199: Clerical: | C199: Copy, sort, mail documents, CP/PR | J199: ='Maximum Rates'!D11 -> 57 | K199: 4 | L199: =(J199*K199) -> 228
C200: Any other incidentals/miscellaneous tasks not listed
F201: Unit Rate Replace Damaged Water Main Report | L201: =SUM(L187:L200) -> 1638
A203: Cost Proposal Preparation (Cost Proposal was requested by ADEM, but not implemented)
A205: Project Manager: | C205: CP/PR, Any other incidental/miscellaneous tasks not listed | J205: ='Maximum Rates'!D5 -> 115 | K205: 1 | L205: =(J205*K205) -> 115
A208: PE/PG: | J208: ='Maximum Rates'!D6 -> 132 | L208: =(J208*K208) -> 0
A211: Staff Geologist: | J211: ='Maximum Rates'!D7 -> 96 | L211: =(J211*K211) -> 0
A212: Engineer
A214: Draftsman: | J214: ='Maximum Rates'!D10 -> 70 | L214: =(J214*K214) -> 0
A217: Clerical: | C217: Copy, sort, mail documents, CP/PR | J217: ='Maximum Rates'!D11 -> 57 | K217: 2 | L217: =(J217*K217) -> 114
C218: Any other incidentals/miscellaneous tasks not listed
F219: Cost Proposal Preparation | L219: =SUM(L205:L218) -> 229
A227: Cost Proposal Tier I Addendum Request
A229: Project Manager: | C229: Prepare addendum for straight forward item | J229: ='Maximum Rates'!D5 -> 115 | K229: 1 | L229: =(J229*K229) -> 115
C230: (ex. Additional well footage)
A232: PE/PG: | J232: ='Maximum Rates'!D6 -> 132 | L232: =(J232*K232) -> 0
A235: Staff Geologist: | J235: ='Maximum Rates'!D7 -> 96 | L235: =(J235*K235) -> 0
A236: Engineer
A238: Draftsman: | J238: ='Maximum Rates'!D10 -> 70 | L238: =(J238*K238) -> 0
A241: Clerical: | J241: ='Maximum Rates'!D11 -> 57 | L241: =(J241*K241) -> 0
F243: Tier I Addendum Preparation | L243: =SUM(L229:L242) -> 115
A245: Cost Proposal Tier II Addendum Request
A247: Project Manager: | C247: Prepare addendum for issue with considerable effort, where | J247: ='Maximum Rates'!D5 -> 115 | K247: 2 | L247: =(J247*K247) -> 230
C248: oversight or error was not the cause
A250: PE/PG: | C250: Addendum review | J250: ='Maximum Rates'!D6 -> 132 | K250: 1 | L250: =(J250*K250) -> 132
A253: Staff Geologist: | J253: ='Maximum Rates'!D7 -> 96 | L253: =(J253*K253) -> 0
A254: Engineer
A256: Draftsman: | J256: ='Maximum Rates'!D10 -> 70 | L256: =(J256*K256) -> 0
A259: Clerical: | J259: ='Maximum Rates'!D11 -> 57 | L259: =(J259*K259) -> 0
F261: Tier II Addendum Preparation | L261: =SUM(L247:L260) -> 362
A263: General NPDES/UIC Permit Application Renewal
A265: Project Manager: | C265: Review Permit, notify local authority CP/PR | J265: ='Maximum Rates'!D5 -> 115 | K265: 1 | L265: =(J265*K265) -> 115
C266: Any other incidentals/miscellaneous tasks not listed
A268: PE/PG: | C268: Review and sign Permit | J268: ='Maximum Rates'!D6 -> 132 | K268: 1 | L268: =(J268*K268) -> 132
C269: Any other incidentals/miscellaneous tasks not listed
A271: Staff Geologist: | C271: Prepare permit | J271: ='Maximum Rates'!D7 -> 96 | K271: 1 | L271: =(J271*K271) -> 96
A272: Engineer | C272: Any other incidentals/miscellaneous tasks not listed
A274: Draftsman: | C274: appropriate map/figure | J274: ='Maximum Rates'!D10 -> 70 | K274: 1 | L274: =(J274*K274) -> 70
A277: Clerical: | C277: Copies, sort, mail documents, | J277: ='Maximum Rates'!D11 -> 57 | K277: 1 | L277: =(J277*K277) -> 57
C278: Any other incidentals/miscellaneous tasks not listed
F279: Unit Rate NPDES/UIC Permit Preparation Renewal | L279: =SUM(L265:L278) -> 470

Sheet PR Summary (hidden)
B3: ADEM Payment Request Summary
B4: PR Total | D4: Facility I.D. # | G4: CP # | H4: Incident # | J4: Site Name
B5: =IF('PR Part I Total'!$E$17="","",'PR Part I Total'!$E$17) -> 0 | D5: =IF('PR Part I Info'!$F$12="","",'PR Part I Info'!$F$12) -> Enter Information from CP Form | G5: =IF('PR Part I Info'!$B$8="","",'PR Part I Info'!$B$8) -> Enter Information from CP Form | H5: =IF('PR Part I Info'!$B$12="","",'PR Part I Info'!$B$12) -> Enter Information from CP Form | J5: =IF('PR Part I Info'!$D$17="","",'PR Part I Info'!$D$17) -> Enter Information from CP Form
B6: Part II- Alabama Tank Trust Fund Itemization Form "A" Payment Request
B7: 0 | D7: Scenarios | H7: Unit $ | I7: CP | J7: PR | K7: Requested
B8: Total CP Approved Amount | E8: 0 | G8: Total Report and Plan Costs | K8: 0
B9: Part II- Alabama Tank Trust Fund Itemization Form "B" Payment Request
B10: Total CP Approved Amount | F10: 0 | G10: Total Field Costs | K10: 0
B11: Part II- Alabama Tank Trust Fund Itemization Form "C" Payment Request
B12: Total CP Approved Amount | E12: 0 | G12: Total Drilling Costs | K12: 0
B13: Part II- Alabama Tank Trust Fund Itemization Form "D" Payment Request
B14: Total CP Approved Amount | E14: 0 | G14: Total Subs/Vendors/Utilities | K14: 0

Sheet PR Form "E" Per Diem (hidden)
B2: Part II- Alabama Tank Trust Fund Itemization Form "E" Payment Request | N2: =IF(SUM(K9+K62+K115)=0,0,(SUM(K9+K62+K115))) -> 0
B3: Per diem allowed for Alabama Tank Trust Fund Contractor Personnel Only | N3: =L54+L107+L160 -> 0 | O3: =M160+M107+M54 -> 0
B4: Maximum allowable rates are referenced on the "Maximum Rates" Tab in this document. This page should be submitted whenever per diem is being claimed.
B6: Points of | F6: Actual Date | G6: Name of | H6: Hour of | I6: Hour of | J6: Activity | K6: Amount
B7: Travel | F7: Traveled | G7: Personnel | H7: Departure | I7: Return | J7: To Be | K7: Per diem
B8: From | E8: To | F8: mm/dd/yy | H8: am/pm | I8: am/pm | J8: Performed | K8: claimed
B9: Use this section to enter claims for daily per diems | K9: =IF(SUM(K24+K36+K54)=0,0,1) -> 0
L10: =IF(K10="",0,1) -> 0
L11: =IF(K11="",0,1) -> 0
L12: 0
L13: 0
L14: 0
L15: 0
L16: 0
L17: 0
L18: 0
L19: 0
L20: 0
L21: 0
L22: 0
L23: 0
H24: Total number of daily per diems | K24: =SUM(L10:L23) -> 0
B25: Use this section to enter claims for extended daily per diems
L26: 0
L27: 0
L28: 0
L29: 0
L30: 0
L31: 0
L32: 0
L33: 0
L34: 0
L35: 0
H36: Total number of ext. daily per diems | K36: =SUM(L26:L35) -> 0
B37: Use this section to enter claims for overnight per diems of either 2 days or >2 consecutive days
L38: =IF(K38="",0,IF(K38<=85,1,0)) -> 0 | M38: =IF(K38>85,1,0) -> 0
L39: =IF(K39="",0,IF(K39<=85,1,0)) -> 0 | M39: =IF(K39>85,1,0) -> 0
L40: 0 | M40: 0
L41: 0 | M41: 0
L42: 0 | M42: 0
L43: 0 | M43: 0
L44: 0 | M44: 0
L45: 0 | M45: 0
L46: 0 | M46: 0
L47: 0 | M47: 0
L48: 0 | M48: 0
L49: 0 | M49: 0
L50: 0 | M50: 0
L51: 0 | M51: 0
L52: 0 | M52: 0
L53: 0 | M53: 0
G54: =IF(SUM(K24+K36+K54)=0,0,1) -> 0 | H54: Total number of overnight per diems | K54: =SUM(L38:L53)+SUM(M38:M53) -> 0 | L54: =SUM(L38:L53) -> 0 | M54: =SUM(M38:M53) -> 0
B55: Part II- Alabama Tank Trust Fund Itemization Form "E" Payment Request Additional Sheet
B56: Per diem allowed for Alabama Tank Trust Fund Contractor Personnel Only
B57: Maximum allowable rates are referenced on the "Maximum Rates" Tab in this document. This page should be submitted whenever per diem is being claimed.
B59: Points of | F59: Actual Date | G59: Name of | H59: Hour of | I59: Hour of | J59: City of | K59: Amount
B60: Travel | F60: Traveled | G60: Personnel | H60: Departure | I60: Return | J60: Overnight | K60: Per diem
B61: From | E61: To | F61: mm/dd/yy | H61: am/pm | I61: am/pm | J61: Stay | K61: claimed
B62: Use this section to enter claims for daily per diems
L63: 0
L64: 0
L65: 0
L66: 0
L67: 0
L68: 0
L69: 0
L70: 0
L71: 0
L72: 0
L73: 0
L74: 0
L75: =IF(K75="",0,1) -> 0
L76: 0
H77: Total number of daily per diems | K77: =SUM(L63:L76) -> 0
B78: Use this section to enter claims for extended daily per diems
L79: 0
L80: 0
L81: 0
L82: 0
L83: 0
L84: 0
L85: 0
L86: 0
L87: 0
L88: 0
H89: Total number of ext. daily per diems | K89: =SUM(L79:L88) -> 0
B90: Use this section to enter claims for overnight per diems of either 2 days or >2 consecutive days
L91: =IF(K91="",0,IF(K91<=85,1,0)) -> 0 | M91: =IF(K91>85,1,0) -> 0
L92: =IF(K92="",0,IF(K92<=85,1,0)) -> 0 | M92: =IF(K92>85,1,0) -> 0
L93: 0 | M93: 0
L94: 0 | M94: 0
L95: 0 | M95: 0
L96: 0 | M96: 0
L97: 0 | M97: 0
L98: 0 | M98: 0
L99: 0 | M99: 0
L100: 0 | M100: 0
L101: 0 | M101: 0
L102: 0 | M102: 0
L103: 0 | M103: 0
L104: 0 | M104: 0
L105: 0 | M105: 0
L106: 0 | M106: 0
G107: =IF(SUM(K77+K89+K107)=0,0,1) -> 0 | H107: Total number of overnight per diems | K107: =SUM(L91:L106)+SUM(M91:M106) -> 0 | L107: =SUM(L91:L106) -> 0 | M107: =SUM(M91:M106) -> 0
B108: Part II- Alabama Tank Trust Fund Itemization Form "E" Payment Request Additional Sheet
B109: Per diem allowed for Alabama Tank Trust Fund Contractor Personnel Only
B110: Maximum allowable rates are referenced on the "Maximum Rates" Tab in this document. This page should be submitted whenever per diem is being claimed.
B112: Points of | F112: Actual Date | G112: Name of | H112: Hour of | I112: Hour of | J112: City of | K112: Amount
B113: Travel | F113: Traveled | G113: Personnel | H113: Departure | I113: Return | J113: Overnight | K113: Per diem
B114: From | E114: To | F114: mm/dd/yy | H114: am/pm | I114: am/pm | J114: Stay | K114: claimed
B115: Use this section to enter claims for daily per diems
L116: 0
L117: 0
L118: 0
L119: 0
L120: 0
L121: 0
L122: 0
L123: 0
L124: 0
L125: 0
L126: 0
L127: 0
L128: 0
L129: 0
H130: Total number of daily per diems | K130: =SUM(L116:L129) -> 0
B131: Use this section to enter claims for extended daily per diems
L132: 0
L133: 0
L134: 0
L135: 0
L136: 0
L137: 0
L138: 0
L139: =IF(K139="",0,1) -> 0
L140: =IF(K140="",0,1) -> 0
L141: =IF(K141="",0,1) -> 0
H142: Total number of ext. daily per diems | K142: =SUM(L132:L141) -> 0
B143: Use this section to enter claims for overnight per diems of either 2 days or >2 consecutive days
L144: =IF(K144="",0,IF(K144<=85,1,0)) -> 0 | M144: =IF(K144>85,1,0) -> 0
L145: =IF(K145="",0,IF(K145<=85,1,0)) -> 0 | M145: =IF(K145>85,1,0) -> 0
L146: 0 | M146: 0
L147: 0 | M147: 0
L148: 0 | M148: 0
L149: 0 | M149: 0
L150: 0 | M150: 0
L151: 0 | M151: 0
L152: 0 | M152: 0
L153: 0 | M153: 0
L154: 0 | M154: 0
L155: 0 | M155: 0
L156: 0 | M156: 0
L157: 0 | M157: 0
L158: 0 | M158: 0
L159: 0 | M159: 0
G160: =IF(SUM(K130+K142+K160)=0,0,1) -> 0 | H160: Total number of overnight per diems | K160: =SUM(L144:L159)+SUM(M144:M159) -> 0 | L160: =SUM(L144:L159) -> 0 | M160: =SUM(M144:M159) -> 0

Sheet Form "C" Drilling (hidden)
B2: Part II- Alabama Tank Trust Fund Itemization Form "C" Cost Proposal
B3: Drilling
E4: Scenarios | H4: Unit $ | I4: Unit | J4: Quantity | K4: Requested$
B5: Mileage Rate (Current Federal Rate)
B6: Mileage (drilling device driven or ATV) (ONE WAY mileage up to 450 miles) 1 | H6: =IF(J5="","",6*J5) ->  | I6: /mile
B7: Number of Mobilizations (includes $300 mob/demob amount) | K7: =IF(J7<1,"",((J6*2)*H6)*J7+J7*'Maximum Rates'!D59) -> 
B8: Mileage (drilling device "hauled" to the site)(ONE WAY mileage up to 450 miles) 1
B9: (direct push, skid steer, etc.) | H9: =IF(J5="","",3*J5) ->  | I9: /mile
B10: Number of Mobilizations (includes $300 mob/demob amount) | K10: =IF(J10<1,"",((J9*2)*H9*J10+(J10*'Maximum Rates'!D59))) -> 
B11: Well Completions
B12: Well Pad Completions for Monitoring Wells (2" and 4")(up to 8" cover)2 | H12: ='Maximum Rates'!D61 -> 205 | I12: /well | K12: =IF(J12<1,"",J12*H12) -> 
B13: Well Pad Completions for Monitoring Wells (2" and 4")(12" cover) 2 | H13: ='Maximum Rates'!D62 -> 242 | I13: /well | K13: =IF(J13<1,"",J13*H13) -> 
B14: Well Pad Completions for Recovery/Extraction Wells (2'x2') 2 | I14: /well | K14: =IF(J14<1,"",J14*H14) -> 
B15: Well Pad Completions Recovery/Extraction Wells non hinged lid (2'x2')2 | I15: /well | K15: =IF(J15<1,"",J15*H15) -> 
B16: Alternate Screen for Recovery/Extraction Wells per/ft(Quotes Required) 4 | I16: /foot | K16: =IF(J16<1,"",J16*H16) -> 
B17: Unconsolidated Media Drilling
B18: 1" / 2" Monitoring Well/Injection Well (HSA) 3 | H18: ='Maximum Rates'!D65 -> 65 | I18: /foot | K18: =IF(J18<1,"",J18*H18) -> 
B19: 4" Monitoring Well (HSA) 3 | H19: ='Maximum Rates'!D66 -> 70 | I19: /foot
B20: Type III Well (HSA) 5 | H20: ='Maximum Rates'!D72 -> 145 | I20: /foot
B21: Soil Boring (HSA) per ft (includes tremie grout abandonment) 6 | H21: ='Maximum Rates'!D67 -> 30 | I21: /foot
B22: Temporary Well (HSA) per ft (includes tremie grout abandonment) 6 | H22: ='Maximum Rates'!D68 -> 36 | I22: /foot
B23: Sonic Drilling | I23: /foot
B24: Bedrock Drilling
B25: Air Rotary Rock Drilling per ft (2") 3 | H25: ='Maximum Rates'!D69 -> 71 | I25: /foot | K25: =IF(J25<1,"",J25*H25) -> 
B26: Air Rotary Rock Drilling per ft (4") 3 | H26: ='Maximum Rates'!D70 -> 77 | I26: /foot | K26: =IF(J26<1,"",J26*H26) -> 
B27: Type III Well 5 | H27: ='Maximum Rates'!D72 -> 145 | I27: /foot | K27: =IF(J27<1,"",J27*H27) -> 
B28: MINIMUM AMOUNT OF $3,000 ADJUSTED 8 | H28: =IF(SUM(K12:K47)=0,0,IF(SUM(K12:K47)<3000,3000,SUM(K12:K47))) -> 0 | I28: =IF(SUM(K12:K47)<3000,0,SUM((K12:K47))) -> 0 | J28: =IF(AND(H28>0,H28<=3000),0,1) -> 1 | K28: 0
B29: Air Compressor | I29: /day | K29: =IF(J29<1,"",J29*H29) -> 
B30: Rock Coring | H30: ='Maximum Rates'!D71 -> 49 | I30: /foot | K30: =IF(J30<1,"",J30*H30) -> 
B31: Direct Push Technology
B32: Direct Push per day (includes all personnel time) 6 | H32: ='Maximum Rates'!D73 -> 2320 | I32: /day | K32: =IF(J32<1,"",J32*H32) -> 
B33: Direct Push well install materials per foot | H33: ='Maximum Rates'!D74 -> 10 | I33: /ft | K33: =IF(J33<1,"",J33*H33) -> 
B34: Other Drilling Related Items
B35: MW/RW Pad Removal (if pad removed) | H35: ='Maximum Rates'!D75 -> 115 | I35: /pad | K35: =IF(J35<1,"",J35*H35) -> 
B36: 2" MW/RW Abandonment by Overdrilling then tremie grouted 3 | H36: ='Maximum Rates'!D76 -> 35 | I36: /foot | K36: =IF(J36<1,"",J36*H36) -> 
B37: 4" MW/RW Abandonment by Overdrilling then tremie grouted 3 | H37: ='Maximum Rates'!D78 -> 45 | I37: /foot | K37: =IF(J37<1,"",J37*H37) -> 
B38: MW/RW Tremie Grout Abandonment | H38: ='Maximum Rates'!D77 -> 18 | I38: /foot | K38: =IF(J38<1,"",J38*H38) -> 
B39: (remove well casing to approximately 3' and fill remainder) 3
B40: Recovery Well Vault removal and backfill w/concrete (2'x2')7 | H40: ='Maximum Rates'!D63 -> 550 | I40: /vault | K40: =IF(J40<1,"",J40*H40) -> 
B41: Recovery Well Vault backfill w/concrete only (2'x2') | H41: ='Maximum Rates'!D64 -> 250 | I41: /vault
B42: Drums | H42: ='Maximum Rates'!C19 -> 75 | I42: /drum
B43: Shelby Tubes | H43: ='Maximum Rates'!D79 -> 58 | I43: /tube
B44: Per Diem (overnight) (man days)(hotel receipts required) | H44: 85 | I44: /day | L44: ='Maximum Rates'!D15 -> 85
B45: Other (receipts required) | L45: ='Maximum Rates'!D16 -> 100
B46: Other (receipts required)
B47: Other (receipts required)
B48: Pass Through (if appropriate) Enter "5" or "10" as appropriate | K48: =IF(J48="","",(SUM(K6:K10)+H28)*(J48)) -> 
H49: =IF(K48="",0,K48) -> 0 | I49: 0.05
B50: 1 Mileage (enter ONE WAY miles) for any and all support vehicles, trailers, equipment, and personnel travel time | I50: 0.1
B51: 2 Includes labor, concrete, forms (if needed), bolt down covers, caps, vaults, and locks
B52: 3 Includes personnel, screen, risers, bentonite, sand, silt sleeves, decon, skid steer,
B53: saw cutting, coring, safety equipment, plastic sheeting, water, etc.
B54: 4 If an alternative type screen is warranted instead of typical pvc slotted screen (i.e. continuous screen, stainless steel, etc.)
B55: 5 Includes personnel, outer and inner casing of entire well, screen, grout, decon, skid steer, saw cutting, coring, safety equipment, plastic sheeting, water, etc.
B56: 6 Includes well pad removal and surface completion as per surrounding
B57: 7 If costs are to exceed this amount a detailed quote should be included and costs listed below or on "Form D"
B58: 8 The sum of the amounts for Drilling Activities will be a minimum of $3,000
F59: Total Drilling Costs | I59: =IF(SUM(K18:K27)=0,0,IF(SUM(K18:K27)<3000,3000,(SUM(K18:K27)))) -> 0 | J59: =SUM(K6:K10)+(H28+H49) -> 0

Sheet Form "D" Other (hidden)
B2: Part II- Alabama Tank Trust Fund Itemization Form "D" Cost Proposal
B3: All Vendor quotes should be detailed, itemized and attached to Form "D"
B4: Use "Quote Details" tab for guidance
B5: Sub Contractors/ Vendors/ Utilities
I6: Pass Through | J6: Quoted Amount | K6: Requested$
B7: 8-hr MEME Event | K7: =IF(J7="","",IF(I7="",J7,(J7*(1+I7)))) -> 
B8: 12-hr MEME Event | K8: =IF(J8="","",IF(I8="",J8,(J8*(1+I8)))) -> 
B9: 24-hr MEME Event
B10: MEME Water Disposal Amount includes hauling
B11: ADEM Solid Waste Profile (ADEM review fee)
B12: ALDOT Permit Fee
B13: Carbon Disposal
B14: Carbon Recycling
B15: Corrective Action System Decommissioning
B16: Corrective Action System Install
B17: Corrective Action System Purchase
B18: Corrective Action System Rental
B19: Oxidizer Rental
B20: Excavation
B21: Injection Events
B22: NPDES Permit Application (permit fee)
B23: Phone Costs (telemetry)
B24: Power Costs
B25: Propane Costs
B26: Rentals
B27: Rentals
B28: Rentals
B29: Rentals
B30: Roll off Dumpster (includes hauling/handling)
B31: Sewer Disposal Costs
B32: Solid Waste Soil Disposal (to include hauling/handling)
B33: UIC Permit Application (permit fee)
B34: UIC Permit Greenfield Fee (permit fee)
B35: Water Supply for Liquid Ring Pump
B36: Water Treatment/Disposal
B37: Professional Survey (Licensed Surveyor)
B38: Other Miscellaneous items/rentals (receipts required)
B39: Other Miscellaneous items/rentals (receipts required)
B40: Other Miscellaneous items/rentals (receipts required)
B41: Other Miscellaneous items/rentals (receipts required)
B42: Other Miscellaneous items/rentals (receipts required)
B43: Other/Misc. (receipts required)
B44: Other/Misc. (receipts required)
B45: Other/Misc. (receipts required)
B46: Other/Misc. (receipts required)
B47: Other/Misc. (receipts required)
B48: Other/Misc. (receipts required)
B49: Other/Misc. (receipts required)
B50: Other/Misc. (receipts required)
B51: Other/Misc. (receipts required)
B52: Other/Misc. (receipts required)
B53: Other/Misc. (receipts required)
B54: Other/Misc. (receipts required)
B56: 0 | F56: Total Subs / Vendors / Utilities | K56: =SUM(K7:K55) -> 0

Sheet PR Form "F" Details (hidden)
K1: =IF(SUM(M2+M68+M117)=0,0,1) -> 0
B2: Part II- Alabama Tank Trust Fund Itemization Form "F" Payment Request | M2: =IF(SUM(L25+L44)=0,0,1) -> 0
B3: Use this form to list hours where a Unit Rate is not available, NOT FOR ADDING HOURS TO UNITS
B4: Detailed description of activities must be entered where hours are claimed
B5: Other Plan /Report NOT Listed
D6: Description of Activities | K6: =IF(SUM(L25+L44)=0,0,1) -> 0
B7: Project Manager: | J7: ='Maximum Rates'!D5 -> 115 | L7: =IF(K7<0.01,"",(J7*K7)) -> 
B11: PE/PG: | J11: ='Maximum Rates'!D6 -> 132 | L11: =IF(K11<0.01,"",(J11*K11)) -> 
B14: Staff Geologist/ | J14: ='Maximum Rates'!D7 -> 96 | L14: =IF(K14<0.01,"",(J14*K14)) -> 
B15: Engineer:
B17: Staff Scientist: | J17: ='Maximum Rates'!D8 -> 90 | L17: =IF(K17<0.01,"",(J17*K17)) -> 
B20: Draftsman: | J20: ='Maximum Rates'!D10 -> 70 | L20: =IF(K20<0.01,"",(J20*K20)) -> 
B23: Clerical: | J23: ='Maximum Rates'!D11 -> 57 | L23: =IF(K23<0.01,"",(J23*K23)) -> 
H25: Other Plan/ Report time not already listed | L25: =SUM(L7:L23) -> 0
B26: Other Field Tasks NOT Listed | M26: =SUM(L25+L44) -> 0
B27: Description of Activities
B28: Project Manager: | J28: ='Maximum Rates'!D5 -> 115 | L28: =IF(K28<0.01,"",(J28*K28)) -> 
B32: PE/PG: | J32: ='Maximum Rates'!D6 -> 132 | L32: =IF(K32<0.01,"",(J32*K32)) -> 
B35: Staff Geologist: | J35: ='Maximum Rates'!D7 -> 96 | L35: =IF(K35<0.01,"",(J35*K35)) -> 
B36: Engineer
B38: Staff Scientist: | J38: ='Maximum Rates'!D8 -> 90 | L38: =IF(K38<0.01,"",(J38*K38)) -> 
B41: Technician: | J41: ='Maximum Rates'!D9 -> 70 | L41: =IF(K41<0.01,"",(J41*K41)) -> 
H44: Other Field Tasks | L44: =SUM(L28:L41) -> 0
B45: Part II- Alabama Tank Trust Fund Itemization Form "F" Payment Request
B46: Use this form to list hours where a Unit Rate is not available, NOT FOR ADDING HOURS TO UNITS
B47: Detailed description of activities must be entered where hours are claimed
B48: CAP Modification
B49: Description of Activities | K49: =IF(SUM(K68)=0,0,1) -> 0
B50: Project Manager: | J50: ='Maximum Rates'!D5 -> 115 | L50: =IF(K50<0.01,"",(J50*K50)) -> 
B54: PE/PG: | J54: ='Maximum Rates'!D6 -> 132 | L54: =IF(K54<0.01,"",(J54*K54)) -> 
B57: Staff Geologist/ | J57: ='Maximum Rates'!D7 -> 96 | L57: =IF(K57<0.01,"",(J57*K57)) -> 
B58: Engineer:
B60: Staff Scientist: | J60: ='Maximum Rates'!D8 -> 90 | L60: =IF(K60<0.01,"",(J60*K60)) -> 
B63: Draftsman: | J63: ='Maximum Rates'!D10 -> 70 | L63: =IF(K63<0.01,"",(J63*K63)) -> 
B66: Clerical: | J66: ='Maximum Rates'!D11 -> 57 | L66: =IF(K66<0.01,"",(J66*K66)) -> 
L67: =SUM(L50:L66) -> 0
H68: CAP Modification | K68: =SUM(L50:L66) -> 0 | M68: =IF(K68=0,0,1) -> 0
B69: Part II- Alabama Tank Trust Fund Itemization Form "F" Payment Request
B70: Use this form to list hours where a Unit Rate is not available, NOT FOR ADDING HOURS TO UNITS
B71: Detailed description of activities must be entered where hours are claimed
B72: Emergency Response | K72: =IF(SUM(K117)=0,0,1) -> 0
B73: Description of Site Activities (written ADEM approval is required, up to 3 field days)
B74: Project Manager: | J74: ='Maximum Rates'!D5*'Maximum Rates'!C46 -> 172.5 | L74: =IF(K74<0.01,"",(J74*K74)) -> 
B82: PE/PG: | J82: ='Maximum Rates'!D6*'Maximum Rates'!C46 -> 198 | L82: =IF(K82<0.01,"",(J82*K82)) -> 
B88: Staff Geologist/ | J88: =('Maximum Rates'!C46*'Maximum Rates'!D7) -> 144 | L88: =IF(K88<0.01,"",(J88*K88)) -> 
B89: Engineer:
B100: Technician: | J100: ='Maximum Rates'!C46*'Maximum Rates'!D9 -> 105 | L100: =IF(K100<0.01,"",(J100*K100)) -> 
H117: Emergency Response | K117: =SUM(L74:L115) -> 0 | M117: =IF(K117=0,0,1) -> 0

Sheet Summary (hidden)
B3: Cost Proposal Summary
B4: CP Total | C4: Facility I.D. # | E4: CP # | F4: Incident Number | I4: Site Name
B5: =IF('CP Part I Total'!$E$46=0,"",'CP Part I Total'!$E$46) ->  | C5: =IF('CP Part I Info'!$F$11="","",'CP Part I Info'!$F$11) ->  | E5: =IF('CP Part I Info'!$B$8="","",'CP Part I Info'!$B$8) ->  | F5: =IF('CP Part I Info'!$B$11="","",'CP Part I Info'!$B$11) ->  | I5: =IF('CP Part I Info'!$D$14="","",'CP Part I Info'!$D$14) -> 
B6: Part II- Alabama Tank Trust Fund Itemization Form "A" Cost Proposal
B7: Scenarios | H7: Unit $ | I7: Units | J7: Quantity | K7: Requested$
F8: Total Report and Plan Costs | K8: 0
B9: Part II- Alabama Tank Trust Fund Itemization Form "B" Cost Proposal
F10: Total Field Costs | K10: 0
B11: Part II- Alabama Tank Trust Fund Itemization Form "C" Cost Proposal
F12: Total Drilling Costs | I12: 0 | J12: 0
B13: Part II- Alabama Tank Trust Fund Itemization Form "D" Cost Proposal
B14: 0 | F14: Total Subs / Vendors / Utilities | K14: 0

Sheet Form "E" Per Diem (hidden)
B2: The below items are for reference only. They are incorporated into Forms "A" & "B" above. | L2: Roundtrip | M2: =SUM(K24+K36+K54) -> 0 | N2: =M2+L54+L107 -> 0
B3: Part II- Alabama Tank Trust Fund Itemization Form "E" Cost Proposal
B4: Per diem allowed for Alabama Tank Trust Fund Contractor Personnel Only Maximum allowable rates are referenced on the "Maximum Rates" Tab in this document.
B5: This page should be submitted whenever per diem is being claimed.
B6: Points of | F6: Projected | G6: Personnel | H6: Hour of | I6: Hour of | J6: Activity | K6: Amount
B7: Travel | F7: Date | G7: Classification | H7: Departure | I7: Return | J7: To Be | K7: Per diem
B8: From | E8: To | F8: mm/dd/yy | H8: am/pm | I8: am/pm | J8: Performed | K8: claimed
B9: Use this section to enter claims for daily per diems
L10: =IF(K10="",0,1) -> 0
L11: =IF(K11="",0,1) -> 0
L12: 0
L13: 0
L14: 0
L15: 0
L16: 0
L17: 0
L18: 0
L19: 0
L20: 0
L21: 0
L22: 0
L23: 0
B24: x | H24: Total number of daily per diems | K24: =SUM(L10:L23) -> 0 | L24: =K24+K77+K130 -> 0 | M24: =L24+M56+M109 -> 0 | N24: =IF(SUM(K24+K77+K130)=0,0,1) -> 0
B25: Use this section to enter claims for extended daily per diems | N25: =IF(SUM(K36+K89+K142)=0,0,1) -> 0
L26: =IF(K26="",0,1) -> 0 | M26: =SUM(K54+K107+K160) -> 0 | N26: =IF(SUM(K54+K107+K160)=0,0,1) -> 0
L27: =IF(K27="",0,1) -> 0 | M27: =L55+L108+L164 -> 0 | N27: =M55+M108+M164 -> 0
L28: 0
L29: 0
L30: 0
L31: 0
L32: 0
L33: 0
L34: 0
L35: 0
B36: x | H36: Total number of ext. daily per diems | K36: =SUM(L26:L35) -> 0 | L36: =K36+K89+K142 -> 0
B37: Use this section to enter claims for overnight per diems
L38: =IF(K38="",0,IF(K38<=85,1,"")) -> 0 | M38: =IF(K38>85,1,0) -> 0
L39: =IF(K39="",0,IF(K39<=85,1,"")) -> 0 | M39: =IF(K39>85,1,0) -> 0
L40: 0 | M40: 0
L41: 0 | M41: 0
L42: 0 | M42: 0
L43: 0 | M43: 0
L44: 0 | M44: 0
L45: 0 | M45: 0
L46: 0 | M46: 0
L47: 0 | M47: 0
L48: 0 | M48: 0
L49: 0 | M49: 0
L50: 0 | M50: 0
L51: 0 | M51: 0
L52: 0 | M52: 0
L53: 0 | M53: 0
B54: x | H54: Total number of overnight per diems | K54: =SUM(L38:L53)+SUM(M38:M53) -> 0 | L54: =K77+K89+K107 -> 0
B55: Part II- Alabama Tank Trust Fund Itemization Form "E" Cost Proposal Additional Sheet | L55: =SUM(L38:L53) -> 0 | M55: =SUM(M38:M54) -> 0
B56: Per diem allowed for Alabama Tank Trust Fund Contractor Personnel Only | M56: =K36+K89+K142 -> 0
B57: Maximum allowable rates are referenced on the "Maximum Rates" Tab in this document.
B59: Points of | F59: Projected | G59: Personnel | H59: Hour of | I59: Hour of | J59: City of | K59: Amount
B60: Travel | F60: Date | G60: Classification | H60: Departure | I60: Return | J60: Overnight | K60: Per diem
B61: From | E61: To | F61: mm/dd/yy | H61: am/pm | I61: am/pm | J61: Stay | K61: claimed
B62: Use this section to enter claims for daily per diems
L63: =SUM(K77+K89+K107) -> 0 | M63: =IF(K63="",0,1) -> 0
L64: =IF(K64="",0,1) -> 0
L65: =IF(K65="",0,1) -> 0
L66: 0
L67: 0
L68: 0
L69: 0
L70: 0
L71: 0
L72: 0
L73: 0
L74: 0
L75: 0
L76: 0
B77: x | H77: Total number of daily per diems | K77: =SUM(M63+(SUM(L64:L76))) -> 0
B78: Use this section to enter claims for extended daily per diems
L79: =IF(K79="",0,1) -> 0
L80: =IF(K80="",0,1) -> 0
L81: 0
L82: 0
L83: 0
L84: 0
L85: 0
L86: 0
L87: 0
L88: 0
B89: x | H89: Total number of ext. daily per diems | K89: =SUM(L79:L88) -> 0
B90: Use this section to enter claims for overnight per diems
L91: =IF(K91="",0,IF(K91<=85,1,"")) -> 0 | M91: =IF(K91>85,1,0) -> 0
L92: =IF(K92="",0,IF(K92<=85,1,"")) -> 0 | M92: =IF(K92>85,1,0) -> 0
L93: 0 | M93: 0
L94: 0 | M94: 0
L95: 0 | M95: 0
L96: 0 | M96: 0
L97: 0 | M97: 0
L98: 0 | M98: 0
L99: 0 | M99: 0
L100: 0 | M100: 0
L101: 0 | M101: 0
L102: 0 | M102: 0
L103: 0 | M103: 0
L104: 0 | M104: 0
L105: 0 | M105: 0
L106: 0 | M106: 0
B107: x | H107: Total number of overnight per diems | K107: =SUM(L91:L106)+SUM(M91:M106) -> 0 | L107: =K130+K142+K160 -> 0
B108: Part II- Alabama Tank Trust Fund Itemization Form "E" Cost Proposal Additional Sheet | L108: =SUM(L91:L106) -> 0 | M108: =SUM(M91:M106) -> 0
B109: Per diem allowed for Alabama Tank Trust Fund Contractor Personnel Only | M109: =K54+K107+K160 -> 0
B110: Maximum allowable rates are referenced on the "Maximum Rates" Tab in this document.
B112: Points of | F112: Projected | G112: Personnel | H112: Hour of | I112: Hour of | J112: City of | K112: Amount
B113: Travel | F113: Date | G113: Classification | H113: Departure | I113: Return | J113: Overnight | K113: Per diem
B114: From | E114: To | F114: mm/dd/yy | H114: am/pm | I114: am/pm | J114: Stay | K114: claimed
B115: Use this section to enter claims for daily per diems
L116: =IF(K116="",0,1) -> 0
L117: =IF(K117="",0,1) -> 0
L118: 0
L119: 0
L120: 0
L121: 0
L122: 0
L123: 0
L124: 0
L125: 0
L126: 0
L127: 0
L128: 0
L129: 0
B130: x | H130: Total number of daily per diems | K130: =SUM(L116:L129) -> 0 | L130: =SUM(K130+K142+K160) -> 0
B131: Use this section to enter claims for extended daily per diems
L132: =IF(K132="",0,1) -> 0
L133: =IF(K133="",0,1) -> 0
L134: 0
L135: 0
L136: 0
L137: 0
L138: 0
L139: 0
L140: 0
L141: 0
B142: x | H142: Total number of ext. daily per diems | K142: =SUM(L132:L141) -> 0
B143: Use this section to enter claims for overnight per diems
L144: =IF(K144="",0,IF(K144<=85,1,"")) -> 0 | M144: =IF(K144>85,1,0) -> 0
L145: =IF(K145="",0,IF(K145<=85,1,"")) -> 0 | M145: =IF(K145>85,1,0) -> 0
L146: 0 | M146: 0
L147: 0 | M147: 0
L148: 0 | M148: 0
L149: 0 | M149: 0
L150: 0 | M150: 0
L151: 0 | M151: 0
L152: 0 | M152: 0
L153: 0 | M153: 0
L154: 0 | M154: 0
L155: 0 | M155: 0
L156: 0 | M156: 0
L157: 0 | M157: 0
L158: 0 | M158: 0
L159: 0 | M159: 0
B160: x | H160: Total number of overnight per diems | K160: =SUM(L144:L159)+SUM(M144:M159) -> 0
B161: x | H161: Total number of daily per diems | K161: =ROUNDUP(SUM(K116:K129)/daily,0)+K77+K24 -> 0
B162: x | H162: Total number of ext. daily per diems | K162: =ROUNDUP(SUM(K132:K141)/extend,0)+K89+K36 -> 0
B163: x | H163: Total number of overnight per diems | K163: =ROUNDUP(SUM(K144:K159)/over,0)+K107+K54 -> 0
L164: =SUM(L144:L159) -> 0 | M164: =SUM(M144:M159) -> 0

Sheet Form "F" Details (hidden)
K1: =IF((L25+L45+L68+L116)=0,0,1) -> 0
B2: The below items are for reference only. They are incorporated into Forms "A" & "B" above.
B3: Part II- Alabama Tank Trust Fund Itemization Form "F" Cost Proposal
B4: Use this form to list hours where a Unit Rate is not available, NOT FOR ADDING HOURS TO UNITS Detailed description of activities must be entered where hours are claimed
B5: Other Plan /Report NOT Listed
D6: Description of Activities | J6: =IF(SUM(L45+L25)=0,0,1) -> 0
B7: Project Manager: | I7: ='Maximum Rates'!$D$5 -> 115 | K7: =IF(J7<0.01,"",(J7*I7)) -> 
B11: PE/PG: | I11: ='Maximum Rates'!$D$6 -> 132 | K11: =IF(J11<0.01,"",(J11*I11)) -> 
B14: Staff Geologist/ | I14: ='Maximum Rates'!$D$7 -> 96 | K14: =IF(J14<0.01,"",(J14*I14)) -> 
B15: Engineer:
B17: Staff Scientist: | I17: ='Maximum Rates'!$D$8 -> 90 | K17: =IF(J17<0.01,"",(J17*I17)) -> 
B20: Draftsman: | I20: ='Maximum Rates'!$D$10 -> 70 | K20: =IF(J20<0.01,"",(J20*I20)) -> 
B23: Clerical: | I23: ='Maximum Rates'!$D$11 -> 57 | K23: =IF(J23<0.01,"",(J23*I23)) -> 
B25: x | H25: Other Plan Report | K25: =IF(SUM(K7:K24)=0,"",SUM(K7:K24)) ->  | L25: =IF(K25="",0,1) -> 0
B27: Other Field Tasks NOT Listed
D28: Description of Activities
B29: Project Manager: | I29: ='Maximum Rates'!$D$5 -> 115 | K29: =IF(J29<0.01,"",(J29*I29)) -> 
B33: PE/PG: | I33: ='Maximum Rates'!$D$6 -> 132 | K33: =IF(J33<0.01,"",(J33*I33)) -> 
B36: Staff Geologist/ | I36: ='Maximum Rates'!$D$7 -> 96 | K36: =IF(J36<0.01,"",(J36*I36)) -> 
B37: Engineer:
B39: Staff Scientist: | I39: ='Maximum Rates'!$D$8 -> 90 | K39: =IF(J39<0.01,"",(J39*I39)) -> 
B42: Technician: | I42: ='Maximum Rates'!$D$10 -> 70 | K42: =IF(J42<0.01,"",(J42*I42)) -> 
B45: x | H45: Other Field Task | K45: =IF(SUM(K29:K44)=0,"",SUM(K29:K44)) ->  | L45: =IF(K45="",0,1) -> 0
B46: Part II- Alabama Tank Trust Fund Itemization Form "F" Cost Proposal
B47: Use this form to list hours where a Unit Rate is not available, NOT FOR ADDING HOURS TO UNITS Detailed description of activities must be entered where hours are claimed
B48: CAP Modification
D49: Description of Activities
B50: Project Manager: | I50: ='Maximum Rates'!$D$5 -> 115 | K50: =IF(J50<0.01,"",(J50*I50)) -> 
B54: PE/PG: | I54: ='Maximum Rates'!$D$6 -> 132 | K54: =IF(J54<0.01,"",(J54*I54)) -> 
B57: Staff Geologist/ | I57: ='Maximum Rates'!$D$7 -> 96 | K57: =IF(J57<0.01,"",(J57*I57)) -> 
B58: Engineer:
B60: Staff Scientist: | I60: ='Maximum Rates'!$D$8 -> 90 | K60: =IF(J60<0.01,"",(J60*I60)) -> 
B63: Draftsman: | I63: ='Maximum Rates'!$D$10 -> 70 | K63: =IF(J63<0.01,"",(J63*I63)) -> 
B66: Clerical: | I66: ='Maximum Rates'!$D$11 -> 57 | K66: =IF(J66<0.01,"",(J66*I66)) -> 
B68: x | H68: CAP Modification | K68: =IF(SUM(K50:K66)=0,"",SUM(K50:K66)) ->  | L68: =IF(K68="",0,1) -> 0
B69: Part II- Alabama Tank Trust Fund Itemization Form "F" Cost Proposal
B70: Use this form to list hours where a Unit Rate is not available, NOT FOR ADDING HOURS TO UNITS Detailed description of activities must be entered where hours are claimed
B71: Emergency Response (written ADEM approval is required, up to 3 field days)
D72: Description of Activities
B73: Project Manager: | I73: ='Maximum Rates'!$D$5*'Maximum Rates'!$C$46 -> 172.5 | K73: =IF(J73<0.01,"",(J73*I73)) -> 
B81: PE/PG: | I81: ='Maximum Rates'!$D$6*'Maximum Rates'!$C$46 -> 198 | K81: =IF(J81<0.01,"",(J81*I81)) -> 
B87: Staff Geologist/ | I87: =('Maximum Rates'!$C$46*'Maximum Rates'!$D$7) -> 144 | K87: =IF(J87<0.01,"",(J87*I87)) -> 
B88: Engineer:
B99: Technician: | I99: =('Maximum Rates'!$C$46*'Maximum Rates'!$D$9) -> 105 | K99: =IF(J99<0.01,"",(J99*I99)) -> 
H116: Emergency Response | K116: =IF(SUM(K73:K114)=0,"",SUM(K73:K114)) ->  | L116: =IF(K116="",0,1) -> 0

Sheet Form "G" Quote Details (hidden)
B2: Alabama Tank Trust Fund Form "G" Cost Proposal
B3: Each quoted item should have the appropriate detail amount listed below
B5: Mob/Demob | H5: PVC
H6: 1"
B7: Trackhoe | H7: 2"
C8: Daily | H8: 4"
C9: Weekly | H9: T's
B10: Backhoe | H10: Couplings
C11: Daily | H11: Elbows
C12: Weekly | H12: 45's
B13: Backfill (driver and transport) | H13: Ferrel joint
C14: /ton | H14: Traps
C15: /yard | H15: Cleaner/glue
C16: /loaded mile
B17: Compaction | H17: Roll off/ drums
B18: Disposal transport (includes driver)
C19: /ton | H19: Other
C20: /yard | H20: Other
C21: /loaded mile | H21: Other
B22: Equipment Operator | H22: Other
C23: /Hr | H23: Other
C24: /week
B25: Laborer
C26: /Hr | L26: =SUM(F5:H53)+(SUM(J6:J23)) -> 0
C27: /week
B28: Water Disposal
C29: /gallon
B30: Soil/Solid Waste Disposal fee (Name Landfilll)
C31: /ton
B32: Sawcutting concrete
C33: base fee
C34: /ft
B35: Horizontal Trenching/Soil (ft)
B36: Horizontal Trenching/Concrete (ft)
B37: Crane
C38: /job
B39: Skid steer
C40: /daily
B41: Electrician
C42: /hr
B43: Fencing
C44: /ft
C45: /single gate
C46: /double gate
B47: Concrete
C48: /yd
C49: /bag
B50: Asphalt
C51: /yd
C52: /bag
B53: Fuel Surcharge

Sheet PR Form "G" Quote Details (hidden)
B2: Part II- Alabama Tank Trust Fund Invoice Details Form "G" Payment Request
B3: Each invoiced item should have the appropriate detail amount listed below
B5: Mob/Demob | H5: PVC
H6: 1"
B7: Trackhoe | H7: 2"
C8: Daily | H8: 4"
C9: Weekly | H9: T's
B10: Backhoe | H10: Couplings
C11: Daily | H11: Elbows
C12: Weekly | H12: 45's
B13: Backfill (driver and transport) | H13: Ferrel joint
C14: /ton | H14: Traps
C15: /yard | H15: Cleaner/glue
C16: /loaded mile
B17: Compaction | H17: Roll off/ drums
B18: Disposal transport (includes driver)
C19: /ton | H19: Other
C20: /yard | H20: Other
C21: /loaded mile | H21: Other
B22: Equipment Operator | H22: Other
C23: /Hr | H23: Other
C24: /week
B25: Laborer
C26: /Hr | L26: =SUM(F5:H53)+(SUM(J6:J23)) -> 0
C27: /week
B28: Water Disposal
C29: /gallon
B30: Soil/Solid Waste Disposal fee (Name Landfilll)
C31: /ton
B32: Sawcutting concrete
C33: base fee
C34: /ft
B35: Horizontal Trenching Soil (ft)
B36: Horizontal Trenching Concrete (ft)
B37: Crane
C38: /job
B39: Skid steer
C40: /daily
B41: Electrician
C42: /hr
B43: Fencing
C44: /ft
C45: /single gate
C46: /double gate
B47: Concrete
C48: /yd
C49: /bag
B50: Asphalt
C51: /yd
C52: /bag
B53: Fuel Surcharge
